Workbook

Sheet Welcome
AA1: 17 | AB1: =INDEX(AB$4:AB$50,MATCH(MyVoteNo,$AA$4:$AA$50,0)) -> Higher Education | AC1: =INDEX(AC$4:AC$50,MATCH(MyVoteNo,$AA$4:$AA$50,0)) -> Barileng Khumisi | AE1: =INDEX(AE$4:AE$50,MATCH(MyVoteNo,$AA$4:$AA$50,0)) -> barileng.khumisi@treasury.gov.za | AF1: =INDEX(AF$4:AF$50,MATCH(MyVoteNo,$AA$4:$AA$50,0)) -> Nkhumeleni Munyai (Walter) | AH1: =INDEX(AH$4:AH$50,MATCH(MyVoteNo,$AA$4:$AA$50,0)) -> Nkhumeleni.Munyai@treasury.gov.za
E2: 2027 MTEF Workbook - National departments | AI2: Dept Ceilings | AL2: CoE Ceilings | AS2: Departmental Ceilings | AT2: =SUM(AT4:AT45) -> 2411225291 | AU2: 2504955698 | AV2: 2577230955 | AY2: Compensation Ceilings | AZ2: =SUM(AZ4:AZ45) -> 237266859 | BA2: 243819845 | BB2: 251161615
Z3: Dept Index No. | AA3: Vote No. | AB3: Department | AC3: Contact Person | AD3: Tel | AE3: email | AF3: Contact Person | AG3: Tel | AH3: email | AI3: =MyYear5 -> 2027/28 | AJ3: =MyYear6 -> 2028/29 | AK3: =MyYear7 -> 2029/30 | AL3: =AI3 -> 2027/28 | AM3: 2028/29 | AN3: 2029/30 | AS3: Department | AT3: =AI3 -> 2027/28 | AU3: 2028/29 | AV3: 2029/30 | AY3: Department | AZ3: =AI3 -> 2027/28 | BA3: 2028/29 | BB3: 2029/30
Z4: 1 | AA4: 29 | AB4: Agriculture | AC4: Bothwell Deka | AD4: (012) 395 6784 | AE4: Bothwell.Deka@treasury.gov.za | AF4: Humbelani Ramuedzisi | AG4: (012) 315 5320 | AH4: Humbelani.Ramuedzisi@treasury.gov.za | AI4: =IFERROR(INDEX((AT$4:AT$47),MATCH($AB4,$AS$4:$AS$47,0)),0) -> 8150566 | AJ4: =IFERROR(INDEX((AU$4:AU$47),MATCH($AB4,$AS$4:$AS$47,0)),0) -> 8405170 | AK4: =IFERROR(INDEX((AV$4:AV$47),MATCH($AB4,$AS$4:$AS$47,0)),0) -> 8658257 | AL4: =IFERROR(INDEX((AZ$4:AZ$47),MATCH($AB4,$AY$4:$AY$47,0)),0) -> 1740713 | AM4: =IFERROR(INDEX((BA$4:BA$47),MATCH($AB4,$AY$4:$AY$47,0)),0) -> 1794816 | AN4: =IFERROR(INDEX((BB$4:BB$47),MATCH($AB4,$AY$4:$AY$47,0)),0) -> 1848859 | AS4: Agriculture | AT4: 8150566 | AU4: 8405170 | AV4: 8658257 | AY4: Agriculture | AZ4: 1740713 | BA4: 1794816 | BB4: 1848859
Z5: 2 | AA5: 16 | AB5: Basic Education | AC5: Shaneel Ragoo | AD5: (012) 315 5323 | AE5: shaneel.ragoo@treasury.gov.za | AF5: Grace Leach | AH5: Grace.Leach@treasury.gov.za | AI5: =IFERROR(INDEX((AT$4:AT$47),MATCH($AB5,$AS$4:$AS$47,0)),0) -> 41108486 | AJ5: 42548570 | AK5: 43829766 | AL5: 731264 | AM5: 753993 | AN5: 776700 | AS5: Basic Education | AT5: 41108486 | AU5: 42548570 | AV5: 43829766 | AY5: Basic Education | AZ5: 731264 | BA5: 753993 | BB5: 776700
Z6: 3 | AA6: 45 | AB6: Centre for Public Service Innovation | AC6: George Tembo | AD6: (012) 315 5514 | AE6: George.Tembo@treasury.gov.za | AF6: Uvadhya Singh | AG6: (012) 315 9030 | AH6: Uvadhya.Singh@treasury.gov.za | AI6: 54822 | AJ6: 56520 | AK6: 58220 | AL6: 34375 | AM6: 35443 | AN6: 36511 | AS6: Centre for Public Service Innovation | AT6: 54822 | AU6: 56520 | AV6: 58220 | AY6: Centre for Public Service Innovation | AZ6: 34375 | BA6: 35443 | BB6: 36511
B7: ="VOTE " &$AA$1&": " -> VOTE 17: | C7: =MyDeptName -> Higher Education | Z7: 4 | AA7: 21 | AB7: Civilian Secretariat for the Police Service | AC7: Velisubuhle Buti | AD7: (012) 395 6709 | AE7: Velisubuhle.Buti@treasury.gov.za | AF7: Mmathaphelo Maphangela | AG7: (012) 406 9013 | AH7: Mmathaphelo.Maphangela@treasury.gov.za | AI7: 189380 | AJ7: 195266 | AK7: 201143 | AL7: 148489 | AM7: 153104 | AN7: 157714 | AS7: Civilian Secretariat for the Police Service | AT7: 189380 | AU7: 195266 | AV7: 201143 | AY7: Civilian Secretariat for the Police Service | AZ7: 148489 | BA7: 153104 | BB7: 157714
Z8: 5 | AA8: 30 | AB8: Communications and Digital Technologies | AC8: Rezah Atcha | AD8: (012) 315 5287 | AE8: Rezah.Atcha@treasury.gov.za | AF8: Keitumetse Motshegwe | AG8: (012) 395 6750 | AH8: keitumetse.motshegwe@treasury.gov.za | AI8: 2649154 | AJ8: 2731488 | AK8: 2813729 | AL8: 362770 | AM8: 374043 | AN8: 385307 | AS8: Communications and Digital Technologies | AT8: 2649154 | AU8: 2731488 | AV8: 2813729 | AY8: Communications and Digital Technologies | AZ8: 362770 | BA8: 374043 | BB8: 385307
Z9: 6 | AA9: 3 | AB9: Cooperative Governance | AC9: Bongani Daka | AD9: (012) 315 5586 | AE9: Bongani.Daka@treasury.gov.za | AF9: Iqbal Mahomed Alli | AG9: (012) 315 5809 | AH9: Iqbal.Mahomed-Alli@treasury.gov.za | AI9: 141530171 | AJ9: 145928814 | AK9: 150322929 | AL9: 493867 | AM9: 509214 | AN9: 524547 | AS9: Cooperative Governance | AT9: 141530171 | AU9: 145928814 | AV9: 150322929 | AY9: Cooperative Governance | AZ9: 493867 | BA9: 509214 | BB9: 524547
B10: Enquiries | F10: Department Contact Details | I10: PLEASE CLICK THE BUTTON BELOW TO SUBMIT AN INPUT… (Note: Input can not be submitted if ceilings on the 'Data' sheet are exceeded.) | Z10: 7 | AA10: 22 | AB10: Correctional Services | AC10: Elvis Ramafamba | AD10: (012) 315 5204 | AE10: Elvis.Ramafamba@treasury.gov.za | AF10: Keabetswe Matlwa | AG10: (012) 395 6678 | AH10: Keabetswe.Matlwa@treasury.gov.za | AI10: 31853961 | AJ10: 32843954 | AK10: 33832927 | AL10: 23018260 | AM10: 23200128 | AN10: 23898716 | AS10: Correctional Services | AT10: 31853961 | AU10: 32843954 | AV10: 33832927 | AY10: Correctional Services | AZ10: 23018260 | BA10: 23200128 | BB10: 23898716
B11: =AC1 -> Barileng Khumisi | D11: =AE1 -> barileng.khumisi@treasury.gov.za | F11: Name: | Z11: 8 | AA11: 23 | AB11: Defence | AC11: Lesiba Ledwaba | AD11: (012) 315 6660 | AE11: Lesiba.Ledwaba@treasury.gov.za | AF11: Sesethu Mazoza | AG11: (012) 315 5106 | AH11: Sesethu.Mazoza@treasury.gov.za | AI11: 59878246 | AJ11: 61754363 | AK11: 63613865 | AL11: 39357404 | AM11: 40580593 | AN11: 41802532 | AS11: Defence | AT11: 59878246 | AU11: 61754363 | AV11: 63613865 | AY11: Defence | AZ11: 39357404 | BA11: 40580593 | BB11: 41802532
B12: =IF(AF1=B11,"",AF1) -> Nkhumeleni Munyai (Walter) | D12: =IF(AH1=D11,"",AH1) -> Nkhumeleni.Munyai@treasury.gov.za | F12: Email: | Z12: 9 | AA12: 10 | AB12: Electricity and Energy | AC12: Rezah Atcha | AD12: (012) 315 5287 | AE12: Rezah.Atcha@treasury.gov.za | AF12: Nomagugu Madikane | AG12: (012) 315 5312 | AH12: Nomagugu.Madikane@treasury.gov.za | AI12: 7074223 | AJ12: 6871580 | AK12: 7078487 | AL12: 404921 | AM12: 417506 | AN12: 430079 | AS12: Electricity and Energy | AT12: 7074223 | AU12: 6871580 | AV12: 7078487 | AY12: Electricity and Energy | AZ12: 404921 | BA12: 417506 | BB12: 430079
F13: Telephone number: | Z13: 10 | AA13: 31 | AB13: Employment and Labour | AC13: Dennis Machobani | AD13: (012) 315 5269 | AE13: Dennis.Machobani@treasury.gov.za | AF13: Palesa Ndokweni | AG13: (012) 315 1620 | AH13: Palesa.Ndokweni@treasury.gov.za | AI13: 4138911 | AJ13: 4267546 | AK13: 4396045 | AL13: 1715813 | AM13: 1769140 | AN13: 1822410 | AS13: Employment and Labour | AT13: 4138911 | AU13: 4267546 | AV13: 4396045 | AY13: Employment and Labour | AZ13: 1715813 | BA13: 1769140 | BB13: 1822410
F14: Mobile (optional): | Z14: 11 | AA14: 32 | AB14: Forestry, Fisheries and the Environment | AC14: Ashley Ramasimu | AD14: (012) 315 5166 | AE14: Ashley.Ramasimu@treasury.gov.za | AF14: Jabulani Mahlangu | AG14: (012) 315 5612 | AH14: Jabulani.Mahlangu@treasury.gov.za | AI14: 9851222 | AJ14: 10157385 | AK14: 10463234 | AL14: 2614786 | AM14: 2696047 | AN14: 2777229 | AS14: Forestry, Fisheries and the Environment | AT14: 9851222 | AU14: 10157385 | AV14: 10463234 | AY14: Forestry, Fisheries and the Environment | AZ14: 2614786 | BA14: 2696047 | BB14: 2777229
Z15: 12 | AA15: 4 | AB15: Government Communication and Information System | AC15: Viwe Sobudula | AD15: (012) 315 5015 | AE15: Viwe.Sobudula@treasury.gov.za | AF15: Thobeka Mbonambi | AG15: (012) 395 6719 | AH15: Thobeka.Mbonambi@treasury.gov.za | AI15: 837030 | AJ15: 863045 | AK15: 889029 | AL15: 339194 | AM15: 349736 | AN15: 360267 | AS15: Government Communication and Information System | AT15: 837030 | AU15: 863045 | AV15: 889029 | AY15: Government Communication and Information System | AZ15: 339194 | BA15: 349736 | BB15: 360267
Z16: 13 | AA16: 18 | AB16: Health | AC16: Refiloe Thokoa | AD16: (012) 395 6559 | AE16: Refiloe.thokoa@treasury.gov.za | AF16: Jonatan Daven | AG16: (012) 315 6711 | AH16: Jonatan.Daven@treasury.gov.za | AI16: 69793803 | AJ16: 72009303 | AK16: 73811911 | AL16: 815301 | AM16: 840644 | AN16: 865957 | AS16: Health | AT16: 69793803 | AU16: 72009303 | AV16: 73811911 | AY16: Health | AZ16: 815301 | BA16: 840644 | BB16: 865957
Z17: 14 | AA17: 17 | AB17: Higher Education | AC17: Barileng Khumisi | AD17: (012) 406 9069 | AE17: barileng.khumisi@treasury.gov.za | AF17: Nkhumeleni Munyai (Walter) | AG17: (012) 315 5636 | AH17: Nkhumeleni.Munyai@treasury.gov.za | AI17: 155829223 | AJ17: 161539798 | AK17: 166351810 | AL17: 13912474 | AM17: 14344859 | AN17: 14776803 | AS17: Higher Education | AT17: 155829223 | AU17: 161539798 | AV17: 166351810 | AY17: Higher Education | AZ17: 13912474 | BA17: 14344859 | BB17: 14776803
Z18: 15 | AA18: 5 | AB18: Home Affairs | AC18: Viwe Sobudula | AD18: (012) 315 5015 | AE18: Viwe.Sobudula@treasury.gov.za | AF18: Viwe Sobudula | AG18: (012) 315 5015 | AH18: Viwe.Sobudula@treasury.gov.za | AI18: 12879751 | AJ18: 13291494 | AK18: 13691722 | AL18: 4596571 | AM18: 4739427 | AN18: 4882137 | AS18: Home Affairs | AT18: 12879751 | AU18: 13291494 | AV18: 13691722 | AY18: Home Affairs | AZ18: 4596571 | BA18: 4739427 | BB18: 4882137
Z19: 16 | AA19: 33 | AB19: Human Settlements | AC19: Katlego Moilwa | AD19: (012) 315 5812 | AE19: Katlego.Moilwa@treasury.gov.za | AF19: Claudette Mkhwanazi | AG19: (012) 315 6535 | AH19: Claudette.Mkhwanazi@treasury.gov.za | AI19: 27180443 | AJ19: 27212137 | AK19: 28031525 | AL19: 498830 | AM19: 514334 | AN19: 529822 | AS19: Human Settlements | AT19: 27180443 | AU19: 27212137 | AV19: 28031525 | AY19: Human Settlements | AZ19: 498830 | BA19: 514334 | BB19: 529822
Z20: 17 | AA20: 24 | AB20: Independent Police Investigative Directorate | AC20: Velisubuhle Buti | AD20: (012) 395 6709 | AE20: Velisubuhle.Buti@treasury.gov.za | AF20: Mmathaphelo Maphangela | AG20: (012) 406 9013 | AH20: Mmathaphelo.Maphangela@treasury.gov.za | AI20: 465427 | AJ20: 479893 | AK20: 494343 | AL20: 321353 | AM20: 331341 | AN20: 341321 | AS20: Independent Police Investigative Directorate | AT20: 465427 | AU20: 479893 | AV20: 494343 | AY20: Independent Police Investigative Directorate | AZ20: 321353 | BA20: 331341 | BB20: 341321
Z21: 18 | AA21: 6 | AB21: International Relations and Cooperation | AC21: George Tembo | AD21: (012) 315 5514 | AE21: George.Tembo@treasury.gov.za | AF21: Mercy Mhlophe | AG21: (012) 315 5598 | AH21: mercy.mhlope@treasury.gov.za | AI21: 7475600 | AJ21: 7707934 | AK21: 7940027 | AL21: 3537928 | AM21: 3647882 | AN21: 3757723 | AS21: International Relations and Cooperation | AT21: 7475600 | AU21: 7707934 | AV21: 7940027 | AY21: International Relations and Cooperation | AZ21: 3537928 | BA21: 3647882 | BB21: 3757723
Z22: 19 | AA22: 46 | AB22: Judicial Inspectorate for Correctional Services | AC22: Elvis Ramafamba | AD22: (012) 315 5204 | AE22: Elvis.Ramafamba@treasury.gov.za | AF22: Keabetswe Matlwa | AG22: (012) 395 6678 | AH22: Keabetswe.Matlwa@treasury.gov.za | AI22: 135427 | AJ22: 139636 | AK22: 143841 | AL22: 89873 | AM22: 92668 | AN22: 95459 | AS22: Judicial Inspectorate for Correctional Services | AT22: 135427 | AU22: 139636 | AV22: 143841 | AY22: Judicial Inspectorate for Correctional Services | AZ22: 89873 | BA22: 92668 | BB22: 95459
Z23: 20 | AA23: 25 | AB23: Justice and Constitutional Development | AC23: Werner Krause | AD23: (012) 315 5211 | AE23: Werner.Krause@treasury.gov.za | AF23: Siphamandla Khumalo | AG23: (012)315 5759 | AH23: siphamandla.khumalo@treasury.gov.za | AI23: 27300947 | AJ23: 28146036 | AK23: 28993552 | AL23: 17174746 | AM23: 17708523 | AN23: 18241749 | AS23: Justice and Constitutional Development | AT23: 27300947 | AU23: 28146036 | AV23: 28993552 | AY23: Justice and Constitutional Development | AZ23: 17174746 | BA23: 17708523 | BB23: 18241749
Z24: 21 | AA24: 42 | AB24: Land Reform and Rural Development | AC24: Bothwell Deka | AD24: (012) 395 6784 | AE24: Bothwell.Deka@treasury.gov.za | AF24: Humbelani Ramuedzisi | AG24: (012) 315 5320 | AH24: Humbelani.Ramuedzisi@treasury.gov.za | AI24: 10715093 | AJ24: 11048111 | AK24: 11380779 | AL24: 2971624 | AM24: 3063981 | AN24: 3156244 | AS24: Land Reform and Rural Development | AT24: 10715093 | AU24: 11048111 | AV24: 11380779 | AY24: Land Reform and Rural Development | AZ24: 2971624 | BA24: 3063981 | BB24: 3156244
Z25: 22 | AA25: 26 | AB25: Military Veterans | AC25: Lesiba Ledwaba | AD25: (012) 315 6660 | AE25: Lesiba.Ledwaba@treasury.gov.za | AF25: Sesethu Mazoza | AG25: (012) 315 5106 | AH25: Sesethu.Mazoza@treasury.gov.za | AI25: 947565 | AJ25: 977015 | AK25: 1006428 | AL25: 167683 | AM25: 172895 | AN25: 178101 | AS25: Military Veterans | AT25: 947565 | AU25: 977015 | AV25: 1006428 | AY25: Military Veterans | AZ25: 167683 | BA25: 172895 | BB25: 178101
Z26: 23 | AA26: 34 | AB26: Mineral and Petroleum Resources | AC26: Rezah Atcha | AD26: (012) 315 5287 | AE26: Rezah.Atcha@treasury.gov.za | AF26: Portia Thebe | AG26: (012) 315 5855 | AH26: Portia.Thebe@treasury.gov.za | AI26: 2976215 | AJ26: 3068712 | AK26: 3161118 | AL26: 990787 | AM26: 1021579 | AN26: 1052344 | AS26: Mineral and Petroleum Resources | AT26: 2976215 | AU26: 3068712 | AV26: 3161118 | AY26: Mineral and Petroleum Resources | AZ26: 990787 | BA26: 1021579 | BB26: 1052344
Z27: 24 | AA27: 7 | AB27: National School of Government | AC27: George Tembo | AD27: (012) 315 5514 | AE27: George.Tembo@treasury.gov.za | AF27: Uvadhya Singh | AG27: (012) 315 9030 | AH27: Uvadhya.Singh@treasury.gov.za | AI27: 248185 | AJ27: 255906 | AK27: 263612 | AL27: 72656 | AM27: 74914 | AN27: 77170 | AS27: National School of Government | AT27: 248185 | AU27: 255906 | AV27: 263612 | AY27: National School of Government | AZ27: 72656 | BA27: 74914 | BB27: 77170
Z28: 25 | AA28: 8 | AB28: National Treasury | AC28: Mokgatla Tema | AD28: (012) 315 5948 | AE28: Mokgatla.Tema@treasury.gov.za | AF28: Rhoda Marais | AG28: (012) 315 5906 | AH28: Rhoda.Marais@treasury.gov.za | AI28: 1225147002 | AJ28: 1271239585 | AK28: 1323080787 | AL28: 1200212 | AM28: 1237516 | AN28: 1274778 | AS28: National Treasury | AT28: 1225147002 | AU28: 1271239585 | AV28: 1323080787 | AY28: National Treasury | AZ28: 1200212 | BA28: 1237516 | BB28: 1274778
Z29: 26 | AA29: 27 | AB29: Office of the Chief Justice | AC29: Elvis Ramafamba | AD29: (012) 315 5204 | AE29: Elvis.Ramafamba@treasury.gov.za | AF29: Keabetswe Matlwa | AG29: (012) 395 6678 | AH29: Keabetswe.Matlwa@treasury.gov.za | AI29: 3583908 | AJ29: 3702026 | AK29: 3813497 | AL29: 2535487 | AM29: 2632499 | AN29: 2711765 | AS29: Office of the Chief Justice | AT29: 3583908 | AU29: 3702026 | AV29: 3813497 | AY29: Office of the Chief Justice | AZ29: 2535487 | BA29: 2632499 | BB29: 2711765
Z30: 27 | AA30: 2 | AB30: Parliament | AC30: Viwe Sobudula | AD30: (012) 315 5015 | AE30: Viwe.Sobudula@treasury.gov.za | AF30: Viwe Sobudula | AG30: (012) 315 5015 | AH30: Viwe.Sobudula@treasury.gov.za | AI30: 3560738 | AJ30: 3671403 | AK30: 3781954 | AL30: 2076189 | AM30: 2140715 | AN30: 2205176 | AS30: Parliament | AT30: 3560738 | AU30: 3671403 | AV30: 3781954 | AY30: Parliament | AZ30: 2076189 | BA30: 2140715 | BB30: 2205176
Z31: 28 | AA31: 9 | AB31: Planning, Monitoring and Evaluation | AC31: Mokgatla Tema | AD31: (012) 315 5948 | AE31: Mokgatla.Tema@treasury.gov.za | AF31: Thobeka Mbonambi | AG31: (012) 395 6719 | AH31: Thobeka.Mbonambi@treasury.gov.za | AI31: 550565 | AJ31: 567679 | AK31: 584769 | AL31: 406385 | AM31: 419018 | AN31: 431637 | AS31: Planning, Monitoring and Evaluation | AT31: 550565 | AU31: 567679 | AV31: 584769 | AY31: Planning, Monitoring and Evaluation | AZ31: 406385 | BA31: 419018 | BB31: 431637
Z32: 29 | AA32: 28 | AB32: Police | AC32: Velisubuhle Buti | AD32: (012) 395 6709 | AE32: Velisubuhle.Buti@treasury.gov.za | AF32: Mmathaphelo Maphangela | AG32: (012) 406 9013 | AH32: Mmathaphelo.Maphangela@treasury.gov.za | AI32: 131680915 | AJ32: 135773451 | AK32: 139861787 | AL32: 106562843 | AM32: 109572346 | AN32: 112871720 | AS32: Police | AT32: 131680915 | AU32: 135773451 | AV32: 139861787 | AY32: Police | AZ32: 106562843 | BA32: 109572346 | BB32: 112871720
Z33: 30 | AA33: 11 | AB33: Public Service and Administration | AC33: George Tembo | AD33: (012) 315 5514 | AE33: George.Tembo@treasury.gov.za | AF33: Uvadhya Singh | AG33: (012) 315 9030 | AH33: Uvadhya.Singh@treasury.gov.za | AI33: 616123 | AJ33: 635270 | AK33: 654390 | AL33: 336536 | AM33: 346997 | AN33: 357447 | AS33: Public Service Commission | AT33: 367745 | AU33: 379696 | AV33: 391128 | AY33: Public Service Commission | AZ33: 287397 | BA33: 296851 | BB33: 305790
Z34: 31 | AA34: 12 | AB34: Public Service Commission | AC34: George Tembo | AD34: (012) 315 5514 | AE34: George.Tembo@treasury.gov.za | AF34: Mercy Mhlophe | AG34: (012) 315 5598 | AH34: mercy.mhlope@treasury.gov.za | AI34: 367745 | AJ34: 379696 | AK34: 391128 | AL34: 287397 | AM34: 296851 | AN34: 305790 | AS34: Public Service and Administration | AT34: 616123 | AU34: 635270 | AV34: 654390 | AY34: Public Service and Administration | AZ34: 336536 | BA34: 346997 | BB34: 357447
Z35: 32 | AA35: 13 | AB35: Public Works and Infrastructure | AC35: George Tembo | AD35: (012) 315 5514 | AE35: George.Tembo@treasury.gov.za | AF35: Tumelo Movare | AG35: (012) 315 5279 | AH35: Tumelo.Movare@treasury.gov.za | AI35: 8233497 | AJ35: 8489921 | AK35: 8745554 | AL35: 713274 | AM35: 735443 | AN35: 757589 | AS35: Public Works and Infrastructure | AT35: 8233497 | AU35: 8489921 | AV35: 8745554 | AY35: Public Works and Infrastructure | AZ35: 713274 | BA35: 735443 | BB35: 757589
Z36: 33 | AA36: 35 | AB36: Science, Technology and Innovation | AC36: Ashley Ramasimu | AD36: (012) 315 5166 | AE36: Ashley.Ramasimu@treasury.gov.za | AF36: Thabiso Molewa | AG36: (012) 395 6780 | AH36: Thabiso.Molewa@treasury.gov.za | AI36: 10815433 | AJ36: 11120487 | AK36: 11455349 | AL36: 422717 | AM36: 435853 | AN36: 448975 | AS36: Science, Technology and Innovation | AT36: 10815433 | AU36: 11120487 | AV36: 11455349 | AY36: Science, Technology and Innovation | AZ36: 422717 | BA36: 435853 | BB36: 448975
Z37: 34 | AA37: 36 | AB37: Small Business Development | AC37: Bothwell Deka | AD37: (012) 395 6784 | AE37: Bothwell.Deka@treasury.gov.za | AF37: Humbelani Ramuedzisi | AG37: (012) 315 5320 | AH37: Humbelani.Ramuedzisi@treasury.gov.za | AI37: 3158268 | AJ37: 3256425 | AK37: 3354477 | AL37: 289603 | AM37: 298604 | AN37: 307595 | AS37: Small Business Development | AT37: 3158268 | AU37: 3256425 | AV37: 3354477 | AY37: Small Business Development | AZ37: 289603 | BA37: 298604 | BB37: 307595
Z38: 35 | AA38: 19 | AB38: Social Development | AC38: Yusuf Mayet | AD38: (012) 315 5189 | AE38: Yusuf.Mayet@treasury.gov.za | AF38: Lindi Mzankomo | AG38: (012) 315 5256 | AH38: Lindi.Mzankomo@treasury.gov.za | AI38: 277272930 | AJ38: 286620567 | AK38: 295251101 | AL38: 649392 | AM38: 669629 | AN38: 689795 | AS38: Social Development | AT38: 277272930 | AU38: 286620567 | AV38: 295251101 | AY38: Social Development | AZ38: 649392 | BA38: 669629 | BB38: 689795
Z39: 36 | AA39: 37 | AB39: Sport, Arts and Culture | AC39: Dennis Machobani | AD39: (012) 315 5269 | AE39: Dennis.Machobani@treasury.gov.za | AF39: Mabele Mdhluli | AG39: (012) 315 5573 | AH39: Mabele.Mdhluli@treasury.gov.za | AI39: 6460865 | AJ39: 6663530 | AK39: 6864167 | AL39: 475051 | AM39: 489737 | AN39: 504484 | AS39: Sport, Arts and Culture | AT39: 6460865 | AU39: 6663530 | AV39: 6864167 | AY39: Sport, Arts and Culture | AZ39: 475051 | BA39: 489737 | BB39: 504484
Z40: 37 | AA40: 14 | AB40: Statistics South Africa | AC40: Viwe Sobudula | AD40: (012) 315 5015 | AE40: Viwe.Sobudula@treasury.gov.za | AF40: Thobeka Mbonambi | AG40: (012) 395 6719 | AH40: Thobeka.Mbonambi@treasury.gov.za | AI40: 3094215 | AJ40: 3201635 | AK40: 3298037 | AL40: 1996462 | AM40: 2058509 | AN40: 2120497 | AS40: Statistics South Africa | AT40: 3094215 | AU40: 3201635 | AV40: 3298037 | AY40: Statistics South Africa | AZ40: 1996462 | BA40: 2058509 | BB40: 2120497
Z41: 38 | AA41: 1 | AB41: The Presidency | AC41: Viwe Sobudula | AD41: (012) 315 5015 | AE41: Viwe.Sobudula@treasury.gov.za | AF41: Yamkela Ngewu | AG41: (012) 315 5936 | AH41: Yamkela.Ngewu@treasury.gov.za | AI41: 880447 | AJ41: 905014 | AK41: 932262 | AL41: 591779 | AM41: 607374 | AN41: 625664 | AS41: The Presidency | AT41: 880447 | AU41: 905014 | AV41: 932262 | AY41: The Presidency | AZ41: 591779 | BA41: 607374 | BB41: 625664
Z42: 39 | AA42: 38 | AB42: Tourism | AC42: Rudzani Sikwari | AD42: (012) 315 5812 | AE42: Rudzani.Sikwari@treasury.gov.za | AF42: Phumelele Gulukunqu | AG42: (012) 315 5539 | AH42: Phumelele.Gulukunqu@treasury.gov.za | AI42: 2640637 | AJ42: 2722705 | AK42: 2804693 | AL42: 472215 | AM42: 486890 | AN42: 501554 | AS42: Tourism | AT42: 2640637 | AU42: 2722705 | AV42: 2804693 | AY42: Tourism | AZ42: 472215 | BA42: 486890 | BB42: 501554
Z43: 40 | AA43: 39 | AB43: Trade, Industry and Competition | AC43: Rudzani Sikhwari | AD43: (012) 315 5823 | AE43: rudzani.sikhwari@treasury.gov.za | AF43: Phumelele Gulukunqu | AG43: (012) 315 5539 | AH43: Phumelele.Gulukunqu@treasury.gov.za | AI43: 10601456 | AJ43: 10930944 | AK43: 11260095 | AL43: 1294447 | AM43: 1333127 | AN43: 1373267 | AS43: Trade, Industry and Competition | AT43: 10601456 | AU43: 10930944 | AV43: 11260095 | AY43: Trade, Industry and Competition | AZ43: 1294447 | BA43: 1333127 | BB43: 1373267
Z44: 41 | AA44: 15 | AB44: Traditional Affairs | AC44: Bongani Daka | AD44: (012) 315 5586 | AE44: Bongani.Daka@treasury.gov.za | AF44: Iqbal Mahomed Alli | AG44: (012) 315 5809 | AH44: Iqbal.Mahomed-Alli@treasury.gov.za | AI44: 265451 | AJ44: 274388 | AK44: 282650 | AL44: 150578 | AM44: 155730 | AN44: 160418 | AS44: Traditional Affairs | AT44: 265451 | AU44: 274388 | AV44: 282650 | AY44: Traditional Affairs | AZ44: 150578 | BA44: 155730 | BB44: 160418
Z45: 42 | AA45: 40 | AB45: Transport | AC45: Luyolo Ntlangula | AD45: (012) 315-5571 | AE45: luyolo.ntangula@treasury.gov.za | AF45: Resego Tekanyo | AG45: (012) 395-6786 | AH45: Resego.Tekanyo@treasury.gov.za | AI45: 99031245 | AJ45: 112301296 | AK45: 99385959 | AL45: 694610 | AM45: 716197 | AN45: 737763 | AS45: Transport | AT45: 99031245 | AU45: 112301296 | AV45: 99385959 | AY45: Transport | AZ45: 694610 | BA45: 716197 | BB45: 737763
Z46: 43 | AA46: 41 | AB46: Water and Sanitation | AC46: Bongani Daka | AD46: (012) 315 5586 | AE46: Bongani.Daka@treasury.gov.za | AF46: Iqbal Mahomed Alli | AG46: (012) 315 5809 | AH46: Iqbal.Mahomed-Alli@treasury.gov.za | AI46: 21295116 | AJ46: 27869270 | AK46: 24793867 | AL46: 2294407 | AM46: 2365719 | AN46: 2436952 | AS46: Water and Sanitation | AT46: 21295116 | AU46: 27869270 | AV46: 24793867 | AY46: Water and Sanitation | AZ46: 2294407 | BA46: 2365719 | BB46: 2436952
Z47: 44 | AA47: 20 | AB47: Women, Youth and Persons with Disabilities | AC47: Yusuf Mayet | AD47: (012) 315 5189 | AE47: Yusuf.Mayet@treasury.gov.za | AF47: Lindi Mzankomo | AG47: (012) 315 5256 | AH47: Lindi.Mzankomo@treasury.gov.za | AI47: 928850 | AJ47: 958608 | AK47: 987476 | AL47: 152455 | AM47: 157194 | AN47: 161929 | AS47: Women, Youth and Persons with Disabilities | AT47: 928850 | AU47: 958608 | AV47: 987476 | AY47: Women, Youth and Persons with Disabilities | AZ47: 152455 | BA47: 157194 | BB47: 161929
AI48: =SUM(AI4:AI47) -> 2433449257 | AJ48: 2533783576 | AK48: 2603012298 | AL48: 239713721 | AM48: 246342758 | AN48: 253760496
AI49: =AI48-SUM(AT$4:AT$47) -> 0 | AJ49: 0 | AK49: 0 | AL49: =AL48-SUM(AZ$4:AZ$47) -> 0 | AM49: 0 | AN49: 0
AI51: 2433449257 | AJ51: 2533783576 | AK51: 2603012298 | AL51: 239713721 | AM51: 246342758 | AN51: 253760496
AI52: =AI51-AI48 -> 0 | AJ52: 0 | AK52: 0 | AL52: 0 | AM52: 0 | AN52: 0

Sheet Notes
B42: Link to the MTEF Guidelines
B43: http://www.treasury.gov.za/publications/guidelines/default.aspx
R57: Click "Enable Content"
R69: Tick "Ignore Privacy Levels" box
R72: Click "Save"

Sheet Index

Sheet Pivot % growth
B16: Row Labels | C16: 2026/27 Revised baseline | D16: 2027/28 Revised baseline | E16: 2028/29 Revised baseline | F16: 2029/30 Revised baseline | G16: 2027/28 adjustment | H16: 2028/29 adjustment | I16: 2029/30 adjustment | J16: 2027/28 % adjustment | K16: 2028/29 % adjustment | L16: 2029/30 % adjustment | M16: % YoY 2027/28 | N16: % YoY 2028/29 | O16: % YoY 2029/30 | P16: Ave Ann growth History | Q16: Ave Ann growth MTEF
B17: Current payments | C17: 14095519 | D17: 14734638 | E17: 15193162 | F17: 15650637 | G17: 0 | H17: 0 | I17: 0 | J17: 0 | K17: 0 | L17: 0 | M17: 0.0453419984 | N17: 0.03111878283 | O17: 0.03011058528 | P17: 0.0639204141 | Q17: 0.03550050671
B18: Compensation of employees | C18: 13309755 | D18: 13912474 | E18: 14344859 | F18: 14776803 | G18: 0 | H18: 0 | I18: 0 | J18: 0 | K18: 0 | L18: 0 | M18: 0.0452840041 | N18: 0.03107894398 | O18: 0.03011141483 | P18: 0.06550378248 | Q18: 0.0354682989
B19: Goods and services | C19: 785764 | D19: 822164 | E19: 848303 | F19: 873834 | G19: 0 | H19: 0 | I19: 0 | J19: 0 | K19: 0 | L19: 0 | M19: 0.04632434166 | N19: 0.03179292696 | O19: 0.03009655748 | P19: 0.03844997707 | Q19: 0.03604575832
B20: Interest and rent on land | C20: 0 | D20: 0 | E20: 0 | F20: 0 | G20: 0 | H20: 0 | I20: 0 | J20: 0 | K20: 0 | L20: 0 | M20: 0 | N20: 0 | O20: 0 | P20: 0 | Q20: 0
B21: Transfers and subsidies | C21: 134361537 | D21: 140840804 | E21: 146085554 | F21: 150432230 | G21: 0 | H21: 0 | I21: 0 | J21: 0 | K21: 0 | L21: 0 | M21: 0.04822263234 | N21: 0.03723885302 | O21: 0.0297543178 | P21: 0.04307676407 | Q21: 0.03837759807
B22: Departmental agencies and accounts | C22: 78413731 | D22: 82035583 | E22: 85452713 | F22: 88919293 | G22: 0 | H22: 0 | I22: 0 | J22: 0 | K22: 0 | L22: 0 | M22: 0.04618900228 | N22: 0.04165424167 | O22: 0.04056723161 | P22: 0.04499778565 | Q22: 0.04280065228
B23: Foreign governments and international organisations | C23: 4152 | D23: 4318 | E23: 4453 | F23: 4587 | G23: 0 | H23: 0 | I23: 0 | J23: 0 | K23: 0 | L23: 0 | M23: 0.03998073218 | N23: 0.03126447429 | O23: 0.03009207276 | P23: 0.05829254264 | Q23: 0.03376969922
B24: Non-profit institutions | C24: 319090 | D24: 331825 | E24: 342137 | F24: 352439 | G24: 0 | H24: 0 | I24: 0 | J24: 0 | K24: 0 | L24: 0 | M24: 0.03991037012 | N24: 0.03107662171 | O24: 0.03011074511 | P24: 0.0368742909 | Q24: 0.03368985849
B25: Households | C25: 0 | D25: 0 | E25: 0 | F25: 0 | G25: 0 | H25: 0 | I25: 0 | J25: 0 | K25: 0 | L25: 0 | M25: 0 | N25: 0 | O25: 0 | P25: -1 | Q25: 0
B26: Higher education institutions | C26: 55624564 | D26: 58469078 | E26: 60286251 | F26: 61155911 | G26: 0 | H26: 0 | I26: 0 | J26: 0 | K26: 0 | L26: 0 | M26: 0.05113773116 | N26: 0.03107921421 | O26: 0.01442551138 | P26: 0.04056996925 | Q26: 0.03210513794
B27: Payments for capital assets | C27: 249430 | D27: 253781 | E27: 261082 | F27: 268943 | G27: 0 | H27: 0 | I27: 0 | J27: 0 | K27: 0 | L27: 0 | M27: 0.0174437718 | N27: 0.02876889917 | O27: 0.03010931432 | P27: 0.8541402428 | Q27: 0.0254248852
B28: Buildings and other fixed structures | C28: 217199 | D28: 225867 | E28: 232886 | F28: 239899 | G28: 0 | H28: 0 | I28: 0 | J28: 0 | K28: 0 | L28: 0 | M28: 0.03990810271 | N28: 0.0310758101 | O28: 0.03011344606 | P28: 1.246910091 | Q28: 0.03368973943
B29: Machinery and equipment | C29: 24882 | D29: 21024 | E29: 22007 | F29: 22669 | G29: 0 | H29: 0 | I29: 0 | J29: 0 | K29: 0 | L29: 0 | M29: -0.1550518447 | N29: 0.04675608828 | O29: 0.03008133776 | P29: 0.1433144984 | Q29: -0.03057170325
B30: Heritage assets | C30: 0 | D30: 0 | E30: 0 | F30: 0 | G30: 0 | H30: 0 | I30: 0 | J30: 0 | K30: 0 | L30: 0 | M30: 0 | N30: 0 | O30: 0 | P30: 0 | Q30: 0
B31: Specialised military assets | C31: 0 | D31: 0 | E31: 0 | F31: 0 | G31: 0 | H31: 0 | I31: 0 | J31: 0 | K31: 0 | L31: 0 | M31: 0 | N31: 0 | O31: 0 | P31: 0 | Q31: 0
B32: Biological assets | C32: 0 | D32: 0 | E32: 0 | F32: 0 | G32: 0 | H32: 0 | I32: 0 | J32: 0 | K32: 0 | L32: 0 | M32: 0 | N32: 0 | O32: 0 | P32: 0 | Q32: 0
B33: Land and sub-soil assets | C33: 0 | D33: 0 | E33: 0 | F33: 0 | G33: 0 | H33: 0 | I33: 0 | J33: 0 | K33: 0 | L33: 0 | M33: 0 | N33: 0 | O33: 0 | P33: 0 | Q33: 0
B34: Software and other intangible assets | C34: 7349 | D34: 6890 | E34: 6189 | F34: 6375 | G34: 0 | H34: 0 | I34: 0 | J34: 0 | K34: 0 | L34: 0 | M34: -0.06245747721 | N34: -0.1017416546 | O34: 0.03005332041 | P34: 0.3013001196 | Q34: -0.04628785338
B35: Payments for financial assets | C35: 0 | D35: 0 | E35: 0 | F35: 0 | G35: 0 | H35: 0 | I35: 0 | J35: 0 | K35: 0 | L35: 0 | M35: 0 | N35: 0 | O35: 0 | P35: -1 | Q35: 0
B36: Payments for financial assets | C36: 0 | D36: 0 | E36: 0 | F36: 0 | G36: 0 | H36: 0 | I36: 0 | J36: 0 | K36: 0 | L36: 0 | M36: 0 | N36: 0 | O36: 0 | P36: -1 | Q36: 0
B37: Grand Total | C37: 148706486 | D37: 155829223 | E37: 161539798 | F37: 166351810 | G37: 0 | H37: 0 | I37: 0 | J37: 0 | K37: 0 | L37: 0 | M37: 0.04789795786 | N37: 0.03664636767 | O37: 0.02978839926 | P37: 0.04546383932 | Q37: 0.03808410158

Sheet Pivot_T
B11: Econ4 | C11: (All)
B12: DOR | C12: (All)
B13: Econ2 | C13: (All)
B14: Econ3 | C14: (All)
C16: Column Labels
C17: Baseline | G17: Revised baseline
B18: Row Labels | C18: 2026/27 | D18: 2027/28 | E18: 2028/29 | F18: 2029/30 | G18: 2026/27 | H18: 2027/28 | I18: 2028/29 | J18: 2029/30
B19: Value
B20: Administration | C20: 677017 | D20: 708026 | E20: 728040 | F20: 749958 | G20: 677017 | H20: 708026 | I20: 728040 | J20: 749958
B21: Planning, Policy and Strategy | C21: 2364269 | D21: 3340346 | E21: 3441295 | F21: 2599272 | G21: 2364269 | H21: 3340346 | I21: 3441295 | J21: 2599272
B22: University Education | C22: 100142392 | D22: 103885632 | E22: 107114407 | F22: 110339769 | G22: 100142392 | H22: 103885632 | I22: 107114407 | J22: 110339769
B23: Technical and Vocational Education and Training | C23: 14718360 | D23: 15357734 | E23: 15842872 | F23: 16319921 | G23: 14718360 | H23: 15357734 | I23: 15842872 | J23: 16319921
B24: Skills Development | C24: 365563 | D24: 375222 | E24: 383974 | F24: 395532 | G24: 365563 | H24: 375222 | I24: 383974 | J24: 395532
B25: Community Education and Training | C25: 3303732 | D25: 3451625 | E25: 3558738 | F25: 3665897 | G25: 3303732 | H25: 3451625 | I25: 3558738 | J25: 3665897
B26: Direct charge against the National Revenue Fund | C26: 27135153 | D26: 28710638 | E26: 30470472 | F26: 32281461 | G26: 27135153 | H26: 28710638 | I26: 30470472 | J26: 32281461
B27: % of total
B28: Administration | C28: 0.004552706598 | D28: 0.004543602197 | E28: 0.004506876999 | F28: 0.004508264743 | G28: 0.004552706598 | H28: 0.004543602197 | I28: 0.004506876999 | J28: 0.004508264743
B29: Planning, Policy and Strategy | C29: 0.0158988963 | D29: 0.02143594081 | E29: 0.02130307851 | F29: 0.0156251501 | G29: 0.0158988963 | H29: 0.02143594081 | I29: 0.02130307851 | J29: 0.0156251501
B30: University Education | C30: 0.6734231619 | D30: 0.6666633511 | E30: 0.6630837003 | F30: 0.6632916648 | G30: 0.6734231619 | H30: 0.6666633511 | I30: 0.6630837003 | J30: 0.6632916648
B31: Technical and Vocational Education and Training | C31: 0.09897591151 | D31: 0.09855490327 | E31: 0.0980741105 | F31: 0.09810485981 | G31: 0.09897591151 | H31: 0.09855490327 | I31: 0.0980741105 | J31: 0.09810485981
B32: Skills Development | C32: 0.002458285512 | D32: 0.002407905223 | E32: 0.002376962239 | F32: 0.002377683778 | G32: 0.002458285512 | H32: 0.002407905223 | I32: 0.002376962239 | J32: 0.002377683778
B33: Community Education and Training | C33: 0.02221646203 | D33: 0.02215004948 | E33: 0.02203010059 | F33: 0.022037013 | G33: 0.02221646203 | H33: 0.02215004948 | I33: 0.02203010059 | J33: 0.022037013
B34: Direct charge against the National Revenue Fund | C34: 0.1824745761 | D34: 0.1842442479 | E34: 0.1886251709 | F34: 0.1940553637 | G34: 0.1824745761 | H34: 0.1842442479 | I34: 0.1886251709 | J34: 0.1940553637
B35: Total Value | C35: 148706486 | D35: 155829223 | E35: 161539798 | F35: 166351810 | G35: 148706486 | H35: 155829223 | I35: 161539798 | J35: 166351810
B36: Total % of total | C36: 1 | D36: 1 | E36: 1 | F36: 1 | G36: 1 | H36: 1 | I36: 1 | J36: 1

Sheet Service delivery impact
B15: Note: Data in the table below is sourced from the individual SRT sheets. Any adjustments should be made on the SRT sheets. Ajustments made directly on this table will be over-written when the data is refreshed! …remember to refresh.
B17: Impact area | C17: Unit no | D17: Unit name | E17: Comment

Sheet Performance impact
B15: Note: Data in the table below is sourced from the individual SRT sheets. Any adjustments should be made on the SRT sheets. Ajustments made directly on this table will be over-written when the data is refreshed! …remember to refresh.
B17: Impact area | C17: Unit no | D17: Unit name | E17: Performance indicator | F17: 2026/27 Current performance | G17: 2026/27 Performance @ benchmark level | H17: 2026/27 Change | I17: 2027/28 Original target | J17: 2027/28 Revised target | K17: 2027/28 Change | L17: 2028/29 Original target | M17: 2028/29 Revised target | N17: 2028/29 Change | O17: 2029/30 Original target | P17: 2029/30 Revised target | Q17: 2029/30 Change | R17: Comment

Sheet Pivot Infra impact
B14: Impact area | C14: (All)
B16: Value | C16: Column Labels
C17: 2026/27 | D17: 2027/28 | E17: 2028/29 | F17: 2029/30
B18: Row Labels | C18: Change | D18: Change | E18: Change | F18: Change
B19: (blank) | C19: 0 | D19: 0 | E19: 0 | F19: 0
B20: Grand Total | C20: 0 | D20: 0 | E20: 0 | F20: 0

Sheet Pivot Personnel impact
B16: Value | C16: Column Labels
C17: 2026/27 | D17: 2027/28 | E17: 2028/29 | F17: 2029/30
B18: Row Labels | C18: Change in number | D18: Change in number | E18: Change in number | F18: Change in number
B19: Levels 01 - 06 | C19: 0 | D19: 0 | E19: 0 | F19: 0
B20: Levels 07 - 12 | C20: 0 | D20: 0 | E20: 0 | F20: 0
B21: Levels 13 - 16 | C21: 0 | D21: 0 | E21: 0 | F21: 0
B22: Other | C22: 0 | D22: 0 | E22: 0 | F22: 0
B23: Grand Total | C23: 0 | D23: 0 | E23: 0 | F23: 0

Sheet Pivot HRBP
B12: Salary level | C12: (All)
B13: Programme No | C13: (All)
B15: Number | C15: Columns
C16: 2025/26 | I16: 2026/27 | R16: 2027/28 | AA16: 2028/29 | AJ16: 2029/30
B17: Row Labels | C17: Unit Costs | D17: Once-off Payments per person | E17: Establishment: Number of funded posts additional to the establishment | F17: FTE Headcount | G17: Estimated Outcome | H17: Establishment: Number of funded posts as at 31 March 2025 | I17: Initial Headcount | J17: Unit Costs | K17: Once-off Payments per person | L17: Vacant funded posts to be filled | M17: Headcount reductions to be made | N17: Revised Headcount | O17: Cost of vacant posts to be filled | P17: Savings from headcount reductions | Q17: Revised Estimate | R17: Initial Headcount | S17: Unit Costs | T17: Once-off Payments per person | U17: Vacant funded posts to be filled | V17: Headcount reductions to be made | W17: Revised Headcount | X17: Cost of vacant posts to be filled | Y17: Savings from headcount reductions | Z17: MTEF Estimate | AA17: Initial Headcount | AB17: Unit Costs | AC17: Once-off Payments per person | AD17: Vacant funded posts to be filled | AE17: Headcount reductions to be made | AF17: Revised Headcount | AG17: Cost of vacant posts to be filled | AH17: Savings from headcount reductions | AI17: MTEF Estimate | AJ17: Initial Headcount | AK17: Unit Costs | AL17: Once-off Payments per person | AM17: Vacant funded posts to be filled | AN17: Headcount reductions to be made | AO17: Revised Headcount | AP17: Cost of vacant posts to be filled | AQ17: Savings from headcount reductions | AR17: MTEF Estimate
B18: Levels 01 - 06 | C18: 0 | D18: 0 | E18: 0 | F18: 0 | G18: 0 | H18: 0 | I18: 0 | J18: 0 | K18: 0 | L18: 0 | M18: 0 | N18: 0 | O18: 0 | P18: 0 | Q18: 0 | R18: 0 | S18: 0 | T18: 0 | U18: 0 | V18: 0 | W18: 0 | X18: 0 | Y18: 0 | Z18: 0 | AA18: 0 | AB18: 0 | AC18: 0 | AD18: 0 | AE18: 0 | AF18: 0 | AG18: 0 | AH18: 0 | AI18: 0 | AJ18: 0 | AK18: 0 | AL18: 0 | AM18: 0 | AN18: 0 | AO18: 0 | AP18: 0 | AQ18: 0 | AR18: 0
B19: Levels 07 - 12 | C19: 0 | D19: 0 | E19: 0 | F19: 0 | G19: 0 | H19: 0 | I19: 0 | J19: 0 | K19: 0 | L19: 0 | M19: 0 | N19: 0 | O19: 0 | P19: 0 | Q19: 0 | R19: 0 | S19: 0 | T19: 0 | U19: 0 | V19: 0 | W19: 0 | X19: 0 | Y19: 0 | Z19: 0 | AA19: 0 | AB19: 0 | AC19: 0 | AD19: 0 | AE19: 0 | AF19: 0 | AG19: 0 | AH19: 0 | AI19: 0 | AJ19: 0 | AK19: 0 | AL19: 0 | AM19: 0 | AN19: 0 | AO19: 0 | AP19: 0 | AQ19: 0 | AR19: 0
B20: Levels 13 - 16 | C20: 0 | D20: 0 | E20: 0 | F20: 0 | G20: 0 | H20: 0 | I20: 0 | J20: 0 | K20: 0 | L20: 0 | M20: 0 | N20: 0 | O20: 0 | P20: 0 | Q20: 0 | R20: 0 | S20: 0 | T20: 0 | U20: 0 | V20: 0 | W20: 0 | X20: 0 | Y20: 0 | Z20: 0 | AA20: 0 | AB20: 0 | AC20: 0 | AD20: 0 | AE20: 0 | AF20: 0 | AG20: 0 | AH20: 0 | AI20: 0 | AJ20: 0 | AK20: 0 | AL20: 0 | AM20: 0 | AN20: 0 | AO20: 0 | AP20: 0 | AQ20: 0 | AR20: 0
B21: Other | C21: 0 | D21: 0 | E21: 0 | F21: 0 | G21: 0 | H21: 0 | I21: 0 | J21: 0 | K21: 0 | L21: 0 | M21: 0 | N21: 0 | O21: 0 | P21: 0 | Q21: 0 | R21: 0 | S21: 0 | T21: 0 | U21: 0 | V21: 0 | W21: 0 | X21: 0 | Y21: 0 | Z21: 0 | AA21: 0 | AB21: 0 | AC21: 0 | AD21: 0 | AE21: 0 | AF21: 0 | AG21: 0 | AH21: 0 | AI21: 0 | AJ21: 0 | AK21: 0 | AL21: 0 | AM21: 0 | AN21: 0 | AO21: 0 | AP21: 0 | AQ21: 0 | AR21: 0
B22: Grand Total | C22: 0 | D22: 0 | E22: 0 | F22: 0 | G22: 0 | H22: 0 | I22: 0 | J22: 0 | K22: 0 | L22: 0 | M22: 0 | N22: 0 | O22: 0 | P22: 0 | Q22: 0 | R22: 0 | S22: 0 | T22: 0 | U22: 0 | V22: 0 | W22: 0 | X22: 0 | Y22: 0 | Z22: 0 | AA22: 0 | AB22: 0 | AC22: 0 | AD22: 0 | AE22: 0 | AF22: 0 | AG22: 0 | AH22: 0 | AI22: 0 | AJ22: 0 | AK22: 0 | AL22: 0 | AM22: 0 | AN22: 0 | AO22: 0 | AP22: 0 | AQ22: 0 | AR22: 0

Sheet Data
CN1: =SUM(CO1:CR1) -> 0 | CO1: =COUNTIF(Dataset[2026/27 Revised baseline],"<0") -> 0 | CP1: =COUNTIF(Dataset[2027/28 Revised baseline],"<0") -> 0 | CQ1: =COUNTIF(Dataset[2028/29 Revised baseline],"<0") -> 0 | CR1: =COUNTIF(Dataset[2029/30 Revised baseline],"<0") -> 0
AZ2: Spending review topics…
AY3: 1 | AZ3: Spending review topic 1 | CP3: =COUNTIF(Dataset[2027/28 Revised baseline],"<0") -> 0 | CQ3: =COUNTIF(Dataset[2028/29 Revised baseline],"<0") -> 0 | CR3: =COUNTIF(Dataset[2029/30 Revised baseline],"<0") -> 0
AY4: 2 | AZ4: Spending review topic 2
AY5: 3 | AZ5: Spending review topic 3
AY6: 4 | AZ6: Spending review topic 4 | CP6: =MyYear5 -> 2027/28 | CQ6: =MyYear6 -> 2028/29 | CR6: =MyYear7 -> 2029/30
CN8: Baseline ceiling: | CP8: =INDEX(DeptCeiling,MATCH(MyVoteNo,VoteNoList,0),1) -> 155829223 | CQ8: =INDEX(DeptCeiling,MATCH(MyVoteNo,VoteNoList,0),2) -> 161539798 | CR8: =INDEX(DeptCeiling,MATCH(MyVoteNo,VoteNoList,0),3) -> 166351810
CN9: (Over)/Under | CP9: =CP8-SUM(Dataset[2027/28 Revised baseline]) -> 0 | CQ9: =CQ8-SUM(Dataset[2028/29 Revised baseline]) -> 0 | CR9: =CR8-SUM(Dataset[2029/30 Revised baseline]) -> 0
CN11: CoE budget: | CP11: =INDEX(CoECeiling,MATCH(MyVoteNo,VoteNoList,0),1) -> 13912474 | CQ11: =INDEX(CoECeiling,MATCH(MyVoteNo,VoteNoList,0),2) -> 14344859 | CR11: =INDEX(CoECeiling,MATCH(MyVoteNo,VoteNoList,0),3) -> 14776803
CN12: (Over)/Under | CP12: =CP11-SUMIF(Dataset[Econ3],"Compensation of employees",Dataset[2027/28 Revised baseline]) -> 0 | CQ12: =CQ11-SUMIF(Dataset[Econ3],"Compensation of employees",Dataset[2028/29 Revised baseline]) -> 0 | CR12: =CR11-SUMIF(Dataset[Econ3],"Compensation of employees",Dataset[2029/30 Revised baseline]) -> 0
CO14: …red shaded cells below indicate negative budgets.
AI15: =AI18 -> 2022/23 | AJ15: =AJ18 -> 2023/24 | AK15: 2024/25 | AL15: 2025/26 Main appropriation | AM15: 2025/26 Adjusted appropriation | AN15: 2025/26 Revised estimate | AO15: 2025/26 Preliminary outcome | AP15: 2026/27 Baseline | AQ15: 2027/28 Baseline | AR15: 2028/29 Baseline | AS15: 2029/30 Baseline | AT15: 2027/28 From - Spending review Topic 1 | AU15: 2028/29 From - Spending review Topic 1 | AV15: 2029/30 From - Spending review Topic 1 | AW15: 2027/28 To - Spending review Topic 1 | AX15: 2028/29 To - Spending review Topic 1 | AY15: 2029/30 To - Spending review Topic 1 | AZ15: 2027/28 From - Spending review Topic 2 | BA15: 2028/29 From - Spending review Topic 2 | BB15: 2029/30 From - Spending review Topic 2 | BC15: 2027/28 To - Spending review Topic 2 | BD15: 2028/29 To - Spending review Topic 2 | BE15: 2029/30 To - Spending review Topic 2 | BF15: 2027/28 From - Spending review Topic 3 | BG15: 2028/29 From - Spending review Topic 3 | BH15: 2029/30 From - Spending review Topic 3 | BI15: 2027/28 To - Spending review Topic 3 | BJ15: 2028/29 To - Spending review Topic 3 | BK15: 2029/30 To - Spending review Topic 3 | BL15: 2027/28 From - Spending review Topic 4 | BM15: 2028/29 From - Spending review Topic 4 | BN15: 2029/30 From - Spending review Topic 4 | BO15: 2027/28 To - Spending review Topic 4 | BP15: 2028/29 To - Spending review Topic 4 | BQ15: 2029/30 To - Spending review Topic 4 | BR15: 2027/28 From - Other reallocations | BS15: 2028/29 From - Other reallocations | BT15: 2029/30 From - Other reallocations | BU15: 2027/28 To - Other reallocations | BV15: 2028/29 To - Other reallocations | BW15: 2029/30 To - Other reallocations | BX15: 2026/27 Targeted savings | BY15: 2027/28 Targeted savings | BZ15: 2028/29 Targeted savings | CA15: 2029/30 Targeted savings | CB15: 2027/28 From - Total | CC15: 2028/29 From - Total | CD15: 2029/30 From - Total | CE15: 2027/28 To - Total | CF15: 2028/29 To - Total | CG15: 2029/30 To - Total | CH15: 2027/28 Total decrease | CI15: 2028/29 Total decrease | CJ15: 2029/30 Total decrease | CK15: 2026/27 Total change | CL15: 2027/28 Total change | CM15: 2028/29 Total change | CN15: 2029/30 Total change | CO15: 2026/27 Revised baseline | CP15: 2027/28 Revised baseline | CQ15: 2028/29 Revised baseline | CR15: 2029/30 Revised baseline | CS15: =CS18 -> 2022/23 PEI Actual | CT15: 2023/24 PEI Actual | CU15: 2024/25 PEI Actual | CV15: 2025/26 PEI Preliminary outcome | CW15: 2026/27 PEI Baseline | CX15: 2027/28 PEI Baseline | CY15: 2028/29 PEI Baseline | CZ15: 2029/30 PEI Baseline | DA15: =DA18 -> 2022/23 Other employment programmes Actual | DB15: 2023/24 Other employment programmes Actual | DC15: 2024/25 Other employment programmes Actual | DD15: 2025/26 Other employment programmes Preliminary outcome | DE15: 2026/27 Other employment programmes Baseline | DF15: 2027/28 Other employment programmes Baseline | DG15: 2028/29 Other employment programmes Baseline | DH15: 2029/30 Other employment programmes Baseline | DI15: =DI18 -> 2022/23 Sector programmes Actual | DJ15: 2023/24 Sector programmes Actual | DK15: 2024/25 Sector programmes Actual | DL15: 2025/26 Sector programmes Preliminary outcome | DM15: 2026/27 Sector programmes Baseline | DN15: 2027/28 Sector programmes Baseline | DO15: 2028/29 Sector programmes Baseline | DP15: 2029/30 Sector programmes Baseline
AH16: Subtotal: | AI16: =SUBTOTAL(9,Dataset[2022/23]) -> 130083567 | AJ16: =SUBTOTAL(9,Dataset[2023/24]) -> 130137621 | AK16: =SUBTOTAL(9,Dataset[2024/25]) -> 136771184 | AL16: =SUBTOTAL(9,Dataset[2025/26 Main appropriation]) -> 142447660 | AM16: =SUBTOTAL(9,Dataset[2025/26 Adjusted appropriation]) -> 142420266 | AN16: =SUBTOTAL(9,Dataset[2025/26 Revised estimate]) -> 142199266 | AO16: =SUBTOTAL(9,Dataset[2025/26 Preliminary outcome]) -> 13290365 | AP16: =SUBTOTAL(9,Dataset[2026/27 Baseline]) -> 148706486 | AQ16: =SUBTOTAL(9,Dataset[2027/28 Baseline]) -> 155829223 | AR16: =SUBTOTAL(9,Dataset[2028/29 Baseline]) -> 161539798 | AS16: =SUBTOTAL(9,Dataset[2029/30 Baseline]) -> 166351810 | AT16: =SUBTOTAL(9,Dataset[2027/28 From - Spending review Topic 1]) -> 0 | AU16: =SUBTOTAL(9,Dataset[2028/29 From - Spending review Topic 1]) -> 0 | AV16: =SUBTOTAL(9,Dataset[2029/30 From - Spending review Topic 1]) -> 0 | AW16: =SUBTOTAL(9,Dataset[2027/28 To - Spending review Topic 1]) -> 0 | AX16: =SUBTOTAL(9,Dataset[2028/29 To - Spending review Topic 1]) -> 0 | AY16: =SUBTOTAL(9,Dataset[2029/30 To - Spending review Topic 1]) -> 0 | AZ16: =SUBTOTAL(9,Dataset[2027/28 From - Spending review Topic 2]) -> 0 | BA16: =SUBTOTAL(9,Dataset[2028/29 From - Spending review Topic 2]) -> 0 | BB16: =SUBTOTAL(9,Dataset[2029/30 From - Spending review Topic 2]) -> 0 | BC16: =SUBTOTAL(9,Dataset[2027/28 To - Spending review Topic 2]) -> 0 | BD16: =SUBTOTAL(9,Dataset[2028/29 To - Spending review Topic 2]) -> 0 | BE16: =SUBTOTAL(9,Dataset[2029/30 To - Spending review Topic 2]) -> 0 | BF16: =SUBTOTAL(9,Dataset[2027/28 From - Spending review Topic 3]) -> 0 | BG16: =SUBTOTAL(9,Dataset[2028/29 From - Spending review Topic 3]) -> 0 | BH16: =SUBTOTAL(9,Dataset[2029/30 From - Spending review Topic 3]) -> 0 | BI16: =SUBTOTAL(9,Dataset[2027/28 To - Spending review Topic 3]) -> 0 | BJ16: =SUBTOTAL(9,Dataset[2028/29 To - Spending review Topic 3]) -> 0 | BK16: =SUBTOTAL(9,Dataset[2029/30 To - Spending review Topic 3]) -> 0 | BL16: =SUBTOTAL(9,Dataset[2027/28 From - Spending review Topic 4]) -> 0 | BM16: =SUBTOTAL(9,Dataset[2028/29 From - Spending review Topic 4]) -> 0 | BN16: =SUBTOTAL(9,Dataset[2029/30 From - Spending review Topic 4]) -> 0 | BO16: =SUBTOTAL(9,Dataset[2027/28 To - Spending review Topic 4]) -> 0 | BP16: =SUBTOTAL(9,Dataset[2028/29 To - Spending review Topic 4]) -> 0 | BQ16: =SUBTOTAL(9,Dataset[2029/30 To - Spending review Topic 4]) -> 0 | BR16: =SUBTOTAL(9,Dataset[2027/28 From - Other reallocations]) -> 0 | BS16: =SUBTOTAL(9,Dataset[2028/29 From - Other reallocations]) -> 0 | BT16: =SUBTOTAL(9,Dataset[2029/30 From - Other reallocations]) -> 0 | BU16: =SUBTOTAL(9,Dataset[2027/28 To - Other reallocations]) -> 0 | BV16: =SUBTOTAL(9,Dataset[2028/29 To - Other reallocations]) -> 0 | BW16: =SUBTOTAL(9,Dataset[2029/30 To - Other reallocations]) -> 0 | BX16: =SUBTOTAL(9,Dataset[2026/27 Targeted savings]) -> 0 | BY16: =SUBTOTAL(9,Dataset[2027/28 Targeted savings]) -> 0 | BZ16: =SUBTOTAL(9,Dataset[2028/29 Targeted savings]) -> 0 | CA16: =SUBTOTAL(9,Dataset[2029/30 Targeted savings]) -> 0 | CB16: =SUBTOTAL(9,Dataset[2027/28 From - Total]) -> 0 | CC16: =SUBTOTAL(9,Dataset[2028/29 From - Total]) -> 0 | CD16: =SUBTOTAL(9,Dataset[2029/30 From - Total]) -> 0 | CE16: =SUBTOTAL(9,Dataset[2027/28 To - Total]) -> 0 | CF16: =SUBTOTAL(9,Dataset[2028/29 To - Total]) -> 0 | CG16: =SUBTOTAL(9,Dataset[2029/30 To - Total]) -> 0 | CH16: =SUBTOTAL(9,Dataset[2027/28 Total decrease]) -> 0 | CI16: =SUBTOTAL(9,Dataset[2028/29 Total decrease]) -> 0 | CJ16: =SUBTOTAL(9,Dataset[2029/30 Total decrease]) -> 0 | CK16: =SUBTOTAL(9,Dataset[2026/27 Total change]) -> 0 | CL16: =SUBTOTAL(9,Dataset[2027/28 Total change]) -> 0 | CM16: =SUBTOTAL(9,Dataset[2028/29 Total change]) -> 0 | CN16: =SUBTOTAL(9,Dataset[2029/30 Total change]) -> 0 | CO16: =SUBTOTAL(9,Dataset[2026/27 Revised baseline]) -> 148706486 | CP16: =SUBTOTAL(9,Dataset[2027/28 Revised baseline]) -> 155829223 | CQ16: =SUBTOTAL(9,Dataset[2028/29 Revised baseline]) -> 161539798 | CR16: =SUBTOTAL(9,Dataset[2029/30 Revised baseline]) -> 166351810 | CS16: =SUBTOTAL(9,Dataset[2022/23 PEI Actual]) -> 0 | CT16: =SUBTOTAL(9,Dataset[2023/24 PEI Actual]) -> 0 | CU16: =SUBTOTAL(9,Dataset[2024/25 PEI Actual]) -> 0 | CV16: =SUBTOTAL(9,Dataset[2025/26 PEI Preliminary outcome]) -> 0 | CW16: =SUBTOTAL(9,Dataset[2026/27 PEI Baseline]) -> 0 | CX16: =SUBTOTAL(9,Dataset[2027/28 PEI Baseline]) -> 0 | CY16: =SUBTOTAL(9,Dataset[2028/29 PEI Baseline]) -> 0 | CZ16: =SUBTOTAL(9,Dataset[2029/30 PEI Baseline]) -> 0 | DA16: =SUBTOTAL(9,Dataset[2022/23 Other employment programmes Actual]) -> 0 | DB16: =SUBTOTAL(9,Dataset[2023/24 Other employment programmes Actual]) -> 0 | DC16: =SUBTOTAL(9,Dataset[2024/25 Other employment programmes Actual]) -> 0 | DD16: =SUBTOTAL(9,Dataset[2025/26 Other employment programmes Preliminary outcome]) -> 0 | DE16: =SUBTOTAL(9,Dataset[2026/27 Other employment programmes Baseline]) -> 0 | DF16: =SUBTOTAL(9,Dataset[2027/28 Other employment programmes Baseline]) -> 0 | DG16: =SUBTOTAL(9,Dataset[2028/29 Other employment programmes Baseline]) -> 0 | DH16: =SUBTOTAL(9,Dataset[2029/30 Other employment programmes Baseline]) -> 0 | DI16: =SUBTOTAL(9,Dataset[2022/23 Sector programmes Actual]) -> 0 | DJ16: =SUBTOTAL(9,Dataset[2023/24 Sector programmes Actual]) -> 0 | DK16: =SUBTOTAL(9,Dataset[2024/25 Sector programmes Actual]) -> 0 | DL16: =SUBTOTAL(9,Dataset[2025/26 Sector programmes Preliminary outcome]) -> 0 | DM16: =SUBTOTAL(9,Dataset[2026/27 Sector programmes Baseline]) -> 0 | DN16: =SUBTOTAL(9,Dataset[2027/28 Sector programmes Baseline]) -> 0 | DO16: =SUBTOTAL(9,Dataset[2028/29 Sector programmes Baseline]) -> 0 | DP16: =SUBTOTAL(9,Dataset[2029/30 Sector programmes Baseline]) -> 0
AT17: ="…"&SRTopic1 -> …Spending review topic 1 | AZ17: ="…"&SRTopic2 -> …Spending review topic 2 | BF17: ="…"&SRTopic3 -> …Spending review topic 3 | BL17: ="…"&SRTopic4 -> …Spending review topic 4 | BR17: …Reallocations other than spending reviews | BX17: …Targeted savings | CO17: =IF(CO1<>0,"Negative budgets","") ->  | CS17: Presidential Employment Initiative (PEI) | DA17: Employment Programmes | DI17: Sector programmes having a strong employment impact
A18: Combo_DoR | B18: Combo_Econ | C18: Budget Year | D18: Process | E18: Vote No. - N | F18: Programme No. - N | G18: Subprogramme No. - N | H18: Index - N | I18: Index - N2 | J18: Vote No. | K18: Programme No. | L18: Subprogramme No. | M18: Index | N18: Index2 | O18: UID | P18: Econ1_IDn | Q18: Econ2_IDn | R18: Econ3_IDn | S18: Econ4_IDn | T18: Econ5_IDn | U18: Econ_UID | V18: Province | W18: Department | X18: Programme | Y18: Subprogramme | Z18: Transfers and subsidies / Payments for financial assets detail | AA18: Econ1 | AB18: Econ2 | AC18: Econ3 | AD18: Econ4 | AE18: Econ5 | AF18: Function group | AG18: Technical group | AH18: DOR | AI18: 2022/23 | AJ18: 2023/24 | AK18: 2024/25 | AL18: 2025/26 Main appropriation | AM18: 2025/26 Adjusted appropriation | AN18: 2025/26 Revised estimate | AO18: 2025/26 Preliminary outcome | AP18: 2026/27 Baseline | AQ18: 2027/28 Baseline | AR18: 2028/29 Baseline | AS18: 2029/30 Baseline | AT18: 2027/28 From - Spending review Topic 1 | AU18: 2028/29 From - Spending review Topic 1 | AV18: 2029/30 From - Spending review Topic 1 | AW18: 2027/28 To - Spending review Topic 1 | AX18: 2028/29 To - Spending review Topic 1 | AY18: 2029/30 To - Spending review Topic 1 | AZ18: 2027/28 From - Spending review Topic 2 | BA18: 2028/29 From - Spending review Topic 2 | BB18: 2029/30 From - Spending review Topic 2 | BC18: 2027/28 To - Spending review Topic 2 | BD18: 2028/29 To - Spending review Topic 2 | BE18: 2029/30 To - Spending review Topic 2 | BF18: 2027/28 From - Spending review Topic 3 | BG18: 2028/29 From - Spending review Topic 3 | BH18: 2029/30 From - Spending review Topic 3 | BI18: 2027/28 To - Spending review Topic 3 | BJ18: 2028/29 To - Spending review Topic 3 | BK18: 2029/30 To - Spending review Topic 3 | BL18: 2027/28 From - Spending review Topic 4 | BM18: 2028/29 From - Spending review Topic 4 | BN18: 2029/30 From - Spending review Topic 4 | BO18: 2027/28 To - Spending review Topic 4 | BP18: 2028/29 To - Spending review Topic 4 | BQ18: 2029/30 To - Spending review Topic 4 | BR18: 2027/28 From - Other reallocations | BS18: 2028/29 From - Other reallocations | BT18: 2029/30 From - Other reallocations | BU18: 2027/28 To - Other reallocations | BV18: 2028/29 To - Other reallocations | BW18: 2029/30 To - Other reallocations | BX18: 2026/27 Targeted savings | BY18: 2027/28 Targeted savings | BZ18: 2028/29 Targeted savings | CA18: 2029/30 Targeted savings | CB18: 2027/28 From - Total | CC18: 2028/29 From - Total | CD18: 2029/30 From - Total | CE18: 2027/28 To - Total | CF18: 2028/29 To - Total | CG18: 2029/30 To - Total | CH18: 2027/28 Total decrease | CI18: 2028/29 Total decrease | CJ18: 2029/30 Total decrease | CK18: 2026/27 Total change | CL18: 2027/28 Total change | CM18: 2028/29 Total change | CN18: 2029/30 Total change | CO18: 2026/27 Revised baseline | CP18: 2027/28 Revised baseline | CQ18: 2028/29 Revised baseline | CR18: 2029/30 Revised baseline | CS18: 2022/23 PEI Actual | CT18: 2023/24 PEI Actual | CU18: 2024/25 PEI Actual | CV18: 2025/26 PEI Preliminary outcome | CW18: 2026/27 PEI Baseline | CX18: 2027/28 PEI Baseline | CY18: 2028/29 PEI Baseline | CZ18: 2029/30 PEI Baseline | DA18: 2022/23 Other employment programmes Actual | DB18: 2023/24 Other employment programmes Actual | DC18: 2024/25 Other employment programmes Actual | DD18: 2025/26 Other employment programmes Preliminary outcome | DE18: 2026/27 Other employment programmes Baseline | DF18: 2027/28 Other employment programmes Baseline | DG18: 2028/29 Other employment programmes Baseline | DH18: 2029/30 Other employment programmes Baseline | DI18: 2022/23 Sector programmes Actual | DJ18: 2023/24 Sector programmes Actual | DK18: 2024/25 Sector programmes Actual | DL18: 2025/26 Sector programmes Preliminary outcome | DM18: 2026/27 Sector programmes Baseline | DN18: 2027/28 Sector programmes Baseline | DO18: 2028/29 Sector programmes Baseline | DP18: 2029/30 Sector programmes Baseline
A19: NAT|Non-transfer | B19: 17|Salaries and wages | C19: 2027_28 | D19: MTEC2027 | E19: 17 | F19: 1 | G19: 1 | H19: 16214 | I19: 1 | J19: 17 | K19: 01 | L19: 01 | M19: 016214 | N19: 000001 | O19: 17|01|01|000001 | P19: 01 | Q19: 01 | R19: 01 | S19: 01 | T19: 01 | U19: 01|01|01|01|01 | V19: National | W19: Higher Education | X19: Administration | Y19: Ministry | Z19: Non-transfer | AA19: Current | AB19: Current payments | AC19: Compensation of employees | AD19: Salaries and wages | AE19: Salaries and wages | AF19: Learning and culture | AG19: Post-school education and training | AH19: NAT | AI19: 0 | AJ19: 0 | AK19: 0 | AL19: 39463 | AM19: 39663 | AN19: 35663 | AO19: 31091 | AP19: 32760 | AQ19: 34594 | AR19: 35911 | AS19: 36992 | CB19: =Dataset[[#This Row],[2027/28 From - Spending review Topic 1]]+Dataset[[#This Row],[2027/28 From - Spending review Topic 2]]+Dataset[[#This Row],[2027/28 From - Spending review Topic 3]]+Dataset[[#This Row],[2027/28 From - Spending review Topic 4]]+Dataset[[#This Row],[2027/28 From - Other reallocations]] -> 0 | CC19: =Dataset[[#This Row],[2028/29 From - Spending review Topic 1]]+Dataset[[#This Row],[2028/29 From - Spending review Topic 2]]+Dataset[[#This Row],[2028/29 From - Spending review Topic 3]]+Dataset[[#This Row],[2028/29 From - Spending review Topic 4]]+Dataset[[#This Row],[2028/29 From - Other reallocations]] -> 0 | CD19: =Dataset[[#This Row],[2029/30 From - Spending review Topic 1]]+Dataset[[#This Row],[2029/30 From - Spending review Topic 2]]+Dataset[[#This Row],[2029/30 From - Spending review Topic 3]]+Dataset[[#This Row],[2029/30 From - Spending review Topic 4]]+Dataset[[#This Row],[2029/30 From - Other reallocations]] -> 0 | CE19: =Dataset[[#This Row],[2027/28 To - Spending review Topic 1]]+Dataset[[#This Row],[2027/28 To - Spending review Topic 2]]+Dataset[[#This Row],[2027/28 To - Spending review Topic 3]]+Dataset[[#This Row],[2027/28 To - Spending review Topic 4]]+Dataset[[#This Row],[2027/28 To - Other reallocations]] -> 0 | CF19: =Dataset[[#This Row],[2028/29 To - Spending review Topic 1]]+Dataset[[#This Row],[2028/29 To - Spending review Topic 2]]+Dataset[[#This Row],[2028/29 To - Spending review Topic 3]]+Dataset[[#This Row],[2028/29 To - Spending review Topic 4]]+Dataset[[#This Row],[2028/29 To - Other reallocations]] -> 0 | CG19: =Dataset[[#This Row],[2029/30 To - Spending review Topic 1]]+Dataset[[#This Row],[2029/30 To - Spending review Topic 2]]+Dataset[[#This Row],[2029/30 To - Spending review Topic 3]]+Dataset[[#This Row],[2029/30 To - Spending review Topic 4]]+Dataset[[#This Row],[2029/30 To - Other reallocations]] -> 0 | CH19: =Dataset[[#This Row],[2027/28 Targeted savings]]+Dataset[[#This Row],[2027/28 From - Total]] -> 0 | CI19: =Dataset[[#This Row],[2028/29 Targeted savings]]+Dataset[[#This Row],[2028/29 From - Total]] -> 0 | CJ19: =Dataset[[#This Row],[2029/30 Targeted savings]]+Dataset[[#This Row],[2029/30 From - Total]] -> 0 | CK19: =Dataset[[#This Row],[2026/27 Targeted savings]] -> 0 | CL19: =SUM(Dataset[[#This Row],[2027/28 Targeted savings]],Dataset[[#This Row],[2027/28 From - Total]],Dataset[[#This Row],[2027/28 To - Total]]) -> 0 | CM19: =SUM(Dataset[[#This Row],[2028/29 Targeted savings]],Dataset[[#This Row],[2028/29 From - Total]],Dataset[[#This Row],[2028/29 To - Total]]) -> 0 | CN19: =SUM(Dataset[[#This Row],[2029/30 Targeted savings]],Dataset[[#This Row],[2029/30 From - Total]],Dataset[[#This Row],[2029/30 To - Total]]) -> 0 | CO19: =Dataset[[#This Row],[2026/27 Baseline]]+Dataset[[#This Row],[2026/27 Total change]] -> 32760 | CP19: =Dataset[[#This Row],[2027/28 Baseline]]+Dataset[[#This Row],[2027/28 Total change]] -> 34594 | CQ19: =Dataset[[#This Row],[2028/29 Baseline]]+Dataset[[#This Row],[2028/29 Total change]] -> 35911 | CR19: =Dataset[[#This Row],[2029/30 Baseline]]+Dataset[[#This Row],[2029/30 Total change]] -> 36992
A20: NAT|Non-transfer | B20: 17|Social contributions | C20: 2027_28 | D20: MTEC2027 | E20: 17 | F20: 1 | G20: 1 | H20: 16215 | I20: 2 | J20: 17 | K20: 01 | L20: 01 | M20: 016215 | N20: 000002 | O20: 17|01|01|000002 | P20: 01 | Q20: 01 | R20: 01 | S20: 02 | T20: 02 | U20: 01|01|01|02|02 | V20: National | W20: Higher Education | X20: Administration | Y20: Ministry | Z20: Non-transfer | AA20: Current | AB20: Current payments | AC20: Compensation of employees | AD20: Social contributions | AE20: Social contributions | AF20: Learning and culture | AG20: Post-school education and training | AH20: NAT | AI20: 0 | AJ20: 0 | AK20: 0 | AL20: 5273 | AM20: 5073 | AN20: 4073 | AO20: 2108 | AP20: 2350 | AQ20: 2573 | AR20: 2747 | AS20: 2830 | CB20: =Dataset[[#This Row],[2027/28 From - Spending review Topic 1]]+Dataset[[#This Row],[2027/28 From - Spending review Topic 2]]+Dataset[[#This Row],[2027/28 From - Spending review Topic 3]]+Dataset[[#This Row],[2027/28 From - Spending review Topic 4]]+Dataset[[#This Row],[2027/28 From - Other reallocations]] -> 0 | CC20: =Dataset[[#This Row],[2028/29 From - Spending review Topic 1]]+Dataset[[#This Row],[2028/29 From - Spending review Topic 2]]+Dataset[[#This Row],[2028/29 From - Spending review Topic 3]]+Dataset[[#This Row],[2028/29 From - Spending review Topic 4]]+Dataset[[#This Row],[2028/29 From - Other reallocations]] -> 0 | CD20: =Dataset[[#This Row],[2029/30 From - Spending review Topic 1]]+Dataset[[#This Row],[2029/30 From - Spending review Topic 2]]+Dataset[[#This Row],[2029/30 From - Spending review Topic 3]]+Dataset[[#This Row],[2029/30 From - Spending review Topic 4]]+Dataset[[#This Row],[2029/30 From - Other reallocations]] -> 0 | CE20: =Dataset[[#This Row],[2027/28 To - Spending review Topic 1]]+Dataset[[#This Row],[2027/28 To - Spending review Topic 2]]+Dataset[[#This Row],[2027/28 To - Spending review Topic 3]]+Dataset[[#This Row],[2027/28 To - Spending review Topic 4]]+Dataset[[#This Row],[2027/28 To - Other reallocations]] -> 0 | CF20: =Dataset[[#This Row],[2028/29 To - Spending review Topic 1]]+Dataset[[#This Row],[2028/29 To - Spending review Topic 2]]+Dataset[[#This Row],[2028/29 To - Spending review Topic 3]]+Dataset[[#This Row],[2028/29 To - Spending review Topic 4]]+Dataset[[#This Row],[2028/29 To - Other reallocations]] -> 0 | CG20: =Dataset[[#This Row],[2029/30 To - Spending review Topic 1]]+Dataset[[#This Row],[2029/30 To - Spending review Topic 2]]+Dataset[[#This Row],[2029/30 To - Spending review Topic 3]]+Dataset[[#This Row],[2029/30 To - Spending review Topic 4]]+Dataset[[#This Row],[2029/30 To - Other reallocations]] -> 0 | CH20: =Dataset[[#This Row],[2027/28 Targeted savings]]+Dataset[[#This Row],[2027/28 From - Total]] -> 0 | CI20: =Dataset[[#This Row],[2028/29 Targeted savings]]+Dataset[[#This Row],[2028/29 From - Total]] -> 0 | CJ20: =Dataset[[#This Row],[2029/30 Targeted savings]]+Dataset[[#This Row],[2029/30 From - Total]] -> 0 | CK20: =Dataset[[#This Row],[2026/27 Targeted savings]] -> 0 | CL20: =SUM(Dataset[[#This Row],[2027/28 Targeted savings]],Dataset[[#This Row],[2027/28 From - Total]],Dataset[[#This Row],[2027/28 To - Total]]) -> 0 | CM20: =SUM(Dataset[[#This Row],[2028/29 Targeted savings]],Dataset[[#This Row],[2028/29 From - Total]],Dataset[[#This Row],[2028/29 To - Total]]) -> 0 | CN20: =SUM(Dataset[[#This Row],[2029/30 Targeted savings]],Dataset[[#This Row],[2029/30 From - Total]],Dataset[[#This Row],[2029/30 To - Total]]) -> 0 | CO20: =Dataset[[#This Row],[2026/27 Baseline]]+Dataset[[#This Row],[2026/27 Total change]] -> 2350 | CP20: =Dataset[[#This Row],[2027/28 Baseline]]+Dataset[[#This Row],[2027/28 Total change]] -> 2573 | CQ20: =Dataset[[#This Row],[2028/29 Baseline]]+Dataset[[#This Row],[2028/29 Total change]] -> 2747 | CR20: =Dataset[[#This Row],[2029/30 Baseline]]+Dataset[[#This Row],[2029/30 Total change]] -> 2830
A21: NAT|Non-transfer | B21: 17|Administrative fees | C21: 2027_28 | D21: MTEC2027 | E21: 17 | F21: 1 | G21: 1 | H21: 16216 | I21: 3 | J21: 17 | K21: 01 | L21: 01 | M21: 016216 | N21: 000003 | O21: 17|01|01|000003 | P21: 01 | Q21: 01 | R21: 02 | S21: 03 | T21: 03 | U21: 01|01|02|03|03 | V21: National | W21: Higher Education | X21: Administration | Y21: Ministry | Z21: Non-transfer | AA21: Current | AB21: Current payments | AC21: Goods and services | AD21: Administrative fees | AE21: Administrative fees | AF21: Learning and culture | AG21: Post-school education and training | AH21: NAT | AI21: 0 | AJ21: 0 | AK21: 0 | AL21: 15 | AM21: 10 | AN21: 10 | AO21: 28 | AP21: 0 | AQ21: 0 | AR21: 0 | AS21: 0 | CB21: =Dataset[[#This Row],[2027/28 From - Spending review Topic 1]]+Dataset[[#This Row],[2027/28 From - Spending review Topic 2]]+Dataset[[#This Row],[2027/28 From - Spending review Topic 3]]+Dataset[[#This Row],[2027/28 From - Spending review Topic 4]]+Dataset[[#This Row],[2027/28 From - Other reallocations]] -> 0 | CC21: =Dataset[[#This Row],[2028/29 From - Spending review Topic 1]]+Dataset[[#This Row],[2028/29 From - Spending review Topic 2]]+Dataset[[#This Row],[2028/29 From - Spending review Topic 3]]+Dataset[[#This Row],[2028/29 From - Spending review Topic 4]]+Dataset[[#This Row],[2028/29 From - Other reallocations]] -> 0 | CD21: =Dataset[[#This Row],[2029/30 From - Spending review Topic 1]]+Dataset[[#This Row],[2029/30 From - Spending review Topic 2]]+Dataset[[#This Row],[2029/30 From - Spending review Topic 3]]+Dataset[[#This Row],[2029/30 From - Spending review Topic 4]]+Dataset[[#This Row],[2029/30 From - Other reallocations]] -> 0 | CE21: =Dataset[[#This Row],[2027/28 To - Spending review Topic 1]]+Dataset[[#This Row],[2027/28 To - Spending review Topic 2]]+Dataset[[#This Row],[2027/28 To - Spending review Topic 3]]+Dataset[[#This Row],[2027/28 To - Spending review Topic 4]]+Dataset[[#This Row],[2027/28 To - Other reallocations]] -> 0 | CF21: =Dataset[[#This Row],[2028/29 To - Spending review Topic 1]]+Dataset[[#This Row],[2028/29 To - Spending review Topic 2]]+Dataset[[#This Row],[2028/29 To - Spending review Topic 3]]+Dataset[[#This Row],[2028/29 To - Spending review Topic 4]]+Dataset[[#This Row],[2028/29 To - Other reallocations]] -> 0 | CG21: =Dataset[[#This Row],[2029/30 To - Spending review Topic 1]]+Dataset[[#This Row],[2029/30 To - Spending review Topic 2]]+Dataset[[#This Row],[2029/30 To - Spending review Topic 3]]+Dataset[[#This Row],[2029/30 To - Spending review Topic 4]]+Dataset[[#This Row],[2029/30 To - Other reallocations]] -> 0 | CH21: =Dataset[[#This Row],[2027/28 Targeted savings]]+Dataset[[#This Row],[2027/28 From - Total]] -> 0 | CI21: =Dataset[[#This Row],[2028/29 Targeted savings]]+Dataset[[#This Row],[2028/29 From - Total]] -> 0 | CJ21: =Dataset[[#This Row],[2029/30 Targeted savings]]+Dataset[[#This Row],[2029/30 From - Total]] -> 0 | CK21: =Dataset[[#This Row],[2026/27 Targeted savings]] -> 0 | CL21: =SUM(Dataset[[#This Row],[2027/28 Targeted savings]],Dataset[[#This Row],[2027/28 From - Total]],Dataset[[#This Row],[2027/28 To - Total]]) -> 0 | CM21: =SUM(Dataset[[#This Row],[2028/29 Targeted savings]],Dataset[[#This Row],[2028/29 From - Total]],Dataset[[#This Row],[2028/29 To - Total]]) -> 0 | CN21: =SUM(Dataset[[#This Row],[2029/30 Targeted savings]],Dataset[[#This Row],[2029/30 From - Total]],Dataset[[#This Row],[2029/30 To - Total]]) -> 0 | CO21: =Dataset[[#This Row],[2026/27 Baseline]]+Dataset[[#This Row],[2026/27 Total change]] -> 0 | CP21: =Dataset[[#This Row],[2027/28 Baseline]]+Dataset[[#This Row],[2027/28 Total change]] -> 0 | CQ21: =Dataset[[#This Row],[2028/29 Baseline]]+Dataset[[#This Row],[2028/29 Total change]] -> 0 | CR21: =Dataset[[#This Row],[2029/30 Baseline]]+Dataset[[#This Row],[2029/30 Total change]] -> 0
A22: NAT|Non-transfer item | B22: 17|Advertising | C22: 2027_28 | D22: MTEC2027 | E22: 17 | F22: 1 | G22: 1 | H22: 16217 | I22: 4 | J22: 17 | K22: 01 | L22: 01 | M22: 016217 | N22: 000004 | O22: 17|01|01|000004 | P22: 01 | Q22: 01 | R22: 02 | S22: 04 | T22: 04 | U22: 01|01|02|04|04 | V22: National | W22: Higher Education | X22: Administration | Y22: Ministry | Z22: Non-transfer item | AA22: Current | AB22: Current payments | AC22: Goods and services | AD22: Advertising | AE22: Advertising | AF22: Learning and culture | AG22: Post-school education and training | AH22: NAT | AI22: 0 | AJ22: 0 | AK22: 0 | AL22: 0 | AM22: 0 | AN22: 0 | AO22: 0 | AP22: 0 | AQ22: 0 | AR22: 0 | AS22: 0 | CB22: =Dataset[[#This Row],[2027/28 From - Spending review Topic 1]]+Dataset[[#This Row],[2027/28 From - Spending review Topic 2]]+Dataset[[#This Row],[2027/28 From - Spending review Topic 3]]+Dataset[[#This Row],[2027/28 From - Spending review Topic 4]]+Dataset[[#This Row],[2027/28 From - Other reallocations]] -> 0 | CC22: =Dataset[[#This Row],[2028/29 From - Spending review Topic 1]]+Dataset[[#This Row],[2028/29 From - Spending review Topic 2]]+Dataset[[#This Row],[2028/29 From - Spending review Topic 3]]+Dataset[[#This Row],[2028/29 From - Spending review Topic 4]]+Dataset[[#This Row],[2028/29 From - Other reallocations]] -> 0 | CD22: =Dataset[[#This Row],[2029/30 From - Spending review Topic 1]]+Dataset[[#This Row],[2029/30 From - Spending review Topic 2]]+Dataset[[#This Row],[2029/30 From - Spending review Topic 3]]+Dataset[[#This Row],[2029/30 From - Spending review Topic 4]]+Dataset[[#This Row],[2029/30 From - Other reallocations]] -> 0 | CE22: =Dataset[[#This Row],[2027/28 To - Spending review Topic 1]]+Dataset[[#This Row],[2027/28 To - Spending review Topic 2]]+Dataset[[#This Row],[2027/28 To - Spending review Topic 3]]+Dataset[[#This Row],[2027/28 To - Spending review Topic 4]]+Dataset[[#This Row],[2027/28 To - Other reallocations]] -> 0 | CF22: =Dataset[[#This Row],[2028/29 To - Spending review Topic 1]]+Dataset[[#This Row],[2028/29 To - Spending review Topic 2]]+Dataset[[#This Row],[2028/29 To - Spending review Topic 3]]+Dataset[[#This Row],[2028/29 To - Spending review Topic 4]]+Dataset[[#This Row],[2028/29 To - Other reallocations]] -> 0 | CG22: =Dataset[[#This Row],[2029/30 To - Spending review Topic 1]]+Dataset[[#This Row],[2029/30 To - Spending review Topic 2]]+Dataset[[#This Row],[2029/30 To - Spending review Topic 3]]+Dataset[[#This Row],[2029/30 To - Spending review Topic 4]]+Dataset[[#This Row],[2029/30 To - Other reallocations]] -> 0 | CH22: =Dataset[[#This Row],[2027/28 Targeted savings]]+Dataset[[#This Row],[2027/28 From - Total]] -> 0 | CI22: =Dataset[[#This Row],[2028/29 Targeted savings]]+Dataset[[#This Row],[2028/29 From - Total]] -> 0 | CJ22: =Dataset[[#This Row],[2029/30 Targeted savings]]+Dataset[[#This Row],[2029/30 From - Total]] -> 0 | CK22: =Dataset[[#This Row],[2026/27 Targeted savings]] -> 0 | CL22: =SUM(Dataset[[#This Row],[2027/28 Targeted savings]],Dataset[[#This Row],[2027/28 From - Total]],Dataset[[#This Row],[2027/28 To - Total]]) -> 0 | CM22: =SUM(Dataset[[#This Row],[2028/29 Targeted savings]],Dataset[[#This Row],[2028/29 From - Total]],Dataset[[#This Row],[2028/29 To - Total]]) -> 0 | CN22: =SUM(Dataset[[#This Row],[2029/30 Targeted savings]],Dataset[[#This Row],[2029/30 From - Total]],Dataset[[#This Row],[2029/30 To - Total]]) -> 0 | CO22: =Dataset[[#This Row],[2026/27 Baseline]]+Dataset[[#This Row],[2026/27 Total change]] -> 0 | CP22: =Dataset[[#This Row],[2027/28 Baseline]]+Dataset[[#This Row],[2027/28 Total change]] -> 0 | CQ22: =Dataset[[#This Row],[2028/29 Baseline]]+Dataset[[#This Row],[2028/29 Total change]] -> 0 | CR22: =Dataset[[#This Row],[2029/30 Baseline]]+Dataset[[#This Row],[2029/30 Total change]] -> 0
A23: NAT|Non-transfer | B23: 17|Minor assets | C23: 2027_28 | D23: MTEC2027 | E23: 17 | F23: 1 | G23: 1 | H23: 16218 | I23: 5 | J23: 17 | K23: 01 | L23: 01 | M23: 016218 | N23: 000005 | O23: 17|01|01|000005 | P23: 01 | Q23: 01 | R23: 02 | S23: 05 | T23: 05 | U23: 01|01|02|05|05 | V23: National | W23: Higher Education | X23: Administration | Y23: Ministry | Z23: Non-transfer | AA23: Current | AB23: Current payments | AC23: Goods and services | AD23: Minor assets | AE23: Minor assets | AF23: Learning and culture | AG23: Post-school education and training | AH23: NAT | AI23: 0 | AJ23: 0 | AK23: 0 | AL23: 130 | AM23: 70 | AN23: 70 | AO23: 11 | AP23: 399 | AQ23: 367 | AR23: 380 | AS23: 391 | CB23: =Dataset[[#This Row],[2027/28 From - Spending review Topic 1]]+Dataset[[#This Row],[2027/28 From - Spending review Topic 2]]+Dataset[[#This Row],[2027/28 From - Spending review Topic 3]]+Dataset[[#This Row],[2027/28 From - Spending review Topic 4]]+Dataset[[#This Row],[2027/28 From - Other reallocations]] -> 0 | CC23: =Dataset[[#This Row],[2028/29 From - Spending review Topic 1]]+Dataset[[#This Row],[2028/29 From - Spending review Topic 2]]+Dataset[[#This Row],[2028/29 From - Spending review Topic 3]]+Dataset[[#This Row],[2028/29 From - Spending review Topic 4]]+Dataset[[#This Row],[2028/29 From - Other reallocations]] -> 0 | CD23: =Dataset[[#This Row],[2029/30 From - Spending review Topic 1]]+Dataset[[#This Row],[2029/30 From - Spending review Topic 2]]+Dataset[[#This Row],[2029/30 From - Spending review Topic 3]]+Dataset[[#This Row],[2029/30 From - Spending review Topic 4]]+Dataset[[#This Row],[2029/30 From - Other reallocations]] -> 0 | CE23: =Dataset[[#This Row],[2027/28 To - Spending review Topic 1]]+Dataset[[#This Row],[2027/28 To - Spending review Topic 2]]+Dataset[[#This Row],[2027/28 To - Spending review Topic 3]]+Dataset[[#This Row],[2027/28 To - Spending review Topic 4]]+Dataset[[#This Row],[2027/28 To - Other reallocations]] -> 0 | CF23: =Dataset[[#This Row],[2028/29 To - Spending review Topic 1]]+Dataset[[#This Row],[2028/29 To - Spending review Topic 2]]+Dataset[[#This Row],[2028/29 To - Spending review Topic 3]]+Dataset[[#This Row],[2028/29 To - Spending review Topic 4]]+Dataset[[#This Row],[2028/29 To - Other reallocations]] -> 0 | CG23: =Dataset[[#This Row],[2029/30 To - Spending review Topic 1]]+Dataset[[#This Row],[2029/30 To - Spending review Topic 2]]+Dataset[[#This Row],[2029/30 To - Spending review Topic 3]]+Dataset[[#This Row],[2029/30 To - Spending review Topic 4]]+Dataset[[#This Row],[2029/30 To - Other reallocations]] -> 0 | CH23: =Dataset[[#This Row],[2027/28 Targeted savings]]+Dataset[[#This Row],[2027/28 From - Total]] -> 0 | CI23: =Dataset[[#This Row],[2028/29 Targeted savings]]+Dataset[[#This Row],[2028/29 From - Total]] -> 0 | CJ23: =Dataset[[#This Row],[2029/30 Targeted savings]]+Dataset[[#This Row],[2029/30 From - Total]] -> 0 | CK23: =Dataset[[#This Row],[2026/27 Targeted savings]] -> 0 | CL23: =SUM(Dataset[[#This Row],[2027/28 Targeted savings]],Dataset[[#This Row],[2027/28 From - Total]],Dataset[[#This Row],[2027/28 To - Total]]) -> 0 | CM23: =SUM(Dataset[[#This Row],[2028/29 Targeted savings]],Dataset[[#This Row],[2028/29 From - Total]],Dataset[[#This Row],[2028/29 To - Total]]) -> 0 | CN23: =SUM(Dataset[[#This Row],[2029/30 Targeted savings]],Dataset[[#This Row],[2029/30 From - Total]],Dataset[[#This Row],[2029/30 To - Total]]) -> 0 | CO23: =Dataset[[#This Row],[2026/27 Baseline]]+Dataset[[#This Row],[2026/27 Total change]] -> 399 | CP23: =Dataset[[#This Row],[2027/28 Baseline]]+Dataset[[#This Row],[2027/28 Total change]] -> 367 | CQ23: =Dataset[[#This Row],[2028/29 Baseline]]+Dataset[[#This Row],[2028/29 Total change]] -> 380 | CR23: =Dataset[[#This Row],[2029/30 Baseline]]+Dataset[[#This Row],[2029/30 Total change]] -> 391
A24: NAT|Non-transfer item | B24: 17|Audit costs: External | C24: 2027_28 | D24: MTEC2027 | E24: 17 | F24: 1 | G24: 1 | H24: 16219 | I24: 6 | J24: 17 | K24: 01 | L24: 01 | M24: 016219 | N24: 000006 | O24: 17|01|01|000006 | P24: 01 | Q24: 01 | R24: 02 | S24: 06 | T24: 06 | U24: 01|01|02|06|06 | V24: National | W24: Higher Education | X24: Administration | Y24: Ministry | Z24: Non-transfer item | AA24: Current | AB24: Current payments | AC24: Goods and services | AD24: Audit costs: External | AE24: Audit costs: External | AF24: Learning and culture | AG24: Post-school education and training | AH24: NAT | AI24: 0 | AJ24: 0 | AK24: 0 | AL24: 0 | AM24: 0 | AN24: 0 | AO24: 0 | AP24: 0 | AQ24: 0 | AR24: 0 | AS24: 0 | CB24: =Dataset[[#This Row],[2027/28 From - Spending review Topic 1]]+Dataset[[#This Row],[2027/28 From - Spending review Topic 2]]+Dataset[[#This Row],[2027/28 From - Spending review Topic 3]]+Dataset[[#This Row],[2027/28 From - Spending review Topic 4]]+Dataset[[#This Row],[2027/28 From - Other reallocations]] -> 0 | CC24: =Dataset[[#This Row],[2028/29 From - Spending review Topic 1]]+Dataset[[#This Row],[2028/29 From - Spending review Topic 2]]+Dataset[[#This Row],[2028/29 From - Spending review Topic 3]]+Dataset[[#This Row],[2028/29 From - Spending review Topic 4]]+Dataset[[#This Row],[2028/29 From - Other reallocations]] -> 0 | CD24: =Dataset[[#This Row],[2029/30 From - Spending review Topic 1]]+Dataset[[#This Row],[2029/30 From - Spending review Topic 2]]+Dataset[[#This Row],[2029/30 From - Spending review Topic 3]]+Dataset[[#This Row],[2029/30 From - Spending review Topic 4]]+Dataset[[#This Row],[2029/30 From - Other reallocations]] -> 0 | CE24: =Dataset[[#This Row],[2027/28 To - Spending review Topic 1]]+Dataset[[#This Row],[2027/28 To - Spending review Topic 2]]+Dataset[[#This Row],[2027/28 To - Spending review Topic 3]]+Dataset[[#This Row],[2027/28 To - Spending review Topic 4]]+Dataset[[#This Row],[2027/28 To - Other reallocations]] -> 0 | CF24: =Dataset[[#This Row],[2028/29 To - Spending review Topic 1]]+Dataset[[#This Row],[2028/29 To - Spending review Topic 2]]+Dataset[[#This Row],[2028/29 To - Spending review Topic 3]]+Dataset[[#This Row],[2028/29 To - Spending review Topic 4]]+Dataset[[#This Row],[2028/29 To - Other reallocations]] -> 0 | CG24: =Dataset[[#This Row],[2029/30 To - Spending review Topic 1]]+Dataset[[#This Row],[2029/30 To - Spending review Topic 2]]+Dataset[[#This Row],[2029/30 To - Spending review Topic 3]]+Dataset[[#This Row],[2029/30 To - Spending review Topic 4]]+Dataset[[#This Row],[2029/30 To - Other reallocations]] -> 0 | CH24: =Dataset[[#This Row],[2027/28 Targeted savings]]+Dataset[[#This Row],[2027/28 From - Total]] -> 0 | CI24: =Dataset[[#This Row],[2028/29 Targeted savings]]+Dataset[[#This Row],[2028/29 From - Total]] -> 0 | CJ24: =Dataset[[#This Row],[2029/30 Targeted savings]]+Dataset[[#This Row],[2029/30 From - Total]] -> 0 | CK24: =Dataset[[#This Row],[2026/27 Targeted savings]] -> 0 | CL24: =SUM(Dataset[[#This Row],[2027/28 Targeted savings]],Dataset[[#This Row],[2027/28 From - Total]],Dataset[[#This Row],[2027/28 To - Total]]) -> 0 | CM24: =SUM(Dataset[[#This Row],[2028/29 Targeted savings]],Dataset[[#This Row],[2028/29 From - Total]],Dataset[[#This Row],[2028/29 To - Total]]) -> 0 | CN24: =SUM(Dataset[[#This Row],[2029/30 Targeted savings]],Dataset[[#This Row],[2029/30 From - Total]],Dataset[[#This Row],[2029/30 To - Total]]) -> 0 | CO24: =Dataset[[#This Row],[2026/27 Baseline]]+Dataset[[#This Row],[2026/27 Total change]] -> 0 | CP24: =Dataset[[#This Row],[2027/28 Baseline]]+Dataset[[#This Row],[2027/28 Total change]] -> 0 | CQ24: =Dataset[[#This Row],[2028/29 Baseline]]+Dataset[[#This Row],[2028/29 Total change]] -> 0 | CR24: =Dataset[[#This Row],[2029/30 Baseline]]+Dataset[[#This Row],[2029/30 Total change]] -> 0
A25: NAT|Non-transfer item | B25: 17|Bursaries: Employees | C25: 2027_28 | D25: MTEC2027 | E25: 17 | F25: 1 | G25: 1 | H25: 16220 | I25: 7 | J25: 17 | K25: 01 | L25: 01 | M25: 016220 | N25: 000007 | O25: 17|01|01|000007 | P25: 01 | Q25: 01 | R25: 02 | S25: 07 | T25: 07 | U25: 01|01|02|07|07 | V25: National | W25: Higher Education | X25: Administration | Y25: Ministry | Z25: Non-transfer item | AA25: Current | AB25: Current payments | AC25: Goods and services | AD25: Bursaries: Employees | AE25: Bursaries: Employees | AF25: Learning and culture | AG25: Post-school education and training | AH25: NAT | AI25: 0 | AJ25: 0 | AK25: 0 | AL25: 0 | AM25: 0 | AN25: 0 | AO25: 0 | AP25: 0 | AQ25: 0 | AR25: 0 | AS25: 0 | CB25: =Dataset[[#This Row],[2027/28 From - Spending review Topic 1]]+Dataset[[#This Row],[2027/28 From - Spending review Topic 2]]+Dataset[[#This Row],[2027/28 From - Spending review Topic 3]]+Dataset[[#This Row],[2027/28 From - Spending review Topic 4]]+Dataset[[#This Row],[2027/28 From - Other reallocations]] -> 0 | CC25: =Dataset[[#This Row],[2028/29 From - Spending review Topic 1]]+Dataset[[#This Row],[2028/29 From - Spending review Topic 2]]+Dataset[[#This Row],[2028/29 From - Spending review Topic 3]]+Dataset[[#This Row],[2028/29 From - Spending review Topic 4]]+Dataset[[#This Row],[2028/29 From - Other reallocations]] -> 0 | CD25: =Dataset[[#This Row],[2029/30 From - Spending review Topic 1]]+Dataset[[#This Row],[2029/30 From - Spending review Topic 2]]+Dataset[[#This Row],[2029/30 From - Spending review Topic 3]]+Dataset[[#This Row],[2029/30 From - Spending review Topic 4]]+Dataset[[#This Row],[2029/30 From - Other reallocations]] -> 0 | CE25: =Dataset[[#This Row],[2027/28 To - Spending review Topic 1]]+Dataset[[#This Row],[2027/28 To - Spending review Topic 2]]+Dataset[[#This Row],[2027/28 To - Spending review Topic 3]]+Dataset[[#This Row],[2027/28 To - Spending review Topic 4]]+Dataset[[#This Row],[2027/28 To - Other reallocations]] -> 0 | CF25: =Dataset[[#This Row],[2028/29 To - Spending review Topic 1]]+Dataset[[#This Row],[2028/29 To - Spending review Topic 2]]+Dataset[[#This Row],[2028/29 To - Spending review Topic 3]]+Dataset[[#This Row],[2028/29 To - Spending review Topic 4]]+Dataset[[#This Row],[2028/29 To - Other reallocations]] -> 0 | CG25: =Dataset[[#This Row],[2029/30 To - Spending review Topic 1]]+Dataset[[#This Row],[2029/30 To - Spending review Topic 2]]+Dataset[[#This Row],[2029/30 To - Spending review Topic 3]]+Dataset[[#This Row],[2029/30 To - Spending review Topic 4]]+Dataset[[#This Row],[2029/30 To - Other reallocations]] -> 0 | CH25: =Dataset[[#This Row],[2027/28 Targeted savings]]+Dataset[[#This Row],[2027/28 From - Total]] -> 0 | CI25: =Dataset[[#This Row],[2028/29 Targeted savings]]+Dataset[[#This Row],[2028/29 From - Total]] -> 0 | CJ25: =Dataset[[#This Row],[2029/30 Targeted savings]]+Dataset[[#This Row],[2029/30 From - Total]] -> 0 | CK25: =Dataset[[#This Row],[2026/27 Targeted savings]] -> 0 | CL25: =SUM(Dataset[[#This Row],[2027/28 Targeted savings]],Dataset[[#This Row],[2027/28 From - Total]],Dataset[[#This Row],[2027/28 To - Total]]) -> 0 | CM25: =SUM(Dataset[[#This Row],[2028/29 Targeted savings]],Dataset[[#This Row],[2028/29 From - Total]],Dataset[[#This Row],[2028/29 To - Total]]) -> 0 | CN25: =SUM(Dataset[[#This Row],[2029/30 Targeted savings]],Dataset[[#This Row],[2029/30 From - Total]],Dataset[[#This Row],[2029/30 To - Total]]) -> 0 | CO25: =Dataset[[#This Row],[2026/27 Baseline]]+Dataset[[#This Row],[2026/27 Total change]] -> 0 | CP25: =Dataset[[#This Row],[2027/28 Baseline]]+Dataset[[#This Row],[2027/28 Total change]] -> 0 | CQ25: =Dataset[[#This Row],[2028/29 Baseline]]+Dataset[[#This Row],[2028/29 Total change]] -> 0 | CR25: =Dataset[[#This Row],[2029/30 Baseline]]+Dataset[[#This Row],[2029/30 Total change]] -> 0
A26: NAT|Non-transfer | B26: 17|Catering: Departmental activities | C26: 2027_28 | D26: MTEC2027 | E26: 17 | F26: 1 | G26: 1 | H26: 16221 | I26: 8 | J26: 17 | K26: 01 | L26: 01 | M26: 016221 | N26: 000008 | O26: 17|01|01|000008 | P26: 01 | Q26: 01 | R26: 02 | S26: 08 | T26: 08 | U26: 01|01|02|08|08 | V26: National | W26: Higher Education | X26: Administration | Y26: Ministry | Z26: Non-transfer | AA26: Current | AB26: Current payments | AC26: Goods and services | AD26: Catering: Departmental activities | AE26: Catering: Departmental activities | AF26: Learning and culture | AG26: Post-school education and training | AH26: NAT | AI26: 0 | AJ26: 0 | AK26: 0 | AL26: 190 | AM26: 156 | AN26: 156 | AO26: 90 | AP26: 389 | AQ26: 402 | AR26: 419 | AS26: 432 | CB26: =Dataset[[#This Row],[2027/28 From - Spending review Topic 1]]+Dataset[[#This Row],[2027/28 From - Spending review Topic 2]]+Dataset[[#This Row],[2027/28 From - Spending review Topic 3]]+Dataset[[#This Row],[2027/28 From - Spending review Topic 4]]+Dataset[[#This Row],[2027/28 From - Other reallocations]] -> 0 | CC26: =Dataset[[#This Row],[2028/29 From - Spending review Topic 1]]+Dataset[[#This Row],[2028/29 From - Spending review Topic 2]]+Dataset[[#This Row],[2028/29 From - Spending review Topic 3]]+Dataset[[#This Row],[2028/29 From - Spending review Topic 4]]+Dataset[[#This Row],[2028/29 From - Other reallocations]] -> 0 | CD26: =Dataset[[#This Row],[2029/30 From - Spending review Topic 1]]+Dataset[[#This Row],[2029/30 From - Spending review Topic 2]]+Dataset[[#This Row],[2029/30 From - Spending review Topic 3]]+Dataset[[#This Row],[2029/30 From - Spending review Topic 4]]+Dataset[[#This Row],[2029/30 From - Other reallocations]] -> 0 | CE26: =Dataset[[#This Row],[2027/28 To - Spending review Topic 1]]+Dataset[[#This Row],[2027/28 To - Spending review Topic 2]]+Dataset[[#This Row],[2027/28 To - Spending review Topic 3]]+Dataset[[#This Row],[2027/28 To - Spending review Topic 4]]+Dataset[[#This Row],[2027/28 To - Other reallocations]] -> 0 | CF26: =Dataset[[#This Row],[2028/29 To - Spending review Topic 1]]+Dataset[[#This Row],[2028/29 To - Spending review Topic 2]]+Dataset[[#This Row],[2028/29 To - Spending review Topic 3]]+Dataset[[#This Row],[2028/29 To - Spending review Topic 4]]+Dataset[[#This Row],[2028/29 To - Other reallocations]] -> 0 | CG26: =Dataset[[#This Row],[2029/30 To - Spending review Topic 1]]+Dataset[[#This Row],[2029/30 To - Spending review Topic 2]]+Dataset[[#This Row],[2029/30 To - Spending review Topic 3]]+Dataset[[#This Row],[2029/30 To - Spending review Topic 4]]+Dataset[[#This Row],[2029/30 To - Other reallocations]] -> 0 | CH26: =Dataset[[#This Row],[2027/28 Targeted savings]]+Dataset[[#This Row],[2027/28 From - Total]] -> 0 | CI26: =Dataset[[#This Row],[2028/29 Targeted savings]]+Dataset[[#This Row],[2028/29 From - Total]] -> 0 | CJ26: =Dataset[[#This Row],[2029/30 Targeted savings]]+Dataset[[#This Row],[2029/30 From - Total]] -> 0 | CK26: =Dataset[[#This Row],[2026/27 Targeted savings]] -> 0 | CL26: =SUM(Dataset[[#This Row],[2027/28 Targeted savings]],Dataset[[#This Row],[2027/28 From - Total]],Dataset[[#This Row],[2027/28 To - Total]]) -> 0 | CM26: =SUM(Dataset[[#This Row],[2028/29 Targeted savings]],Dataset[[#This Row],[2028/29 From - Total]],Dataset[[#This Row],[2028/29 To - Total]]) -> 0 | CN26: =SUM(Dataset[[#This Row],[2029/30 Targeted savings]],Dataset[[#This Row],[2029/30 From - Total]],Dataset[[#This Row],[2029/30 To - Total]]) -> 0 | CO26: =Dataset[[#This Row],[2026/27 Baseline]]+Dataset[[#This Row],[2026/27 Total change]] -> 389 | CP26: =Dataset[[#This Row],[2027/28 Baseline]]+Dataset[[#This Row],[2027/28 Total change]] -> 402 | CQ26: =Dataset[[#This Row],[2028/29 Baseline]]+Dataset[[#This Row],[2028/29 Total change]] -> 419 | CR26: =Dataset[[#This Row],[2029/30 Baseline]]+Dataset[[#This Row],[2029/30 Total change]] -> 432
A27: NAT|Non-transfer | B27: 17|Communication (G&S) | C27: 2027_28 | D27: MTEC2027 | E27: 17 | F27: 1 | G27: 1 | H27: 16222 | I27: 9 | J27: 17 | K27: 01 | L27: 01 | M27: 016222 | N27: 000009 | O27: 17|01|01|000009 | P27: 01 | Q27: 01 | R27: 02 | S27: 09 | T27: 09 | U27: 01|01|02|09|09 | V27: National | W27: Higher Education | X27: Administration | Y27: Ministry | Z27: Non-transfer | AA27: Current | AB27: Current payments | AC27: Goods and services | AD27: Communication (G&S) | AE27: Communication (G&S) | AF27: Learning and culture | AG27: Post-school education and training | AH27: NAT | AI27: 0 | AJ27: 0 | AK27: 0 | AL27: 1050 | AM27: 1158 | AN27: 1158 | AO27: 1115 | AP27: 784 | AQ27: 824 | AR27: 843 | AS27: 868 | CB27: =Dataset[[#This Row],[2027/28 From - Spending review Topic 1]]+Dataset[[#This Row],[2027/28 From - Spending review Topic 2]]+Dataset[[#This Row],[2027/28 From - Spending review Topic 3]]+Dataset[[#This Row],[2027/28 From - Spending review Topic 4]]+Dataset[[#This Row],[2027/28 From - Other reallocations]] -> 0 | CC27: =Dataset[[#This Row],[2028/29 From - Spending review Topic 1]]+Dataset[[#This Row],[2028/29 From - Spending review Topic 2]]+Dataset[[#This Row],[2028/29 From - Spending review Topic 3]]+Dataset[[#This Row],[2028/29 From - Spending review Topic 4]]+Dataset[[#This Row],[2028/29 From - Other reallocations]] -> 0 | CD27: =Dataset[[#This Row],[2029/30 From - Spending review Topic 1]]+Dataset[[#This Row],[2029/30 From - Spending review Topic 2]]+Dataset[[#This Row],[2029/30 From - Spending review Topic 3]]+Dataset[[#This Row],[2029/30 From - Spending review Topic 4]]+Dataset[[#This Row],[2029/30 From - Other reallocations]] -> 0 | CE27: =Dataset[[#This Row],[2027/28 To - Spending review Topic 1]]+Dataset[[#This Row],[2027/28 To - Spending review Topic 2]]+Dataset[[#This Row],[2027/28 To - Spending review Topic 3]]+Dataset[[#This Row],[2027/28 To - Spending review Topic 4]]+Dataset[[#This Row],[2027/28 To - Other reallocations]] -> 0 | CF27: =Dataset[[#This Row],[2028/29 To - Spending review Topic 1]]+Dataset[[#This Row],[2028/29 To - Spending review Topic 2]]+Dataset[[#This Row],[2028/29 To - Spending review Topic 3]]+Dataset[[#This Row],[2028/29 To - Spending review Topic 4]]+Dataset[[#This Row],[2028/29 To - Other reallocations]] -> 0 | CG27: =Dataset[[#This Row],[2029/30 To - Spending review Topic 1]]+Dataset[[#This Row],[2029/30 To - Spending review Topic 2]]+Dataset[[#This Row],[2029/30 To - Spending review Topic 3]]+Dataset[[#This Row],[2029/30 To - Spending review Topic 4]]+Dataset[[#This Row],[2029/30 To - Other reallocations]] -> 0 | CH27: =Dataset[[#This Row],[2027/28 Targeted savings]]+Dataset[[#This Row],[2027/28 From - Total]] -> 0 | CI27: =Dataset[[#This Row],[2028/29 Targeted savings]]+Dataset[[#This Row],[2028/29 From - Total]] -> 0 | CJ27: =Dataset[[#This Row],[2029/30 Targeted savings]]+Dataset[[#This Row],[2029/30 From - Total]] -> 0 | CK27: =Dataset[[#This Row],[2026/27 Targeted savings]] -> 0 | CL27: =SUM(Dataset[[#This Row],[2027/28 Targeted savings]],Dataset[[#This Row],[2027/28 From - Total]],Dataset[[#This Row],[2027/28 To - Total]]) -> 0 | CM27: =SUM(Dataset[[#This Row],[2028/29 Targeted savings]],Dataset[[#This Row],[2028/29 From - Total]],Dataset[[#This Row],[2028/29 To - Total]]) -> 0 | CN27: =SUM(Dataset[[#This Row],[2029/30 Targeted savings]],Dataset[[#This Row],[2029/30 From - Total]],Dataset[[#This Row],[2029/30 To - Total]]) -> 0 | CO27: =Dataset[[#This Row],[2026/27 Baseline]]+Dataset[[#This Row],[2026/27 Total change]] -> 784 | CP27: =Dataset[[#This Row],[2027/28 Baseline]]+Dataset[[#This Row],[2027/28 Total change]] -> 824 | CQ27: =Dataset[[#This Row],[2028/29 Baseline]]+Dataset[[#This Row],[2028/29 Total change]] -> 843 | CR27: =Dataset[[#This Row],[2029/30 Baseline]]+Dataset[[#This Row],[2029/30 Total change]] -> 868
A28: NAT|Non-transfer | B28: 17|Computer services | C28: 2027_28 | D28: MTEC2027 | E28: 17 | F28: 1 | G28: 1 | H28: 16223 | I28: 10 | J28: 17 | K28: 01 | L28: 01 | M28: 016223 | N28: 000010 | O28: 17|01|01|000010 | P28: 01 | Q28: 01 | R28: 02 | S28: 10 | T28: 10 | U28: 01|01|02|10|10 | V28: National | W28: Higher Education | X28: Administration | Y28: Ministry | Z28: Non-transfer | AA28: Current | AB28: Current payments | AC28: Goods and services | AD28: Computer services | AE28: Computer services | AF28: Learning and culture | AG28: Post-school education and training | AH28: NAT | AI28: 0 | AJ28: 0 | AK28: 0 | AL28: 0 | AM28: 44 | AN28: 344 | AO28: 218 | AP28: 0 | AQ28: 0 | AR28: 0 | AS28: 0 | CB28: =Dataset[[#This Row],[2027/28 From - Spending review Topic 1]]+Dataset[[#This Row],[2027/28 From - Spending review Topic 2]]+Dataset[[#This Row],[2027/28 From - Spending review Topic 3]]+Dataset[[#This Row],[2027/28 From - Spending review Topic 4]]+Dataset[[#This Row],[2027/28 From - Other reallocations]] -> 0 | CC28: =Dataset[[#This Row],[2028/29 From - Spending review Topic 1]]+Dataset[[#This Row],[2028/29 From - Spending review Topic 2]]+Dataset[[#This Row],[2028/29 From - Spending review Topic 3]]+Dataset[[#This Row],[2028/29 From - Spending review Topic 4]]+Dataset[[#This Row],[2028/29 From - Other reallocations]] -> 0 | CD28: =Dataset[[#This Row],[2029/30 From - Spending review Topic 1]]+Dataset[[#This Row],[2029/30 From - Spending review Topic 2]]+Dataset[[#This Row],[2029/30 From - Spending review Topic 3]]+Dataset[[#This Row],[2029/30 From - Spending review Topic 4]]+Dataset[[#This Row],[2029/30 From - Other reallocations]] -> 0 | CE28: =Dataset[[#This Row],[2027/28 To - Spending review Topic 1]]+Dataset[[#This Row],[2027/28 To - Spending review Topic 2]]+Dataset[[#This Row],[2027/28 To - Spending review Topic 3]]+Dataset[[#This Row],[2027/28 To - Spending review Topic 4]]+Dataset[[#This Row],[2027/28 To - Other reallocations]] -> 0 | CF28: =Dataset[[#This Row],[2028/29 To - Spending review Topic 1]]+Dataset[[#This Row],[2028/29 To - Spending review Topic 2]]+Dataset[[#This Row],[2028/29 To - Spending review Topic 3]]+Dataset[[#This Row],[2028/29 To - Spending review Topic 4]]+Dataset[[#This Row],[2028/29 To - Other reallocations]] -> 0 | CG28: =Dataset[[#This Row],[2029/30 To - Spending review Topic 1]]+Dataset[[#This Row],[2029/30 To - Spending review Topic 2]]+Dataset[[#This Row],[2029/30 To - Spending review Topic 3]]+Dataset[[#This Row],[2029/30 To - Spending review Topic 4]]+Dataset[[#This Row],[2029/30 To - Other reallocations]] -> 0 | CH28: =Dataset[[#This Row],[2027/28 Targeted savings]]+Dataset[[#This Row],[2027/28 From - Total]] -> 0 | CI28: =Dataset[[#This Row],[2028/29 Targeted savings]]+Dataset[[#This Row],[2028/29 From - Total]] -> 0 | CJ28: =Dataset[[#This Row],[2029/30 Targeted savings]]+Dataset[[#This Row],[2029/30 From - Total]] -> 0 | CK28: =Dataset[[#This Row],[2026/27 Targeted savings]] -> 0 | CL28: =SUM(Dataset[[#This Row],[2027/28 Targeted savings]],Dataset[[#This Row],[2027/28 From - Total]],Dataset[[#This Row],[2027/28 To - Total]]) -> 0 | CM28: =SUM(Dataset[[#This Row],[2028/29 Targeted savings]],Dataset[[#This Row],[2028/29 From - Total]],Dataset[[#This Row],[2028/29 To - Total]]) -> 0 | CN28: =SUM(Dataset[[#This Row],[2029/30 Targeted savings]],Dataset[[#This Row],[2029/30 From - Total]],Dataset[[#This Row],[2029/30 To - Total]]) -> 0 | CO28: =Dataset[[#This Row],[2026/27 Baseline]]+Dataset[[#This Row],[2026/27 Total change]] -> 0 | CP28: =Dataset[[#This Row],[2027/28 Baseline]]+Dataset[[#This Row],[2027/28 Total change]] -> 0 | CQ28: =Dataset[[#This Row],[2028/29 Baseline]]+Dataset[[#This Row],[2028/29 Total change]] -> 0 | CR28: =Dataset[[#This Row],[2029/30 Baseline]]+Dataset[[#This Row],[2029/30 Total change]] -> 0
A29: NAT|Non-transfer item | B29: 17|Consultants: Business and advisory services | C29: 2027_28 | D29: MTEC2027 | E29: 17 | F29: 1 | G29: 1 | H29: 16224 | I29: 11 | J29: 17 | K29: 01 | L29: 01 | M29: 016224 | N29: 000011 | O29: 17|01|01|000011 | P29: 01 | Q29: 01 | R29: 02 | S29: 11 | T29: 11 | U29: 01|01|02|11|11 | V29: National | W29: Higher Education | X29: Administration | Y29: Ministry | Z29: Non-transfer item | AA29: Current | AB29: Current payments | AC29: Goods and services | AD29: Consultants: Business and advisory services | AE29: Consultants: Business and advisory services | AF29: Learning and culture | AG29: Post-school education and training | AH29: NAT | AI29: 0 | AJ29: 0 | AK29: 0 | AL29: 0 | AM29: 0 | AN29: 0 | AO29: 0 | AP29: 0 | AQ29: 0 | AR29: 0 | AS29: 0 | CB29: =Dataset[[#This Row],[2027/28 From - Spending review Topic 1]]+Dataset[[#This Row],[2027/28 From - Spending review Topic 2]]+Dataset[[#This Row],[2027/28 From - Spending review Topic 3]]+Dataset[[#This Row],[2027/28 From - Spending review Topic 4]]+Dataset[[#This Row],[2027/28 From - Other reallocations]] -> 0 | CC29: =Dataset[[#This Row],[2028/29 From - Spending review Topic 1]]+Dataset[[#This Row],[2028/29 From - Spending review Topic 2]]+Dataset[[#This Row],[2028/29 From - Spending review Topic 3]]+Dataset[[#This Row],[2028/29 From - Spending review Topic 4]]+Dataset[[#This Row],[2028/29 From - Other reallocations]] -> 0 | CD29: =Dataset[[#This Row],[2029/30 From - Spending review Topic 1]]+Dataset[[#This Row],[2029/30 From - Spending review Topic 2]]+Dataset[[#This Row],[2029/30 From - Spending review Topic 3]]+Dataset[[#This Row],[2029/30 From - Spending review Topic 4]]+Dataset[[#This Row],[2029/30 From - Other reallocations]] -> 0 | CE29: =Dataset[[#This Row],[2027/28 To - Spending review Topic 1]]+Dataset[[#This Row],[2027/28 To - Spending review Topic 2]]+Dataset[[#This Row],[2027/28 To - Spending review Topic 3]]+Dataset[[#This Row],[2027/28 To - Spending review Topic 4]]+Dataset[[#This Row],[2027/28 To - Other reallocations]] -> 0 | CF29: =Dataset[[#This Row],[2028/29 To - Spending review Topic 1]]+Dataset[[#This Row],[2028/29 To - Spending review Topic 2]]+Dataset[[#This Row],[2028/29 To - Spending review Topic 3]]+Dataset[[#This Row],[2028/29 To - Spending review Topic 4]]+Dataset[[#This Row],[2028/29 To - Other reallocations]] -> 0 | CG29: =Dataset[[#This Row],[2029/30 To - Spending review Topic 1]]+Dataset[[#This Row],[2029/30 To - Spending review Topic 2]]+Dataset[[#This Row],[2029/30 To - Spending review Topic 3]]+Dataset[[#This Row],[2029/30 To - Spending review Topic 4]]+Dataset[[#This Row],[2029/30 To - Other reallocations]] -> 0 | CH29: =Dataset[[#This Row],[2027/28 Targeted savings]]+Dataset[[#This Row],[2027/28 From - Total]] -> 0 | CI29: =Dataset[[#This Row],[2028/29 Targeted savings]]+Dataset[[#This Row],[2028/29 From - Total]] -> 0 | CJ29: =Dataset[[#This Row],[2029/30 Targeted savings]]+Dataset[[#This Row],[2029/30 From - Total]] -> 0 | CK29: =Dataset[[#This Row],[2026/27 Targeted savings]] -> 0 | CL29: =SUM(Dataset[[#This Row],[2027/28 Targeted savings]],Dataset[[#This Row],[2027/28 From - Total]],Dataset[[#This Row],[2027/28 To - Total]]) -> 0 | CM29: =SUM(Dataset[[#This Row],[2028/29 Targeted savings]],Dataset[[#This Row],[2028/29 From - Total]],Dataset[[#This Row],[2028/29 To - Total]]) -> 0 | CN29: =SUM(Dataset[[#This Row],[2029/30 Targeted savings]],Dataset[[#This Row],[2029/30 From - Total]],Dataset[[#This Row],[2029/30 To - Total]]) -> 0 | CO29: =Dataset[[#This Row],[2026/27 Baseline]]+Dataset[[#This Row],[2026/27 Total change]] -> 0 | CP29: =Dataset[[#This Row],[2027/28 Baseline]]+Dataset[[#This Row],[2027/28 Total change]] -> 0 | CQ29: =Dataset[[#This Row],[2028/29 Baseline]]+Dataset[[#This Row],[2028/29 Total change]] -> 0 | CR29: =Dataset[[#This Row],[2029/30 Baseline]]+Dataset[[#This Row],[2029/30 Total change]] -> 0
A30: NAT|Non-transfer item | B30: 17|Infrastructure and planning services | C30: 2027_28 | D30: MTEC2027 | E30: 17 | F30: 1 | G30: 1 | H30: 16225 | I30: 12 | J30: 17 | K30: 01 | L30: 01 | M30: 016225 | N30: 000012 | O30: 17|01|01|000012 | P30: 01 | Q30: 01 | R30: 02 | S30: 12 | T30: 12 | U30: 01|01|02|12|12 | V30: National | W30: Higher Education | X30: Administration | Y30: Ministry | Z30: Non-transfer item | AA30: Current | AB30: Current payments | AC30: Goods and services | AD30: Infrastructure and planning services | AE30: Infrastructure and planning services | AF30: Learning and culture | AG30: Post-school education and training | AH30: NAT | AI30: 0 | AJ30: 0 | AK30: 0 | AL30: 0 | AM30: 0 | AN30: 0 | AO30: 0 | AP30: 0 | AQ30: 0 | AR30: 0 | AS30: 0 | CB30: =Dataset[[#This Row],[2027/28 From - Spending review Topic 1]]+Dataset[[#This Row],[2027/28 From - Spending review Topic 2]]+Dataset[[#This Row],[2027/28 From - Spending review Topic 3]]+Dataset[[#This Row],[2027/28 From - Spending review Topic 4]]+Dataset[[#This Row],[2027/28 From - Other reallocations]] -> 0 | CC30: =Dataset[[#This Row],[2028/29 From - Spending review Topic 1]]+Dataset[[#This Row],[2028/29 From - Spending review Topic 2]]+Dataset[[#This Row],[2028/29 From - Spending review Topic 3]]+Dataset[[#This Row],[2028/29 From - Spending review Topic 4]]+Dataset[[#This Row],[2028/29 From - Other reallocations]] -> 0 | CD30: =Dataset[[#This Row],[2029/30 From - Spending review Topic 1]]+Dataset[[#This Row],[2029/30 From - Spending review Topic 2]]+Dataset[[#This Row],[2029/30 From - Spending review Topic 3]]+Dataset[[#This Row],[2029/30 From - Spending review Topic 4]]+Dataset[[#This Row],[2029/30 From - Other reallocations]] -> 0 | CE30: =Dataset[[#This Row],[2027/28 To - Spending review Topic 1]]+Dataset[[#This Row],[2027/28 To - Spending review Topic 2]]+Dataset[[#This Row],[2027/28 To - Spending review Topic 3]]+Dataset[[#This Row],[2027/28 To - Spending review Topic 4]]+Dataset[[#This Row],[2027/28 To - Other reallocations]] -> 0 | CF30: =Dataset[[#This Row],[2028/29 To - Spending review Topic 1]]+Dataset[[#This Row],[2028/29 To - Spending review Topic 2]]+Dataset[[#This Row],[2028/29 To - Spending review Topic 3]]+Dataset[[#This Row],[2028/29 To - Spending review Topic 4]]+Dataset[[#This Row],[2028/29 To - Other reallocations]] -> 0 | CG30: =Dataset[[#This Row],[2029/30 To - Spending review Topic 1]]+Dataset[[#This Row],[2029/30 To - Spending review Topic 2]]+Dataset[[#This Row],[2029/30 To - Spending review Topic 3]]+Dataset[[#This Row],[2029/30 To - Spending review Topic 4]]+Dataset[[#This Row],[2029/30 To - Other reallocations]] -> 0 | CH30: =Dataset[[#This Row],[2027/28 Targeted savings]]+Dataset[[#This Row],[2027/28 From - Total]] -> 0 | CI30: =Dataset[[#This Row],[2028/29 Targeted savings]]+Dataset[[#This Row],[2028/29 From - Total]] -> 0 | CJ30: =Dataset[[#This Row],[2029/30 Targeted savings]]+Dataset[[#This Row],[2029/30 From - Total]] -> 0 | CK30: =Dataset[[#This Row],[2026/27 Targeted savings]] -> 0 | CL30: =SUM(Dataset[[#This Row],[2027/28 Targeted savings]],Dataset[[#This Row],[2027/28 From - Total]],Dataset[[#This Row],[2027/28 To - Total]]) -> 0 | CM30: =SUM(Dataset[[#This Row],[2028/29 Targeted savings]],Dataset[[#This Row],[2028/29 From - Total]],Dataset[[#This Row],[2028/29 To - Total]]) -> 0 | CN30: =SUM(Dataset[[#This Row],[2029/30 Targeted savings]],Dataset[[#This Row],[2029/30 From - Total]],Dataset[[#This Row],[2029/30 To - Total]]) -> 0 | CO30: =Dataset[[#This Row],[2026/27 Baseline]]+Dataset[[#This Row],[2026/27 Total change]] -> 0 | CP30: =Dataset[[#This Row],[2027/28 Baseline]]+Dataset[[#This Row],[2027/28 Total change]] -> 0 | CQ30: =Dataset[[#This Row],[2028/29 Baseline]]+Dataset[[#This Row],[2028/29 Total change]] -> 0 | CR30: =Dataset[[#This Row],[2029/30 Baseline]]+Dataset[[#This Row],[2029/30 Total change]] -> 0
A31: NAT|Non-transfer item | B31: 17|Laboratory services | C31: 2027_28 | D31: MTEC2027 | E31: 17 | F31: 1 | G31: 1 | H31: 16226 | I31: 13 | J31: 17 | K31: 01 | L31: 01 | M31: 016226 | N31: 000013 | O31: 17|01|01|000013 | P31: 01 | Q31: 01 | R31: 02 | S31: 13 | T31: 13 | U31: 01|01|02|13|13 | V31: National | W31: Higher Education | X31: Administration | Y31: Ministry | Z31: Non-transfer item | AA31: Current | AB31: Current payments | AC31: Goods and services | AD31: Laboratory services | AE31: Laboratory services | AF31: Learning and culture | AG31: Post-school education and training | AH31: NAT | AI31: 0 | AJ31: 0 | AK31: 0 | AL31: 0 | AM31: 0 | AN31: 0 | AO31: 0 | AP31: 0 | AQ31: 0 | AR31: 0 | AS31: 0 | CB31: =Dataset[[#This Row],[2027/28 From - Spending review Topic 1]]+Dataset[[#This Row],[2027/28 From - Spending review Topic 2]]+Dataset[[#This Row],[2027/28 From - Spending review Topic 3]]+Dataset[[#This Row],[2027/28 From - Spending review Topic 4]]+Dataset[[#This Row],[2027/28 From - Other reallocations]] -> 0 | CC31: =Dataset[[#This Row],[2028/29 From - Spending review Topic 1]]+Dataset[[#This Row],[2028/29 From - Spending review Topic 2]]+Dataset[[#This Row],[2028/29 From - Spending review Topic 3]]+Dataset[[#This Row],[2028/29 From - Spending review Topic 4]]+Dataset[[#This Row],[2028/29 From - Other reallocations]] -> 0 | CD31: =Dataset[[#This Row],[2029/30 From - Spending review Topic 1]]+Dataset[[#This Row],[2029/30 From - Spending review Topic 2]]+Dataset[[#This Row],[2029/30 From - Spending review Topic 3]]+Dataset[[#This Row],[2029/30 From - Spending review Topic 4]]+Dataset[[#This Row],[2029/30 From - Other reallocations]] -> 0 | CE31: =Dataset[[#This Row],[2027/28 To - Spending review Topic 1]]+Dataset[[#This Row],[2027/28 To - Spending review Topic 2]]+Dataset[[#This Row],[2027/28 To - Spending review Topic 3]]+Dataset[[#This Row],[2027/28 To - Spending review Topic 4]]+Dataset[[#This Row],[2027/28 To - Other reallocations]] -> 0 | CF31: =Dataset[[#This Row],[2028/29 To - Spending review Topic 1]]+Dataset[[#This Row],[2028/29 To - Spending review Topic 2]]+Dataset[[#This Row],[2028/29 To - Spending review Topic 3]]+Dataset[[#This Row],[2028/29 To - Spending review Topic 4]]+Dataset[[#This Row],[2028/29 To - Other reallocations]] -> 0 | CG31: =Dataset[[#This Row],[2029/30 To - Spending review Topic 1]]+Dataset[[#This Row],[2029/30 To - Spending review Topic 2]]+Dataset[[#This Row],[2029/30 To - Spending review Topic 3]]+Dataset[[#This Row],[2029/30 To - Spending review Topic 4]]+Dataset[[#This Row],[2029/30 To - Other reallocations]] -> 0 | CH31: =Dataset[[#This Row],[2027/28 Targeted savings]]+Dataset[[#This Row],[2027/28 From - Total]] -> 0 | CI31: =Dataset[[#This Row],[2028/29 Targeted savings]]+Dataset[[#This Row],[2028/29 From - Total]] -> 0 | CJ31: =Dataset[[#This Row],[2029/30 Targeted savings]]+Dataset[[#This Row],[2029/30 From - Total]] -> 0 | CK31: =Dataset[[#This Row],[2026/27 Targeted savings]] -> 0 | CL31: =SUM(Dataset[[#This Row],[2027/28 Targeted savings]],Dataset[[#This Row],[2027/28 From - Total]],Dataset[[#This Row],[2027/28 To - Total]]) -> 0 | CM31: =SUM(Dataset[[#This Row],[2028/29 Targeted savings]],Dataset[[#This Row],[2028/29 From - Total]],Dataset[[#This Row],[2028/29 To - Total]]) -> 0 | CN31: =SUM(Dataset[[#This Row],[2029/30 Targeted savings]],Dataset[[#This Row],[2029/30 From - Total]],Dataset[[#This Row],[2029/30 To - Total]]) -> 0 | CO31: =Dataset[[#This Row],[2026/27 Baseline]]+Dataset[[#This Row],[2026/27 Total change]] -> 0 | CP31: =Dataset[[#This Row],[2027/28 Baseline]]+Dataset[[#This Row],[2027/28 Total change]] -> 0 | CQ31: =Dataset[[#This Row],[2028/29 Baseline]]+Dataset[[#This Row],[2028/29 Total change]] -> 0 | CR31: =Dataset[[#This Row],[2029/30 Baseline]]+Dataset[[#This Row],[2029/30 Total change]] -> 0
A32: NAT|Non-transfer item | B32: 17|Legal services (G&S) | C32: 2027_28 | D32: MTEC2027 | E32: 17 | F32: 1 | G32: 1 | H32: 16227 | I32: 14 | J32: 17 | K32: 01 | L32: 01 | M32: 016227 | N32: 000014 | O32: 17|01|01|000014 | P32: 01 | Q32: 01 | R32: 02 | S32: 14 | T32: 14 | U32: 01|01|02|14|14 | V32: National | W32: Higher Education | X32: Administration | Y32: Ministry | Z32: Non-transfer item | AA32: Current | AB32: Current payments | AC32: Goods and services | AD32: Legal services (G&S) | AE32: Legal services (G&S) | AF32: Learning and culture | AG32: Post-school education and training | AH32: NAT | AI32: 0 | AJ32: 0 | AK32: 0 | AL32: 0 | AM32: 0 | AN32: 0 | AO32: 0 | AP32: 0 | AQ32: 0 | AR32: 0 | AS32: 0 | CB32: =Dataset[[#This Row],[2027/28 From - Spending review Topic 1]]+Dataset[[#This Row],[2027/28 From - Spending review Topic 2]]+Dataset[[#This Row],[2027/28 From - Spending review Topic 3]]+Dataset[[#This Row],[2027/28 From - Spending review Topic 4]]+Dataset[[#This Row],[2027/28 From - Other reallocations]] -> 0 | CC32: =Dataset[[#This Row],[2028/29 From - Spending review Topic 1]]+Dataset[[#This Row],[2028/29 From - Spending review Topic 2]]+Dataset[[#This Row],[2028/29 From - Spending review Topic 3]]+Dataset[[#This Row],[2028/29 From - Spending review Topic 4]]+Dataset[[#This Row],[2028/29 From - Other reallocations]] -> 0 | CD32: =Dataset[[#This Row],[2029/30 From - Spending review Topic 1]]+Dataset[[#This Row],[2029/30 From - Spending review Topic 2]]+Dataset[[#This Row],[2029/30 From - Spending review Topic 3]]+Dataset[[#This Row],[2029/30 From - Spending review Topic 4]]+Dataset[[#This Row],[2029/30 From - Other reallocations]] -> 0 | CE32: =Dataset[[#This Row],[2027/28 To - Spending review Topic 1]]+Dataset[[#This Row],[2027/28 To - Spending review Topic 2]]+Dataset[[#This Row],[2027/28 To - Spending review Topic 3]]+Dataset[[#This Row],[2027/28 To - Spending review Topic 4]]+Dataset[[#This Row],[2027/28 To - Other reallocations]] -> 0 | CF32: =Dataset[[#This Row],[2028/29 To - Spending review Topic 1]]+Dataset[[#This Row],[2028/29 To - Spending review Topic 2]]+Dataset[[#This Row],[2028/29 To - Spending review Topic 3]]+Dataset[[#This Row],[2028/29 To - Spending review Topic 4]]+Dataset[[#This Row],[2028/29 To - Other reallocations]] -> 0 | CG32: =Dataset[[#This Row],[2029/30 To - Spending review Topic 1]]+Dataset[[#This Row],[2029/30 To - Spending review Topic 2]]+Dataset[[#This Row],[2029/30 To - Spending review Topic 3]]+Dataset[[#This Row],[2029/30 To - Spending review Topic 4]]+Dataset[[#This Row],[2029/30 To - Other reallocations]] -> 0 | CH32: =Dataset[[#This Row],[2027/28 Targeted savings]]+Dataset[[#This Row],[2027/28 From - Total]] -> 0 | CI32: =Dataset[[#This Row],[2028/29 Targeted savings]]+Dataset[[#This Row],[2028/29 From - Total]] -> 0 | CJ32: =Dataset[[#This Row],[2029/30 Targeted savings]]+Dataset[[#This Row],[2029/30 From - Total]] -> 0 | CK32: =Dataset[[#This Row],[2026/27 Targeted savings]] -> 0 | CL32: =SUM(Dataset[[#This Row],[2027/28 Targeted savings]],Dataset[[#This Row],[2027/28 From - Total]],Dataset[[#This Row],[2027/28 To - Total]]) -> 0 | CM32: =SUM(Dataset[[#This Row],[2028/29 Targeted savings]],Dataset[[#This Row],[2028/29 From - Total]],Dataset[[#This Row],[2028/29 To - Total]]) -> 0 | CN32: =SUM(Dataset[[#This Row],[2029/30 Targeted savings]],Dataset[[#This Row],[2029/30 From - Total]],Dataset[[#This Row],[2029/30 To - Total]]) -> 0 | CO32: =Dataset[[#This Row],[2026/27 Baseline]]+Dataset[[#This Row],[2026/27 Total change]] -> 0 | CP32: =Dataset[[#This Row],[2027/28 Baseline]]+Dataset[[#This Row],[2027/28 Total change]] -> 0 | CQ32: =Dataset[[#This Row],[2028/29 Baseline]]+Dataset[[#This Row],[2028/29 Total change]] -> 0 | CR32: =Dataset[[#This Row],[2029/30 Baseline]]+Dataset[[#This Row],[2029/30 Total change]] -> 0
A33: NAT|Non-transfer item | B33: 17|Science and technological services | C33: 2027_28 | D33: MTEC2027 | E33: 17 | F33: 1 | G33: 1 | H33: 16228 | I33: 15 | J33: 17 | K33: 01 | L33: 01 | M33: 016228 | N33: 000015 | O33: 17|01|01|000015 | P33: 01 | Q33: 01 | R33: 02 | S33: 15 | T33: 15 | U33: 01|01|02|15|15 | V33: National | W33: Higher Education | X33: Administration | Y33: Ministry | Z33: Non-transfer item | AA33: Current | AB33: Current payments | AC33: Goods and services | AD33: Science and technological services | AE33: Science and technological services | AF33: Learning and culture | AG33: Post-school education and training | AH33: NAT | AI33: 0 | AJ33: 0 | AK33: 0 | AL33: 0 | AM33: 0 | AN33: 0 | AO33: 0 | AP33: 0 | AQ33: 0 | AR33: 0 | AS33: 0 | CB33: =Dataset[[#This Row],[2027/28 From - Spending review Topic 1]]+Dataset[[#This Row],[2027/28 From - Spending review Topic 2]]+Dataset[[#This Row],[2027/28 From - Spending review Topic 3]]+Dataset[[#This Row],[2027/28 From - Spending review Topic 4]]+Dataset[[#This Row],[2027/28 From - Other reallocations]] -> 0 | CC33: =Dataset[[#This Row],[2028/29 From - Spending review Topic 1]]+Dataset[[#This Row],[2028/29 From - Spending review Topic 2]]+Dataset[[#This Row],[2028/29 From - Spending review Topic 3]]+Dataset[[#This Row],[2028/29 From - Spending review Topic 4]]+Dataset[[#This Row],[2028/29 From - Other reallocations]] -> 0 | CD33: =Dataset[[#This Row],[2029/30 From - Spending review Topic 1]]+Dataset[[#This Row],[2029/30 From - Spending review Topic 2]]+Dataset[[#This Row],[2029/30 From - Spending review Topic 3]]+Dataset[[#This Row],[2029/30 From - Spending review Topic 4]]+Dataset[[#This Row],[2029/30 From - Other reallocations]] -> 0 | CE33: =Dataset[[#This Row],[2027/28 To - Spending review Topic 1]]+Dataset[[#This Row],[2027/28 To - Spending review Topic 2]]+Dataset[[#This Row],[2027/28 To - Spending review Topic 3]]+Dataset[[#This Row],[2027/28 To - Spending review Topic 4]]+Dataset[[#This Row],[2027/28 To - Other reallocations]] -> 0 | CF33: =Dataset[[#This Row],[2028/29 To - Spending review Topic 1]]+Dataset[[#This Row],[2028/29 To - Spending review Topic 2]]+Dataset[[#This Row],[2028/29 To - Spending review Topic 3]]+Dataset[[#This Row],[2028/29 To - Spending review Topic 4]]+Dataset[[#This Row],[2028/29 To - Other reallocations]] -> 0 | CG33: =Dataset[[#This Row],[2029/30 To - Spending review Topic 1]]+Dataset[[#This Row],[2029/30 To - Spending review Topic 2]]+Dataset[[#This Row],[2029/30 To - Spending review Topic 3]]+Dataset[[#This Row],[2029/30 To - Spending review Topic 4]]+Dataset[[#This Row],[2029/30 To - Other reallocations]] -> 0 | CH33: =Dataset[[#This Row],[2027/28 Targeted savings]]+Dataset[[#This Row],[2027/28 From - Total]] -> 0 | CI33: =Dataset[[#This Row],[2028/29 Targeted savings]]+Dataset[[#This Row],[2028/29 From - Total]] -> 0 | CJ33: =Dataset[[#This Row],[2029/30 Targeted savings]]+Dataset[[#This Row],[2029/30 From - Total]] -> 0 | CK33: =Dataset[[#This Row],[2026/27 Targeted savings]] -> 0 | CL33: =SUM(Dataset[[#This Row],[2027/28 Targeted savings]],Dataset[[#This Row],[2027/28 From - Total]],Dataset[[#This Row],[2027/28 To - Total]]) -> 0 | CM33: =SUM(Dataset[[#This Row],[2028/29 Targeted savings]],Dataset[[#This Row],[2028/29 From - Total]],Dataset[[#This Row],[2028/29 To - Total]]) -> 0 | CN33: =SUM(Dataset[[#This Row],[2029/30 Targeted savings]],Dataset[[#This Row],[2029/30 From - Total]],Dataset[[#This Row],[2029/30 To - Total]]) -> 0 | CO33: =Dataset[[#This Row],[2026/27 Baseline]]+Dataset[[#This Row],[2026/27 Total change]] -> 0 | CP33: =Dataset[[#This Row],[2027/28 Baseline]]+Dataset[[#This Row],[2027/28 Total change]] -> 0 | CQ33: =Dataset[[#This Row],[2028/29 Baseline]]+Dataset[[#This Row],[2028/29 Total change]] -> 0 | CR33: =Dataset[[#This Row],[2029/30 Baseline]]+Dataset[[#This Row],[2029/30 Total change]] -> 0
A34: NAT|Non-transfer item | B34: 17|Contractors | C34: 2027_28 | D34: MTEC2027 | E34: 17 | F34: 1 | G34: 1 | H34: 16229 | I34: 16 | J34: 17 | K34: 01 | L34: 01 | M34: 016229 | N34: 000016 | O34: 17|01|01|000016 | P34: 01 | Q34: 01 | R34: 02 | S34: 16 | T34: 16 | U34: 01|01|02|16|16 | V34: National | W34: Higher Education | X34: Administration | Y34: Ministry | Z34: Non-transfer item | AA34: Current | AB34: Current payments | AC34: Goods and services | AD34: Contractors | AE34: Contractors | AF34: Learning and culture | AG34: Post-school education and training | AH34: NAT | AI34: 0 | AJ34: 0 | AK34: 0 | AL34: 0 | AM34: 0 | AN34: 0 | AO34: 0 | AP34: 0 | AQ34: 0 | AR34: 0 | AS34: 0 | CB34: =Dataset[[#This Row],[2027/28 From - Spending review Topic 1]]+Dataset[[#This Row],[2027/28 From - Spending review Topic 2]]+Dataset[[#This Row],[2027/28 From - Spending review Topic 3]]+Dataset[[#This Row],[2027/28 From - Spending review Topic 4]]+Dataset[[#This Row],[2027/28 From - Other reallocations]] -> 0 | CC34: =Dataset[[#This Row],[2028/29 From - Spending review Topic 1]]+Dataset[[#This Row],[2028/29 From - Spending review Topic 2]]+Dataset[[#This Row],[2028/29 From - Spending review Topic 3]]+Dataset[[#This Row],[2028/29 From - Spending review Topic 4]]+Dataset[[#This Row],[2028/29 From - Other reallocations]] -> 0 | CD34: =Dataset[[#This Row],[2029/30 From - Spending review Topic 1]]+Dataset[[#This Row],[2029/30 From - Spending review Topic 2]]+Dataset[[#This Row],[2029/30 From - Spending review Topic 3]]+Dataset[[#This Row],[2029/30 From - Spending review Topic 4]]+Dataset[[#This Row],[2029/30 From - Other reallocations]] -> 0 | CE34: =Dataset[[#This Row],[2027/28 To - Spending review Topic 1]]+Dataset[[#This Row],[2027/28 To - Spending review Topic 2]]+Dataset[[#This Row],[2027/28 To - Spending review Topic 3]]+Dataset[[#This Row],[2027/28 To - Spending review Topic 4]]+Dataset[[#This Row],[2027/28 To - Other reallocations]] -> 0 | CF34: =Dataset[[#This Row],[2028/29 To - Spending review Topic 1]]+Dataset[[#This Row],[2028/29 To - Spending review Topic 2]]+Dataset[[#This Row],[2028/29 To - Spending review Topic 3]]+Dataset[[#This Row],[2028/29 To - Spending review Topic 4]]+Dataset[[#This Row],[2028/29 To - Other reallocations]] -> 0 | CG34: =Dataset[[#This Row],[2029/30 To - Spending review Topic 1]]+Dataset[[#This Row],[2029/30 To - Spending review Topic 2]]+Dataset[[#This Row],[2029/30 To - Spending review Topic 3]]+Dataset[[#This Row],[2029/30 To - Spending review Topic 4]]+Dataset[[#This Row],[2029/30 To - Other reallocations]] -> 0 | CH34: =Dataset[[#This Row],[2027/28 Targeted savings]]+Dataset[[#This Row],[2027/28 From - Total]] -> 0 | CI34: =Dataset[[#This Row],[2028/29 Targeted savings]]+Dataset[[#This Row],[2028/29 From - Total]] -> 0 | CJ34: =Dataset[[#This Row],[2029/30 Targeted savings]]+Dataset[[#This Row],[2029/30 From - Total]] -> 0 | CK34: =Dataset[[#This Row],[2026/27 Targeted savings]] -> 0 | CL34: =SUM(Dataset[[#This Row],[2027/28 Targeted savings]],Dataset[[#This Row],[2027/28 From - Total]],Dataset[[#This Row],[2027/28 To - Total]]) -> 0 | CM34: =SUM(Dataset[[#This Row],[2028/29 Targeted savings]],Dataset[[#This Row],[2028/29 From - Total]],Dataset[[#This Row],[2028/29 To - Total]]) -> 0 | CN34: =SUM(Dataset[[#This Row],[2029/30 Targeted savings]],Dataset[[#This Row],[2029/30 From - Total]],Dataset[[#This Row],[2029/30 To - Total]]) -> 0 | CO34: =Dataset[[#This Row],[2026/27 Baseline]]+Dataset[[#This Row],[2026/27 Total change]] -> 0 | CP34: =Dataset[[#This Row],[2027/28 Baseline]]+Dataset[[#This Row],[2027/28 Total change]] -> 0 | CQ34: =Dataset[[#This Row],[2028/29 Baseline]]+Dataset[[#This Row],[2028/29 Total change]] -> 0 | CR34: =Dataset[[#This Row],[2029/30 Baseline]]+Dataset[[#This Row],[2029/30 Total change]] -> 0
A35: NAT|Non-transfer item | B35: 17|Agency and support/outsourced services | C35: 2027_28 | D35: MTEC2027 | E35: 17 | F35: 1 | G35: 1 | H35: 16230 | I35: 17 | J35: 17 | K35: 01 | L35: 01 | M35: 016230 | N35: 000017 | O35: 17|01|01|000017 | P35: 01 | Q35: 01 | R35: 02 | S35: 17 | T35: 17 | U35: 01|01|02|17|17 | V35: National | W35: Higher Education | X35: Administration | Y35: Ministry | Z35: Non-transfer item | AA35: Current | AB35: Current payments | AC35: Goods and services | AD35: Agency and support/outsourced services | AE35: Agency and support/outsourced services | AF35: Learning and culture | AG35: Post-school education and training | AH35: NAT | AI35: 0 | AJ35: 0 | AK35: 0 | AL35: 0 | AM35: 0 | AN35: 0 | AO35: 0 | AP35: 0 | AQ35: 0 | AR35: 0 | AS35: 0 | CB35: =Dataset[[#This Row],[2027/28 From - Spending review Topic 1]]+Dataset[[#This Row],[2027/28 From - Spending review Topic 2]]+Dataset[[#This Row],[2027/28 From - Spending review Topic 3]]+Dataset[[#This Row],[2027/28 From - Spending review Topic 4]]+Dataset[[#This Row],[2027/28 From - Other reallocations]] -> 0 | CC35: =Dataset[[#This Row],[2028/29 From - Spending review Topic 1]]+Dataset[[#This Row],[2028/29 From - Spending review Topic 2]]+Dataset[[#This Row],[2028/29 From - Spending review Topic 3]]+Dataset[[#This Row],[2028/29 From - Spending review Topic 4]]+Dataset[[#This Row],[2028/29 From - Other reallocations]] -> 0 | CD35: =Dataset[[#This Row],[2029/30 From - Spending review Topic 1]]+Dataset[[#This Row],[2029/30 From - Spending review Topic 2]]+Dataset[[#This Row],[2029/30 From - Spending review Topic 3]]+Dataset[[#This Row],[2029/30 From - Spending review Topic 4]]+Dataset[[#This Row],[2029/30 From - Other reallocations]] -> 0 | CE35: =Dataset[[#This Row],[2027/28 To - Spending review Topic 1]]+Dataset[[#This Row],[2027/28 To - Spending review Topic 2]]+Dataset[[#This Row],[2027/28 To - Spending review Topic 3]]+Dataset[[#This Row],[2027/28 To - Spending review Topic 4]]+Dataset[[#This Row],[2027/28 To - Other reallocations]] -> 0 | CF35: =Dataset[[#This Row],[2028/29 To - Spending review Topic 1]]+Dataset[[#This Row],[2028/29 To - Spending review Topic 2]]+Dataset[[#This Row],[2028/29 To - Spending review Topic 3]]+Dataset[[#This Row],[2028/29 To - Spending review Topic 4]]+Dataset[[#This Row],[2028/29 To - Other reallocations]] -> 0 | CG35: =Dataset[[#This Row],[2029/30 To - Spending review Topic 1]]+Dataset[[#This Row],[2029/30 To - Spending review Topic 2]]+Dataset[[#This Row],[2029/30 To - Spending review Topic 3]]+Dataset[[#This Row],[2029/30 To - Spending review Topic 4]]+Dataset[[#This Row],[2029/30 To - Other reallocations]] -> 0 | CH35: =Dataset[[#This Row],[2027/28 Targeted savings]]+Dataset[[#This Row],[2027/28 From - Total]] -> 0 | CI35: =Dataset[[#This Row],[2028/29 Targeted savings]]+Dataset[[#This Row],[2028/29 From - Total]] -> 0 | CJ35: =Dataset[[#This Row],[2029/30 Targeted savings]]+Dataset[[#This Row],[2029/30 From - Total]] -> 0 | CK35: =Dataset[[#This Row],[2026/27 Targeted savings]] -> 0 | CL35: =SUM(Dataset[[#This Row],[2027/28 Targeted savings]],Dataset[[#This Row],[2027/28 From - Total]],Dataset[[#This Row],[2027/28 To - Total]]) -> 0 | CM35: =SUM(Dataset[[#This Row],[2028/29 Targeted savings]],Dataset[[#This Row],[2028/29 From - Total]],Dataset[[#This Row],[2028/29 To - Total]]) -> 0 | CN35: =SUM(Dataset[[#This Row],[2029/30 Targeted savings]],Dataset[[#This Row],[2029/30 From - Total]],Dataset[[#This Row],[2029/30 To - Total]]) -> 0 | CO35: =Dataset[[#This Row],[2026/27 Baseline]]+Dataset[[#This Row],[2026/27 Total change]] -> 0 | CP35: =Dataset[[#This Row],[2027/28 Baseline]]+Dataset[[#This Row],[2027/28 Total change]] -> 0 | CQ35: =Dataset[[#This Row],[2028/29 Baseline]]+Dataset[[#This Row],[2028/29 Total change]] -> 0 | CR35: =Dataset[[#This Row],[2029/30 Baseline]]+Dataset[[#This Row],[2029/30 Total change]] -> 0
A36: NAT|Non-transfer item | B36: 17|Entertainment | C36: 2027_28 | D36: MTEC2027 | E36: 17 | F36: 1 | G36: 1 | H36: 16231 | I36: 18 | J36: 17 | K36: 01 | L36: 01 | M36: 016231 | N36: 000018 | O36: 17|01|01|000018 | P36: 01 | Q36: 01 | R36: 02 | S36: 18 | T36: 18 | U36: 01|01|02|18|18 | V36: National | W36: Higher Education | X36: Administration | Y36: Ministry | Z36: Non-transfer item | AA36: Current | AB36: Current payments | AC36: Goods and services | AD36: Entertainment | AE36: Entertainment | AF36: Learning and culture | AG36: Post-school education and training | AH36: NAT | AI36: 0 | AJ36: 0 | AK36: 0 | AL36: 0 | AM36: 0 | AN36: 0 | AO36: 0 | AP36: 0 | AQ36: 0 | AR36: 0 | AS36: 0 | CB36: =Dataset[[#This Row],[2027/28 From - Spending review Topic 1]]+Dataset[[#This Row],[2027/28 From - Spending review Topic 2]]+Dataset[[#This Row],[2027/28 From - Spending review Topic 3]]+Dataset[[#This Row],[2027/28 From - Spending review Topic 4]]+Dataset[[#This Row],[2027/28 From - Other reallocations]] -> 0 | CC36: =Dataset[[#This Row],[2028/29 From - Spending review Topic 1]]+Dataset[[#This Row],[2028/29 From - Spending review Topic 2]]+Dataset[[#This Row],[2028/29 From - Spending review Topic 3]]+Dataset[[#This Row],[2028/29 From - Spending review Topic 4]]+Dataset[[#This Row],[2028/29 From - Other reallocations]] -> 0 | CD36: =Dataset[[#This Row],[2029/30 From - Spending review Topic 1]]+Dataset[[#This Row],[2029/30 From - Spending review Topic 2]]+Dataset[[#This Row],[2029/30 From - Spending review Topic 3]]+Dataset[[#This Row],[2029/30 From - Spending review Topic 4]]+Dataset[[#This Row],[2029/30 From - Other reallocations]] -> 0 | CE36: =Dataset[[#This Row],[2027/28 To - Spending review Topic 1]]+Dataset[[#This Row],[2027/28 To - Spending review Topic 2]]+Dataset[[#This Row],[2027/28 To - Spending review Topic 3]]+Dataset[[#This Row],[2027/28 To - Spending review Topic 4]]+Dataset[[#This Row],[2027/28 To - Other reallocations]] -> 0 | CF36: =Dataset[[#This Row],[2028/29 To - Spending review Topic 1]]+Dataset[[#This Row],[2028/29 To - Spending review Topic 2]]+Dataset[[#This Row],[2028/29 To - Spending review Topic 3]]+Dataset[[#This Row],[2028/29 To - Spending review Topic 4]]+Dataset[[#This Row],[2028/29 To - Other reallocations]] -> 0 | CG36: =Dataset[[#This Row],[2029/30 To - Spending review Topic 1]]+Dataset[[#This Row],[2029/30 To - Spending review Topic 2]]+Dataset[[#This Row],[2029/30 To - Spending review Topic 3]]+Dataset[[#This Row],[2029/30 To - Spending review Topic 4]]+Dataset[[#This Row],[2029/30 To - Other reallocations]] -> 0 | CH36: =Dataset[[#This Row],[2027/28 Targeted savings]]+Dataset[[#This Row],[2027/28 From - Total]] -> 0 | CI36: =Dataset[[#This Row],[2028/29 Targeted savings]]+Dataset[[#This Row],[2028/29 From - Total]] -> 0 | CJ36: =Dataset[[#This Row],[2029/30 Targeted savings]]+Dataset[[#This Row],[2029/30 From - Total]] -> 0 | CK36: =Dataset[[#This Row],[2026/27 Targeted savings]] -> 0 | CL36: =SUM(Dataset[[#This Row],[2027/28 Targeted savings]],Dataset[[#This Row],[2027/28 From - Total]],Dataset[[#This Row],[2027/28 To - Total]]) -> 0 | CM36: =SUM(Dataset[[#This Row],[2028/29 Targeted savings]],Dataset[[#This Row],[2028/29 From - Total]],Dataset[[#This Row],[2028/29 To - Total]]) -> 0 | CN36: =SUM(Dataset[[#This Row],[2029/30 Targeted savings]],Dataset[[#This Row],[2029/30 From - Total]],Dataset[[#This Row],[2029/30 To - Total]]) -> 0 | CO36: =Dataset[[#This Row],[2026/27 Baseline]]+Dataset[[#This Row],[2026/27 Total change]] -> 0 | CP36: =Dataset[[#This Row],[2027/28 Baseline]]+Dataset[[#This Row],[2027/28 Total change]] -> 0 | CQ36: =Dataset[[#This Row],[2028/29 Baseline]]+Dataset[[#This Row],[2028/29 Total change]] -> 0 | CR36: =Dataset[[#This Row],[2029/30 Baseline]]+Dataset[[#This Row],[2029/30 Total change]] -> 0
A37: NAT|Non-transfer | B37: 17|Fleet services (including government motor transport) | C37: 2027_28 | D37: MTEC2027 | E37: 17 | F37: 1 | G37: 1 | H37: 16232 | I37: 19 | J37: 17 | K37: 01 | L37: 01 | M37: 016232 | N37: 000019 | O37: 17|01|01|000019 | P37: 01 | Q37: 01 | R37: 02 | S37: 19 | T37: 19 | U37: 01|01|02|19|19 | V37: National | W37: Higher Education | X37: Administration | Y37: Ministry | Z37: Non-transfer | AA37: Current | AB37: Current payments | AC37: Goods and services | AD37: Fleet services (including government motor transport) | AE37: Fleet services (including government motor transport) | AF37: Learning and culture | AG37: Post-school education and training | AH37: NAT | AI37: 0 | AJ37: 0 | AK37: 0 | AL37: 1400 | AM37: 714 | AN37: 914 | AO37: 976 | AP37: 3312 | AQ37: 3439 | AR37: 3551 | AS37: 3658 | CB37: =Dataset[[#This Row],[2027/28 From - Spending review Topic 1]]+Dataset[[#This Row],[2027/28 From - Spending review Topic 2]]+Dataset[[#This Row],[2027/28 From - Spending review Topic 3]]+Dataset[[#This Row],[2027/28 From - Spending review Topic 4]]+Dataset[[#This Row],[2027/28 From - Other reallocations]] -> 0 | CC37: =Dataset[[#This Row],[2028/29 From - Spending review Topic 1]]+Dataset[[#This Row],[2028/29 From - Spending review Topic 2]]+Dataset[[#This Row],[2028/29 From - Spending review Topic 3]]+Dataset[[#This Row],[2028/29 From - Spending review Topic 4]]+Dataset[[#This Row],[2028/29 From - Other reallocations]] -> 0 | CD37: =Dataset[[#This Row],[2029/30 From - Spending review Topic 1]]+Dataset[[#This Row],[2029/30 From - Spending review Topic 2]]+Dataset[[#This Row],[2029/30 From - Spending review Topic 3]]+Dataset[[#This Row],[2029/30 From - Spending review Topic 4]]+Dataset[[#This Row],[2029/30 From - Other reallocations]] -> 0 | CE37: =Dataset[[#This Row],[2027/28 To - Spending review Topic 1]]+Dataset[[#This Row],[2027/28 To - Spending review Topic 2]]+Dataset[[#This Row],[2027/28 To - Spending review Topic 3]]+Dataset[[#This Row],[2027/28 To - Spending review Topic 4]]+Dataset[[#This Row],[2027/28 To - Other reallocations]] -> 0 | CF37: =Dataset[[#This Row],[2028/29 To - Spending review Topic 1]]+Dataset[[#This Row],[2028/29 To - Spending review Topic 2]]+Dataset[[#This Row],[2028/29 To - Spending review Topic 3]]+Dataset[[#This Row],[2028/29 To - Spending review Topic 4]]+Dataset[[#This Row],[2028/29 To - Other reallocations]] -> 0 | CG37: =Dataset[[#This Row],[2029/30 To - Spending review Topic 1]]+Dataset[[#This Row],[2029/30 To - Spending review Topic 2]]+Dataset[[#This Row],[2029/30 To - Spending review Topic 3]]+Dataset[[#This Row],[2029/30 To - Spending review Topic 4]]+Dataset[[#This Row],[2029/30 To - Other reallocations]] -> 0 | CH37: =Dataset[[#This Row],[2027/28 Targeted savings]]+Dataset[[#This Row],[2027/28 From - Total]] -> 0 | CI37: =Dataset[[#This Row],[2028/29 Targeted savings]]+Dataset[[#This Row],[2028/29 From - Total]] -> 0 | CJ37: =Dataset[[#This Row],[2029/30 Targeted savings]]+Dataset[[#This Row],[2029/30 From - Total]] -> 0 | CK37: =Dataset[[#This Row],[2026/27 Targeted savings]] -> 0 | CL37: =SUM(Dataset[[#This Row],[2027/28 Targeted savings]],Dataset[[#This Row],[2027/28 From - Total]],Dataset[[#This Row],[2027/28 To - Total]]) -> 0 | CM37: =SUM(Dataset[[#This Row],[2028/29 Targeted savings]],Dataset[[#This Row],[2028/29 From - Total]],Dataset[[#This Row],[2028/29 To - Total]]) -> 0 | CN37: =SUM(Dataset[[#This Row],[2029/30 Targeted savings]],Dataset[[#This Row],[2029/30 From - Total]],Dataset[[#This Row],[2029/30 To - Total]]) -> 0 | CO37: =Dataset[[#This Row],[2026/27 Baseline]]+Dataset[[#This Row],[2026/27 Total change]] -> 3312 | CP37: =Dataset[[#This Row],[2027/28 Baseline]]+Dataset[[#This Row],[2027/28 Total change]] -> 3439 | CQ37: =Dataset[[#This Row],[2028/29 Baseline]]+Dataset[[#This Row],[2028/29 Total change]] -> 3551 | CR37: =Dataset[[#This Row],[2029/30 Baseline]]+Dataset[[#This Row],[2029/30 Total change]] -> 3658
A38: NAT|Non-transfer item | B38: 17|Housing | C38: 2027_28 | D38: MTEC2027 | E38: 17 | F38: 1 | G38: 1 | H38: 16233 | I38: 20 | J38: 17 | K38: 01 | L38: 01 | M38: 016233 | N38: 000020 | O38: 17|01|01|000020 | P38: 01 | Q38: 01 | R38: 02 | S38: 20 | T38: 20 | U38: 01|01|02|20|20 | V38: National | W38: Higher Education | X38: Administration | Y38: Ministry | Z38: Non-transfer item | AA38: Current | AB38: Current payments | AC38: Goods and services | AD38: Housing | AE38: Housing | AF38: Learning and culture | AG38: Post-school education and training | AH38: NAT | AI38: 0 | AJ38: 0 | AK38: 0 | AL38: 0 | AM38: 0 | AN38: 0 | AO38: 0 | AP38: 0 | AQ38: 0 | AR38: 0 | AS38: 0 | CB38: =Dataset[[#This Row],[2027/28 From - Spending review Topic 1]]+Dataset[[#This Row],[2027/28 From - Spending review Topic 2]]+Dataset[[#This Row],[2027/28 From - Spending review Topic 3]]+Dataset[[#This Row],[2027/28 From - Spending review Topic 4]]+Dataset[[#This Row],[2027/28 From - Other reallocations]] -> 0 | CC38: =Dataset[[#This Row],[2028/29 From - Spending review Topic 1]]+Dataset[[#This Row],[2028/29 From - Spending review Topic 2]]+Dataset[[#This Row],[2028/29 From - Spending review Topic 3]]+Dataset[[#This Row],[2028/29 From - Spending review Topic 4]]+Dataset[[#This Row],[2028/29 From - Other reallocations]] -> 0 | CD38: =Dataset[[#This Row],[2029/30 From - Spending review Topic 1]]+Dataset[[#This Row],[2029/30 From - Spending review Topic 2]]+Dataset[[#This Row],[2029/30 From - Spending review Topic 3]]+Dataset[[#This Row],[2029/30 From - Spending review Topic 4]]+Dataset[[#This Row],[2029/30 From - Other reallocations]] -> 0 | CE38: =Dataset[[#This Row],[2027/28 To - Spending review Topic 1]]+Dataset[[#This Row],[2027/28 To - Spending review Topic 2]]+Dataset[[#This Row],[2027/28 To - Spending review Topic 3]]+Dataset[[#This Row],[2027/28 To - Spending review Topic 4]]+Dataset[[#This Row],[2027/28 To - Other reallocations]] -> 0 | CF38: =Dataset[[#This Row],[2028/29 To - Spending review Topic 1]]+Dataset[[#This Row],[2028/29 To - Spending review Topic 2]]+Dataset[[#This Row],[2028/29 To - Spending review Topic 3]]+Dataset[[#This Row],[2028/29 To - Spending review Topic 4]]+Dataset[[#This Row],[2028/29 To - Other reallocations]] -> 0 | CG38: =Dataset[[#This Row],[2029/30 To - Spending review Topic 1]]+Dataset[[#This Row],[2029/30 To - Spending review Topic 2]]+Dataset[[#This Row],[2029/30 To - Spending review Topic 3]]+Dataset[[#This Row],[2029/30 To - Spending review Topic 4]]+Dataset[[#This Row],[2029/30 To - Other reallocations]] -> 0 | CH38: =Dataset[[#This Row],[2027/28 Targeted savings]]+Dataset[[#This Row],[2027/28 From - Total]] -> 0 | CI38: =Dataset[[#This Row],[2028/29 Targeted savings]]+Dataset[[#This Row],[2028/29 From - Total]] -> 0 | CJ38: =Dataset[[#This Row],[2029/30 Targeted savings]]+Dataset[[#This Row],[2029/30 From - Total]] -> 0 | CK38: =Dataset[[#This Row],[2026/27 Targeted savings]] -> 0 | CL38: =SUM(Dataset[[#This Row],[2027/28 Targeted savings]],Dataset[[#This Row],[2027/28 From - Total]],Dataset[[#This Row],[2027/28 To - Total]]) -> 0 | CM38: =SUM(Dataset[[#This Row],[2028/29 Targeted savings]],Dataset[[#This Row],[2028/29 From - Total]],Dataset[[#This Row],[2028/29 To - Total]]) -> 0 | CN38: =SUM(Dataset[[#This Row],[2029/30 Targeted savings]],Dataset[[#This Row],[2029/30 From - Total]],Dataset[[#This Row],[2029/30 To - Total]]) -> 0 | CO38: =Dataset[[#This Row],[2026/27 Baseline]]+Dataset[[#This Row],[2026/27 Total change]] -> 0 | CP38: =Dataset[[#This Row],[2027/28 Baseline]]+Dataset[[#This Row],[2027/28 Total change]] -> 0 | CQ38: =Dataset[[#This Row],[2028/29 Baseline]]+Dataset[[#This Row],[2028/29 Total change]] -> 0 | CR38: =Dataset[[#This Row],[2029/30 Baseline]]+Dataset[[#This Row],[2029/30 Total change]] -> 0
A39: NAT|Non-transfer item | B39: 17|Inventory: Clothing material and accessories | C39: 2027_28 | D39: MTEC2027 | E39: 17 | F39: 1 | G39: 1 | H39: 16234 | I39: 21 | J39: 17 | K39: 01 | L39: 01 | M39: 016234 | N39: 000021 | O39: 17|01|01|000021 | P39: 01 | Q39: 01 | R39: 02 | S39: 21 | T39: 21 | U39: 01|01|02|21|21 | V39: National | W39: Higher Education | X39: Administration | Y39: Ministry | Z39: Non-transfer item | AA39: Current | AB39: Current payments | AC39: Goods and services | AD39: Inventory: Clothing material and accessories | AE39: Inventory: Clothing material and accessories | AF39: Learning and culture | AG39: Post-school education and training | AH39: NAT | AI39: 0 | AJ39: 0 | AK39: 0 | AL39: 0 | AM39: 0 | AN39: 0 | AO39: 0 | AP39: 0 | AQ39: 0 | AR39: 0 | AS39: 0 | CB39: =Dataset[[#This Row],[2027/28 From - Spending review Topic 1]]+Dataset[[#This Row],[2027/28 From - Spending review Topic 2]]+Dataset[[#This Row],[2027/28 From - Spending review Topic 3]]+Dataset[[#This Row],[2027/28 From - Spending review Topic 4]]+Dataset[[#This Row],[2027/28 From - Other reallocations]] -> 0 | CC39: =Dataset[[#This Row],[2028/29 From - Spending review Topic 1]]+Dataset[[#This Row],[2028/29 From - Spending review Topic 2]]+Dataset[[#This Row],[2028/29 From - Spending review Topic 3]]+Dataset[[#This Row],[2028/29 From - Spending review Topic 4]]+Dataset[[#This Row],[2028/29 From - Other reallocations]] -> 0 | CD39: =Dataset[[#This Row],[2029/30 From - Spending review Topic 1]]+Dataset[[#This Row],[2029/30 From - Spending review Topic 2]]+Dataset[[#This Row],[2029/30 From - Spending review Topic 3]]+Dataset[[#This Row],[2029/30 From - Spending review Topic 4]]+Dataset[[#This Row],[2029/30 From - Other reallocations]] -> 0 | CE39: =Dataset[[#This Row],[2027/28 To - Spending review Topic 1]]+Dataset[[#This Row],[2027/28 To - Spending review Topic 2]]+Dataset[[#This Row],[2027/28 To - Spending review Topic 3]]+Dataset[[#This Row],[2027/28 To - Spending review Topic 4]]+Dataset[[#This Row],[2027/28 To - Other reallocations]] -> 0 | CF39: =Dataset[[#This Row],[2028/29 To - Spending review Topic 1]]+Dataset[[#This Row],[2028/29 To - Spending review Topic 2]]+Dataset[[#This Row],[2028/29 To - Spending review Topic 3]]+Dataset[[#This Row],[2028/29 To - Spending review Topic 4]]+Dataset[[#This Row],[2028/29 To - Other reallocations]] -> 0 | CG39: =Dataset[[#This Row],[2029/30 To - Spending review Topic 1]]+Dataset[[#This Row],[2029/30 To - Spending review Topic 2]]+Dataset[[#This Row],[2029/30 To - Spending review Topic 3]]+Dataset[[#This Row],[2029/30 To - Spending review Topic 4]]+Dataset[[#This Row],[2029/30 To - Other reallocations]] -> 0 | CH39: =Dataset[[#This Row],[2027/28 Targeted savings]]+Dataset[[#This Row],[2027/28 From - Total]] -> 0 | CI39: =Dataset[[#This Row],[2028/29 Targeted savings]]+Dataset[[#This Row],[2028/29 From - Total]] -> 0 | CJ39: =Dataset[[#This Row],[2029/30 Targeted savings]]+Dataset[[#This Row],[2029/30 From - Total]] -> 0 | CK39: =Dataset[[#This Row],[2026/27 Targeted savings]] -> 0 | CL39: =SUM(Dataset[[#This Row],[2027/28 Targeted savings]],Dataset[[#This Row],[2027/28 From - Total]],Dataset[[#This Row],[2027/28 To - Total]]) -> 0 | CM39: =SUM(Dataset[[#This Row],[2028/29 Targeted savings]],Dataset[[#This Row],[2028/29 From - Total]],Dataset[[#This Row],[2028/29 To - Total]]) -> 0 | CN39: =SUM(Dataset[[#This Row],[2029/30 Targeted savings]],Dataset[[#This Row],[2029/30 From - Total]],Dataset[[#This Row],[2029/30 To - Total]]) -> 0 | CO39: =Dataset[[#This Row],[2026/27 Baseline]]+Dataset[[#This Row],[2026/27 Total change]] -> 0 | CP39: =Dataset[[#This Row],[2027/28 Baseline]]+Dataset[[#This Row],[2027/28 Total change]] -> 0 | CQ39: =Dataset[[#This Row],[2028/29 Baseline]]+Dataset[[#This Row],[2028/29 Total change]] -> 0 | CR39: =Dataset[[#This Row],[2029/30 Baseline]]+Dataset[[#This Row],[2029/30 Total change]] -> 0
A40: NAT|Non-transfer item | B40: 17|Inventory: Farming supplies | C40: 2027_28 | D40: MTEC2027 | E40: 17 | F40: 1 | G40: 1 | H40: 16235 | I40: 22 | J40: 17 | K40: 01 | L40: 01 | M40: 016235 | N40: 000022 | O40: 17|01|01|000022 | P40: 01 | Q40: 01 | R40: 02 | S40: 22 | T40: 22 | U40: 01|01|02|22|22 | V40: National | W40: Higher Education | X40: Administration | Y40: Ministry | Z40: Non-transfer item | AA40: Current | AB40: Current payments | AC40: Goods and services | AD40: Inventory: Farming supplies | AE40: Inventory: Farming supplies | AF40: Learning and culture | AG40: Post-school education and training | AH40: NAT | AI40: 0 | AJ40: 0 | AK40: 0 | AL40: 0 | AM40: 0 | AN40: 0 | AO40: 0 | AP40: 0 | AQ40: 0 | AR40: 0 | AS40: 0 | CB40: =Dataset[[#This Row],[2027/28 From - Spending review Topic 1]]+Dataset[[#This Row],[2027/28 From - Spending review Topic 2]]+Dataset[[#This Row],[2027/28 From - Spending review Topic 3]]+Dataset[[#This Row],[2027/28 From - Spending review Topic 4]]+Dataset[[#This Row],[2027/28 From - Other reallocations]] -> 0 | CC40: =Dataset[[#This Row],[2028/29 From - Spending review Topic 1]]+Dataset[[#This Row],[2028/29 From - Spending review Topic 2]]+Dataset[[#This Row],[2028/29 From - Spending review Topic 3]]+Dataset[[#This Row],[2028/29 From - Spending review Topic 4]]+Dataset[[#This Row],[2028/29 From - Other reallocations]] -> 0 | CD40: =Dataset[[#This Row],[2029/30 From - Spending review Topic 1]]+Dataset[[#This Row],[2029/30 From - Spending review Topic 2]]+Dataset[[#This Row],[2029/30 From - Spending review Topic 3]]+Dataset[[#This Row],[2029/30 From - Spending review Topic 4]]+Dataset[[#This Row],[2029/30 From - Other reallocations]] -> 0 | CE40: =Dataset[[#This Row],[2027/28 To - Spending review Topic 1]]+Dataset[[#This Row],[2027/28 To - Spending review Topic 2]]+Dataset[[#This Row],[2027/28 To - Spending review Topic 3]]+Dataset[[#This Row],[2027/28 To - Spending review Topic 4]]+Dataset[[#This Row],[2027/28 To - Other reallocations]] -> 0 | CF40: =Dataset[[#This Row],[2028/29 To - Spending review Topic 1]]+Dataset[[#This Row],[2028/29 To - Spending review Topic 2]]+Dataset[[#This Row],[2028/29 To - Spending review Topic 3]]+Dataset[[#This Row],[2028/29 To - Spending review Topic 4]]+Dataset[[#This Row],[2028/29 To - Other reallocations]] -> 0 | CG40: =Dataset[[#This Row],[2029/30 To - Spending review Topic 1]]+Dataset[[#This Row],[2029/30 To - Spending review Topic 2]]+Dataset[[#This Row],[2029/30 To - Spending review Topic 3]]+Dataset[[#This Row],[2029/30 To - Spending review Topic 4]]+Dataset[[#This Row],[2029/30 To - Other reallocations]] -> 0 | CH40: =Dataset[[#This Row],[2027/28 Targeted savings]]+Dataset[[#This Row],[2027/28 From - Total]] -> 0 | CI40: =Dataset[[#This Row],[2028/29 Targeted savings]]+Dataset[[#This Row],[2028/29 From - Total]] -> 0 | CJ40: =Dataset[[#This Row],[2029/30 Targeted savings]]+Dataset[[#This Row],[2029/30 From - Total]] -> 0 | CK40: =Dataset[[#This Row],[2026/27 Targeted savings]] -> 0 | CL40: =SUM(Dataset[[#This Row],[2027/28 Targeted savings]],Dataset[[#This Row],[2027/28 From - Total]],Dataset[[#This Row],[2027/28 To - Total]]) -> 0 | CM40: =SUM(Dataset[[#This Row],[2028/29 Targeted savings]],Dataset[[#This Row],[2028/29 From - Total]],Dataset[[#This Row],[2028/29 To - Total]]) -> 0 | CN40: =SUM(Dataset[[#This Row],[2029/30 Targeted savings]],Dataset[[#This Row],[2029/30 From - Total]],Dataset[[#This Row],[2029/30 To - Total]]) -> 0 | CO40: =Dataset[[#This Row],[2026/27 Baseline]]+Dataset[[#This Row],[2026/27 Total change]] -> 0 | CP40: =Dataset[[#This Row],[2027/28 Baseline]]+Dataset[[#This Row],[2027/28 Total change]] -> 0 | CQ40: =Dataset[[#This Row],[2028/29 Baseline]]+Dataset[[#This Row],[2028/29 Total change]] -> 0 | CR40: =Dataset[[#This Row],[2029/30 Baseline]]+Dataset[[#This Row],[2029/30 Total change]] -> 0
A41: NAT|Non-transfer item | B41: 17|Inventory: Food and food supplies | C41: 2027_28 | D41: MTEC2027 | E41: 17 | F41: 1 | G41: 1 | H41: 16236 | I41: 23 | J41: 17 | K41: 01 | L41: 01 | M41: 016236 | N41: 000023 | O41: 17|01|01|000023 | P41: 01 | Q41: 01 | R41: 02 | S41: 23 | T41: 23 | U41: 01|01|02|23|23 | V41: National | W41: Higher Education | X41: Administration | Y41: Ministry | Z41: Non-transfer item | AA41: Current | AB41: Current payments | AC41: Goods and services | AD41: Inventory: Food and food supplies | AE41: Inventory: Food and food supplies | AF41: Learning and culture | AG41: Post-school education and training | AH41: NAT | AI41: 0 | AJ41: 0 | AK41: 0 | AL41: 0 | AM41: 0 | AN41: 0 | AO41: 0 | AP41: 0 | AQ41: 0 | AR41: 0 | AS41: 0 | CB41: =Dataset[[#This Row],[2027/28 From - Spending review Topic 1]]+Dataset[[#This Row],[2027/28 From - Spending review Topic 2]]+Dataset[[#This Row],[2027/28 From - Spending review Topic 3]]+Dataset[[#This Row],[2027/28 From - Spending review Topic 4]]+Dataset[[#This Row],[2027/28 From - Other reallocations]] -> 0 | CC41: =Dataset[[#This Row],[2028/29 From - Spending review Topic 1]]+Dataset[[#This Row],[2028/29 From - Spending review Topic 2]]+Dataset[[#This Row],[2028/29 From - Spending review Topic 3]]+Dataset[[#This Row],[2028/29 From - Spending review Topic 4]]+Dataset[[#This Row],[2028/29 From - Other reallocations]] -> 0 | CD41: =Dataset[[#This Row],[2029/30 From - Spending review Topic 1]]+Dataset[[#This Row],[2029/30 From - Spending review Topic 2]]+Dataset[[#This Row],[2029/30 From - Spending review Topic 3]]+Dataset[[#This Row],[2029/30 From - Spending review Topic 4]]+Dataset[[#This Row],[2029/30 From - Other reallocations]] -> 0 | CE41: =Dataset[[#This Row],[2027/28 To - Spending review Topic 1]]+Dataset[[#This Row],[2027/28 To - Spending review Topic 2]]+Dataset[[#This Row],[2027/28 To - Spending review Topic 3]]+Dataset[[#This Row],[2027/28 To - Spending review Topic 4]]+Dataset[[#This Row],[2027/28 To - Other reallocations]] -> 0 | CF41: =Dataset[[#This Row],[2028/29 To - Spending review Topic 1]]+Dataset[[#This Row],[2028/29 To - Spending review Topic 2]]+Dataset[[#This Row],[2028/29 To - Spending review Topic 3]]+Dataset[[#This Row],[2028/29 To - Spending review Topic 4]]+Dataset[[#This Row],[2028/29 To - Other reallocations]] -> 0 | CG41: =Dataset[[#This Row],[2029/30 To - Spending review Topic 1]]+Dataset[[#This Row],[2029/30 To - Spending review Topic 2]]+Dataset[[#This Row],[2029/30 To - Spending review Topic 3]]+Dataset[[#This Row],[2029/30 To - Spending review Topic 4]]+Dataset[[#This Row],[2029/30 To - Other reallocations]] -> 0 | CH41: =Dataset[[#This Row],[2027/28 Targeted savings]]+Dataset[[#This Row],[2027/28 From - Total]] -> 0 | CI41: =Dataset[[#This Row],[2028/29 Targeted savings]]+Dataset[[#This Row],[2028/29 From - Total]] -> 0 | CJ41: =Dataset[[#This Row],[2029/30 Targeted savings]]+Dataset[[#This Row],[2029/30 From - Total]] -> 0 | CK41: =Dataset[[#This Row],[2026/27 Targeted savings]] -> 0 | CL41: =SUM(Dataset[[#This Row],[2027/28 Targeted savings]],Dataset[[#This Row],[2027/28 From - Total]],Dataset[[#This Row],[2027/28 To - Total]]) -> 0 | CM41: =SUM(Dataset[[#This Row],[2028/29 Targeted savings]],Dataset[[#This Row],[2028/29 From - Total]],Dataset[[#This Row],[2028/29 To - Total]]) -> 0 | CN41: =SUM(Dataset[[#This Row],[2029/30 Targeted savings]],Dataset[[#This Row],[2029/30 From - Total]],Dataset[[#This Row],[2029/30 To - Total]]) -> 0 | CO41: =Dataset[[#This Row],[2026/27 Baseline]]+Dataset[[#This Row],[2026/27 Total change]] -> 0 | CP41: =Dataset[[#This Row],[2027/28 Baseline]]+Dataset[[#This Row],[2027/28 Total change]] -> 0 | CQ41: =Dataset[[#This Row],[2028/29 Baseline]]+Dataset[[#This Row],[2028/29 Total change]] -> 0 | CR41: =Dataset[[#This Row],[2029/30 Baseline]]+Dataset[[#This Row],[2029/30 Total change]] -> 0
A42: NAT|Non-transfer item | B42: 17|Inventory: Fuel, oil and gas | C42: 2027_28 | D42: MTEC2027 | E42: 17 | F42: 1 | G42: 1 | H42: 16237 | I42: 24 | J42: 17 | K42: 01 | L42: 01 | M42: 016237 | N42: 000024 | O42: 17|01|01|000024 | P42: 01 | Q42: 01 | R42: 02 | S42: 24 | T42: 24 | U42: 01|01|02|24|24 | V42: National | W42: Higher Education | X42: Administration | Y42: Ministry | Z42: Non-transfer item | AA42: Current | AB42: Current payments | AC42: Goods and services | AD42: Inventory: Fuel, oil and gas | AE42: Inventory: Fuel, oil and gas | AF42: Learning and culture | AG42: Post-school education and training | AH42: NAT | AI42: 0 | AJ42: 0 | AK42: 0 | AL42: 0 | AM42: 0 | AN42: 0 | AO42: 0 | AP42: 0 | AQ42: 0 | AR42: 0 | AS42: 0 | CB42: =Dataset[[#This Row],[2027/28 From - Spending review Topic 1]]+Dataset[[#This Row],[2027/28 From - Spending review Topic 2]]+Dataset[[#This Row],[2027/28 From - Spending review Topic 3]]+Dataset[[#This Row],[2027/28 From - Spending review Topic 4]]+Dataset[[#This Row],[2027/28 From - Other reallocations]] -> 0 | CC42: =Dataset[[#This Row],[2028/29 From - Spending review Topic 1]]+Dataset[[#This Row],[2028/29 From - Spending review Topic 2]]+Dataset[[#This Row],[2028/29 From - Spending review Topic 3]]+Dataset[[#This Row],[2028/29 From - Spending review Topic 4]]+Dataset[[#This Row],[2028/29 From - Other reallocations]] -> 0 | CD42: =Dataset[[#This Row],[2029/30 From - Spending review Topic 1]]+Dataset[[#This Row],[2029/30 From - Spending review Topic 2]]+Dataset[[#This Row],[2029/30 From - Spending review Topic 3]]+Dataset[[#This Row],[2029/30 From - Spending review Topic 4]]+Dataset[[#This Row],[2029/30 From - Other reallocations]] -> 0 | CE42: =Dataset[[#This Row],[2027/28 To - Spending review Topic 1]]+Dataset[[#This Row],[2027/28 To - Spending review Topic 2]]+Dataset[[#This Row],[2027/28 To - Spending review Topic 3]]+Dataset[[#This Row],[2027/28 To - Spending review Topic 4]]+Dataset[[#This Row],[2027/28 To - Other reallocations]] -> 0 | CF42: =Dataset[[#This Row],[2028/29 To - Spending review Topic 1]]+Dataset[[#This Row],[2028/29 To - Spending review Topic 2]]+Dataset[[#This Row],[2028/29 To - Spending review Topic 3]]+Dataset[[#This Row],[2028/29 To - Spending review Topic 4]]+Dataset[[#This Row],[2028/29 To - Other reallocations]] -> 0 | CG42: =Dataset[[#This Row],[2029/30 To - Spending review Topic 1]]+Dataset[[#This Row],[2029/30 To - Spending review Topic 2]]+Dataset[[#This Row],[2029/30 To - Spending review Topic 3]]+Dataset[[#This Row],[2029/30 To - Spending review Topic 4]]+Dataset[[#This Row],[2029/30 To - Other reallocations]] -> 0 | CH42: =Dataset[[#This Row],[2027/28 Targeted savings]]+Dataset[[#This Row],[2027/28 From - Total]] -> 0 | CI42: =Dataset[[#This Row],[2028/29 Targeted savings]]+Dataset[[#This Row],[2028/29 From - Total]] -> 0 | CJ42: =Dataset[[#This Row],[2029/30 Targeted savings]]+Dataset[[#This Row],[2029/30 From - Total]] -> 0 | CK42: =Dataset[[#This Row],[2026/27 Targeted savings]] -> 0 | CL42: =SUM(Dataset[[#This Row],[2027/28 Targeted savings]],Dataset[[#This Row],[2027/28 From - Total]],Dataset[[#This Row],[2027/28 To - Total]]) -> 0 | CM42: =SUM(Dataset[[#This Row],[2028/29 Targeted savings]],Dataset[[#This Row],[2028/29 From - Total]],Dataset[[#This Row],[2028/29 To - Total]]) -> 0 | CN42: =SUM(Dataset[[#This Row],[2029/30 Targeted savings]],Dataset[[#This Row],[2029/30 From - Total]],Dataset[[#This Row],[2029/30 To - Total]]) -> 0 | CO42: =Dataset[[#This Row],[2026/27 Baseline]]+Dataset[[#This Row],[2026/27 Total change]] -> 0 | CP42: =Dataset[[#This Row],[2027/28 Baseline]]+Dataset[[#This Row],[2027/28 Total change]] -> 0 | CQ42: =Dataset[[#This Row],[2028/29 Baseline]]+Dataset[[#This Row],[2028/29 Total change]] -> 0 | CR42: =Dataset[[#This Row],[2029/30 Baseline]]+Dataset[[#This Row],[2029/30 Total change]] -> 0
A43: NAT|Non-transfer item | B43: 17|Inventory: Learner and teacher support material | C43: 2027_28 | D43: MTEC2027 | E43: 17 | F43: 1 | G43: 1 | H43: 16238 | I43: 25 | J43: 17 | K43: 01 | L43: 01 | M43: 016238 | N43: 000025 | O43: 17|01|01|000025 | P43: 01 | Q43: 01 | R43: 02 | S43: 25 | T43: 25 | U43: 01|01|02|25|25 | V43: National | W43: Higher Education | X43: Administration | Y43: Ministry | Z43: Non-transfer item | AA43: Current | AB43: Current payments | AC43: Goods and services | AD43: Inventory: Learner and teacher support material | AE43: Inventory: Learner and teacher support material | AF43: Learning and culture | AG43: Post-school education and training | AH43: NAT | AI43: 0 | AJ43: 0 | AK43: 0 | AL43: 0 | AM43: 0 | AN43: 0 | AO43: 0 | AP43: 0 | AQ43: 0 | AR43: 0 | AS43: 0 | CB43: =Dataset[[#This Row],[2027/28 From - Spending review Topic 1]]+Dataset[[#This Row],[2027/28 From - Spending review Topic 2]]+Dataset[[#This Row],[2027/28 From - Spending review Topic 3]]+Dataset[[#This Row],[2027/28 From - Spending review Topic 4]]+Dataset[[#This Row],[2027/28 From - Other reallocations]] -> 0 | CC43: =Dataset[[#This Row],[2028/29 From - Spending review Topic 1]]+Dataset[[#This Row],[2028/29 From - Spending review Topic 2]]+Dataset[[#This Row],[2028/29 From - Spending review Topic 3]]+Dataset[[#This Row],[2028/29 From - Spending review Topic 4]]+Dataset[[#This Row],[2028/29 From - Other reallocations]] -> 0 | CD43: =Dataset[[#This Row],[2029/30 From - Spending review Topic 1]]+Dataset[[#This Row],[2029/30 From - Spending review Topic 2]]+Dataset[[#This Row],[2029/30 From - Spending review Topic 3]]+Dataset[[#This Row],[2029/30 From - Spending review Topic 4]]+Dataset[[#This Row],[2029/30 From - Other reallocations]] -> 0 | CE43: =Dataset[[#This Row],[2027/28 To - Spending review Topic 1]]+Dataset[[#This Row],[2027/28 To - Spending review Topic 2]]+Dataset[[#This Row],[2027/28 To - Spending review Topic 3]]+Dataset[[#This Row],[2027/28 To - Spending review Topic 4]]+Dataset[[#This Row],[2027/28 To - Other reallocations]] -> 0 | CF43: =Dataset[[#This Row],[2028/29 To - Spending review Topic 1]]+Dataset[[#This Row],[2028/29 To - Spending review Topic 2]]+Dataset[[#This Row],[2028/29 To - Spending review Topic 3]]+Dataset[[#This Row],[2028/29 To - Spending review Topic 4]]+Dataset[[#This Row],[2028/29 To - Other reallocations]] -> 0 | CG43: =Dataset[[#This Row],[2029/30 To - Spending review Topic 1]]+Dataset[[#This Row],[2029/30 To - Spending review Topic 2]]+Dataset[[#This Row],[2029/30 To - Spending review Topic 3]]+Dataset[[#This Row],[2029/30 To - Spending review Topic 4]]+Dataset[[#This Row],[2029/30 To - Other reallocations]] -> 0 | CH43: =Dataset[[#This Row],[2027/28 Targeted savings]]+Dataset[[#This Row],[2027/28 From - Total]] -> 0 | CI43: =Dataset[[#This Row],[2028/29 Targeted savings]]+Dataset[[#This Row],[2028/29 From - Total]] -> 0 | CJ43: =Dataset[[#This Row],[2029/30 Targeted savings]]+Dataset[[#This Row],[2029/30 From - Total]] -> 0 | CK43: =Dataset[[#This Row],[2026/27 Targeted savings]] -> 0 | CL43: =SUM(Dataset[[#This Row],[2027/28 Targeted savings]],Dataset[[#This Row],[2027/28 From - Total]],Dataset[[#This Row],[2027/28 To - Total]]) -> 0 | CM43: =SUM(Dataset[[#This Row],[2028/29 Targeted savings]],Dataset[[#This Row],[2028/29 From - Total]],Dataset[[#This Row],[2028/29 To - Total]]) -> 0 | CN43: =SUM(Dataset[[#This Row],[2029/30 Targeted savings]],Dataset[[#This Row],[2029/30 From - Total]],Dataset[[#This Row],[2029/30 To - Total]]) -> 0 | CO43: =Dataset[[#This Row],[2026/27 Baseline]]+Dataset[[#This Row],[2026/27 Total change]] -> 0 | CP43: =Dataset[[#This Row],[2027/28 Baseline]]+Dataset[[#This Row],[2027/28 Total change]] -> 0 | CQ43: =Dataset[[#This Row],[2028/29 Baseline]]+Dataset[[#This Row],[2028/29 Total change]] -> 0 | CR43: =Dataset[[#This Row],[2029/30 Baseline]]+Dataset[[#This Row],[2029/30 Total change]] -> 0
A44: NAT|Non-transfer item | B44: 17|Inventory: Materials and supplies | C44: 2027_28 | D44: MTEC2027 | E44: 17 | F44: 1 | G44: 1 | H44: 16239 | I44: 26 | J44: 17 | K44: 01 | L44: 01 | M44: 016239 | N44: 000026 | O44: 17|01|01|000026 | P44: 01 | Q44: 01 | R44: 02 | S44: 26 | T44: 26 | U44: 01|01|02|26|26 | V44: National | W44: Higher Education | X44: Administration | Y44: Ministry | Z44: Non-transfer item | AA44: Current | AB44: Current payments | AC44: Goods and services | AD44: Inventory: Materials and supplies | AE44: Inventory: Materials and supplies | AF44: Learning and culture | AG44: Post-school education and training | AH44: NAT | AI44: 0 | AJ44: 0 | AK44: 0 | AL44: 0 | AM44: 0 | AN44: 0 | AO44: 0 | AP44: 0 | AQ44: 0 | AR44: 0 | AS44: 0 | CB44: =Dataset[[#This Row],[2027/28 From - Spending review Topic 1]]+Dataset[[#This Row],[2027/28 From - Spending review Topic 2]]+Dataset[[#This Row],[2027/28 From - Spending review Topic 3]]+Dataset[[#This Row],[2027/28 From - Spending review Topic 4]]+Dataset[[#This Row],[2027/28 From - Other reallocations]] -> 0 | CC44: =Dataset[[#This Row],[2028/29 From - Spending review Topic 1]]+Dataset[[#This Row],[2028/29 From - Spending review Topic 2]]+Dataset[[#This Row],[2028/29 From - Spending review Topic 3]]+Dataset[[#This Row],[2028/29 From - Spending review Topic 4]]+Dataset[[#This Row],[2028/29 From - Other reallocations]] -> 0 | CD44: =Dataset[[#This Row],[2029/30 From - Spending review Topic 1]]+Dataset[[#This Row],[2029/30 From - Spending review Topic 2]]+Dataset[[#This Row],[2029/30 From - Spending review Topic 3]]+Dataset[[#This Row],[2029/30 From - Spending review Topic 4]]+Dataset[[#This Row],[2029/30 From - Other reallocations]] -> 0 | CE44: =Dataset[[#This Row],[2027/28 To - Spending review Topic 1]]+Dataset[[#This Row],[2027/28 To - Spending review Topic 2]]+Dataset[[#This Row],[2027/28 To - Spending review Topic 3]]+Dataset[[#This Row],[2027/28 To - Spending review Topic 4]]+Dataset[[#This Row],[2027/28 To - Other reallocations]] -> 0 | CF44: =Dataset[[#This Row],[2028/29 To - Spending review Topic 1]]+Dataset[[#This Row],[2028/29 To - Spending review Topic 2]]+Dataset[[#This Row],[2028/29 To - Spending review Topic 3]]+Dataset[[#This Row],[2028/29 To - Spending review Topic 4]]+Dataset[[#This Row],[2028/29 To - Other reallocations]] -> 0 | CG44: =Dataset[[#This Row],[2029/30 To - Spending review Topic 1]]+Dataset[[#This Row],[2029/30 To - Spending review Topic 2]]+Dataset[[#This Row],[2029/30 To - Spending review Topic 3]]+Dataset[[#This Row],[2029/30 To - Spending review Topic 4]]+Dataset[[#This Row],[2029/30 To - Other reallocations]] -> 0 | CH44: =Dataset[[#This Row],[2027/28 Targeted savings]]+Dataset[[#This Row],[2027/28 From - Total]] -> 0 | CI44: =Dataset[[#This Row],[2028/29 Targeted savings]]+Dataset[[#This Row],[2028/29 From - Total]] -> 0 | CJ44: =Dataset[[#This Row],[2029/30 Targeted savings]]+Dataset[[#This Row],[2029/30 From - Total]] -> 0 | CK44: =Dataset[[#This Row],[2026/27 Targeted savings]] -> 0 | CL44: =SUM(Dataset[[#This Row],[2027/28 Targeted savings]],Dataset[[#This Row],[2027/28 From - Total]],Dataset[[#This Row],[2027/28 To - Total]]) -> 0 | CM44: =SUM(Dataset[[#This Row],[2028/29 Targeted savings]],Dataset[[#This Row],[2028/29 From - Total]],Dataset[[#This Row],[2028/29 To - Total]]) -> 0 | CN44: =SUM(Dataset[[#This Row],[2029/30 Targeted savings]],Dataset[[#This Row],[2029/30 From - Total]],Dataset[[#This Row],[2029/30 To - Total]]) -> 0 | CO44: =Dataset[[#This Row],[2026/27 Baseline]]+Dataset[[#This Row],[2026/27 Total change]] -> 0 | CP44: =Dataset[[#This Row],[2027/28 Baseline]]+Dataset[[#This Row],[2027/28 Total change]] -> 0 | CQ44: =Dataset[[#This Row],[2028/29 Baseline]]+Dataset[[#This Row],[2028/29 Total change]] -> 0 | CR44: =Dataset[[#This Row],[2029/30 Baseline]]+Dataset[[#This Row],[2029/30 Total change]] -> 0
A45: NAT|Non-transfer item | B45: 17|Inventory: Medical supplies | C45: 2027_28 | D45: MTEC2027 | E45: 17 | F45: 1 | G45: 1 | H45: 16240 | I45: 27 | J45: 17 | K45: 01 | L45: 01 | M45: 016240 | N45: 000027 | O45: 17|01|01|000027 | P45: 01 | Q45: 01 | R45: 02 | S45: 27 | T45: 27 | U45: 01|01|02|27|27 | V45: National | W45: Higher Education | X45: Administration | Y45: Ministry | Z45: Non-transfer item | AA45: Current | AB45: Current payments | AC45: Goods and services | AD45: Inventory: Medical supplies | AE45: Inventory: Medical supplies | AF45: Learning and culture | AG45: Post-school education and training | AH45: NAT | AI45: 0 | AJ45: 0 | AK45: 0 | AL45: 0 | AM45: 0 | AN45: 0 | AO45: 0 | AP45: 0 | AQ45: 0 | AR45: 0 | AS45: 0 | CB45: =Dataset[[#This Row],[2027/28 From - Spending review Topic 1]]+Dataset[[#This Row],[2027/28 From - Spending review Topic 2]]+Dataset[[#This Row],[2027/28 From - Spending review Topic 3]]+Dataset[[#This Row],[2027/28 From - Spending review Topic 4]]+Dataset[[#This Row],[2027/28 From - Other reallocations]] -> 0 | CC45: =Dataset[[#This Row],[2028/29 From - Spending review Topic 1]]+Dataset[[#This Row],[2028/29 From - Spending review Topic 2]]+Dataset[[#This Row],[2028/29 From - Spending review Topic 3]]+Dataset[[#This Row],[2028/29 From - Spending review Topic 4]]+Dataset[[#This Row],[2028/29 From - Other reallocations]] -> 0 | CD45: =Dataset[[#This Row],[2029/30 From - Spending review Topic 1]]+Dataset[[#This Row],[2029/30 From - Spending review Topic 2]]+Dataset[[#This Row],[2029/30 From - Spending review Topic 3]]+Dataset[[#This Row],[2029/30 From - Spending review Topic 4]]+Dataset[[#This Row],[2029/30 From - Other reallocations]] -> 0 | CE45: =Dataset[[#This Row],[2027/28 To - Spending review Topic 1]]+Dataset[[#This Row],[2027/28 To - Spending review Topic 2]]+Dataset[[#This Row],[2027/28 To - Spending review Topic 3]]+Dataset[[#This Row],[2027/28 To - Spending review Topic 4]]+Dataset[[#This Row],[2027/28 To - Other reallocations]] -> 0 | CF45: =Dataset[[#This Row],[2028/29 To - Spending review Topic 1]]+Dataset[[#This Row],[2028/29 To - Spending review Topic 2]]+Dataset[[#This Row],[2028/29 To - Spending review Topic 3]]+Dataset[[#This Row],[2028/29 To - Spending review Topic 4]]+Dataset[[#This Row],[2028/29 To - Other reallocations]] -> 0 | CG45: =Dataset[[#This Row],[2029/30 To - Spending review Topic 1]]+Dataset[[#This Row],[2029/30 To - Spending review Topic 2]]+Dataset[[#This Row],[2029/30 To - Spending review Topic 3]]+Dataset[[#This Row],[2029/30 To - Spending review Topic 4]]+Dataset[[#This Row],[2029/30 To - Other reallocations]] -> 0 | CH45: =Dataset[[#This Row],[2027/28 Targeted savings]]+Dataset[[#This Row],[2027/28 From - Total]] -> 0 | CI45: =Dataset[[#This Row],[2028/29 Targeted savings]]+Dataset[[#This Row],[2028/29 From - Total]] -> 0 | CJ45: =Dataset[[#This Row],[2029/30 Targeted savings]]+Dataset[[#This Row],[2029/30 From - Total]] -> 0 | CK45: =Dataset[[#This Row],[2026/27 Targeted savings]] -> 0 | CL45: =SUM(Dataset[[#This Row],[2027/28 Targeted savings]],Dataset[[#This Row],[2027/28 From - Total]],Dataset[[#This Row],[2027/28 To - Total]]) -> 0 | CM45: =SUM(Dataset[[#This Row],[2028/29 Targeted savings]],Dataset[[#This Row],[2028/29 From - Total]],Dataset[[#This Row],[2028/29 To - Total]]) -> 0 | CN45: =SUM(Dataset[[#This Row],[2029/30 Targeted savings]],Dataset[[#This Row],[2029/30 From - Total]],Dataset[[#This Row],[2029/30 To - Total]]) -> 0 | CO45: =Dataset[[#This Row],[2026/27 Baseline]]+Dataset[[#This Row],[2026/27 Total change]] -> 0 | CP45: =Dataset[[#This Row],[2027/28 Baseline]]+Dataset[[#This Row],[2027/28 Total change]] -> 0 | CQ45: =Dataset[[#This Row],[2028/29 Baseline]]+Dataset[[#This Row],[2028/29 Total change]] -> 0 | CR45: =Dataset[[#This Row],[2029/30 Baseline]]+Dataset[[#This Row],[2029/30 Total change]] -> 0
A46: NAT|Non-transfer item | B46: 17|Inventory: Medicine | C46: 2027_28 | D46: MTEC2027 | E46: 17 | F46: 1 | G46: 1 | H46: 16241 | I46: 28 | J46: 17 | K46: 01 | L46: 01 | M46: 016241 | N46: 000028 | O46: 17|01|01|000028 | P46: 01 | Q46: 01 | R46: 02 | S46: 28 | T46: 28 | U46: 01|01|02|28|28 | V46: National | W46: Higher Education | X46: Administration | Y46: Ministry | Z46: Non-transfer item | AA46: Current | AB46: Current payments | AC46: Goods and services | AD46: Inventory: Medicine | AE46: Inventory: Medicine | AF46: Learning and culture | AG46: Post-school education and training | AH46: NAT | AI46: 0 | AJ46: 0 | AK46: 0 | AL46: 0 | AM46: 0 | AN46: 0 | AO46: 0 | AP46: 0 | AQ46: 0 | AR46: 0 | AS46: 0 | CB46: =Dataset[[#This Row],[2027/28 From - Spending review Topic 1]]+Dataset[[#This Row],[2027/28 From - Spending review Topic 2]]+Dataset[[#This Row],[2027/28 From - Spending review Topic 3]]+Dataset[[#This Row],[2027/28 From - Spending review Topic 4]]+Dataset[[#This Row],[2027/28 From - Other reallocations]] -> 0 | CC46: =Dataset[[#This Row],[2028/29 From - Spending review Topic 1]]+Dataset[[#This Row],[2028/29 From - Spending review Topic 2]]+Dataset[[#This Row],[2028/29 From - Spending review Topic 3]]+Dataset[[#This Row],[2028/29 From - Spending review Topic 4]]+Dataset[[#This Row],[2028/29 From - Other reallocations]] -> 0 | CD46: =Dataset[[#This Row],[2029/30 From - Spending review Topic 1]]+Dataset[[#This Row],[2029/30 From - Spending review Topic 2]]+Dataset[[#This Row],[2029/30 From - Spending review Topic 3]]+Dataset[[#This Row],[2029/30 From - Spending review Topic 4]]+Dataset[[#This Row],[2029/30 From - Other reallocations]] -> 0 | CE46: =Dataset[[#This Row],[2027/28 To - Spending review Topic 1]]+Dataset[[#This Row],[2027/28 To - Spending review Topic 2]]+Dataset[[#This Row],[2027/28 To - Spending review Topic 3]]+Dataset[[#This Row],[2027/28 To - Spending review Topic 4]]+Dataset[[#This Row],[2027/28 To - Other reallocations]] -> 0 | CF46: =Dataset[[#This Row],[2028/29 To - Spending review Topic 1]]+Dataset[[#This Row],[2028/29 To - Spending review Topic 2]]+Dataset[[#This Row],[2028/29 To - Spending review Topic 3]]+Dataset[[#This Row],[2028/29 To - Spending review Topic 4]]+Dataset[[#This Row],[2028/29 To - Other reallocations]] -> 0 | CG46: =Dataset[[#This Row],[2029/30 To - Spending review Topic 1]]+Dataset[[#This Row],[2029/30 To - Spending review Topic 2]]+Dataset[[#This Row],[2029/30 To - Spending review Topic 3]]+Dataset[[#This Row],[2029/30 To - Spending review Topic 4]]+Dataset[[#This Row],[2029/30 To - Other reallocations]] -> 0 | CH46: =Dataset[[#This Row],[2027/28 Targeted savings]]+Dataset[[#This Row],[2027/28 From - Total]] -> 0 | CI46: =Dataset[[#This Row],[2028/29 Targeted savings]]+Dataset[[#This Row],[2028/29 From - Total]] -> 0 | CJ46: =Dataset[[#This Row],[2029/30 Targeted savings]]+Dataset[[#This Row],[2029/30 From - Total]] -> 0 | CK46: =Dataset[[#This Row],[2026/27 Targeted savings]] -> 0 | CL46: =SUM(Dataset[[#This Row],[2027/28 Targeted savings]],Dataset[[#This Row],[2027/28 From - Total]],Dataset[[#This Row],[2027/28 To - Total]]) -> 0 | CM46: =SUM(Dataset[[#This Row],[2028/29 Targeted savings]],Dataset[[#This Row],[2028/29 From - Total]],Dataset[[#This Row],[2028/29 To - Total]]) -> 0 | CN46: =SUM(Dataset[[#This Row],[2029/30 Targeted savings]],Dataset[[#This Row],[2029/30 From - Total]],Dataset[[#This Row],[2029/30 To - Total]]) -> 0 | CO46: =Dataset[[#This Row],[2026/27 Baseline]]+Dataset[[#This Row],[2026/27 Total change]] -> 0 | CP46: =Dataset[[#This Row],[2027/28 Baseline]]+Dataset[[#This Row],[2027/28 Total change]] -> 0 | CQ46: =Dataset[[#This Row],[2028/29 Baseline]]+Dataset[[#This Row],[2028/29 Total change]] -> 0 | CR46: =Dataset[[#This Row],[2029/30 Baseline]]+Dataset[[#This Row],[2029/30 Total change]] -> 0
A47: NAT|Non-transfer item | B47: 17|Medsas inventory interface | C47: 2027_28 | D47: MTEC2027 | E47: 17 | F47: 1 | G47: 1 | H47: 16242 | I47: 29 | J47: 17 | K47: 01 | L47: 01 | M47: 016242 | N47: 000029 | O47: 17|01|01|000029 | P47: 01 | Q47: 01 | R47: 02 | S47: 29 | T47: 29 | U47: 01|01|02|29|29 | V47: National | W47: Higher Education | X47: Administration | Y47: Ministry | Z47: Non-transfer item | AA47: Current | AB47: Current payments | AC47: Goods and services | AD47: Medsas inventory interface | AE47: Medsas inventory interface | AF47: Learning and culture | AG47: Post-school education and training | AH47: NAT | AI47: 0 | AJ47: 0 | AK47: 0 | AL47: 0 | AM47: 0 | AN47: 0 | AO47: 0 | AP47: 0 | AQ47: 0 | AR47: 0 | AS47: 0 | CB47: =Dataset[[#This Row],[2027/28 From - Spending review Topic 1]]+Dataset[[#This Row],[2027/28 From - Spending review Topic 2]]+Dataset[[#This Row],[2027/28 From - Spending review Topic 3]]+Dataset[[#This Row],[2027/28 From - Spending review Topic 4]]+Dataset[[#This Row],[2027/28 From - Other reallocations]] -> 0 | CC47: =Dataset[[#This Row],[2028/29 From - Spending review Topic 1]]+Dataset[[#This Row],[2028/29 From - Spending review Topic 2]]+Dataset[[#This Row],[2028/29 From - Spending review Topic 3]]+Dataset[[#This Row],[2028/29 From - Spending review Topic 4]]+Dataset[[#This Row],[2028/29 From - Other reallocations]] -> 0 | CD47: =Dataset[[#This Row],[2029/30 From - Spending review Topic 1]]+Dataset[[#This Row],[2029/30 From - Spending review Topic 2]]+Dataset[[#This Row],[2029/30 From - Spending review Topic 3]]+Dataset[[#This Row],[2029/30 From - Spending review Topic 4]]+Dataset[[#This Row],[2029/30 From - Other reallocations]] -> 0 | CE47: =Dataset[[#This Row],[2027/28 To - Spending review Topic 1]]+Dataset[[#This Row],[2027/28 To - Spending review Topic 2]]+Dataset[[#This Row],[2027/28 To - Spending review Topic 3]]+Dataset[[#This Row],[2027/28 To - Spending review Topic 4]]+Dataset[[#This Row],[2027/28 To - Other reallocations]] -> 0 | CF47: =Dataset[[#This Row],[2028/29 To - Spending review Topic 1]]+Dataset[[#This Row],[2028/29 To - Spending review Topic 2]]+Dataset[[#This Row],[2028/29 To - Spending review Topic 3]]+Dataset[[#This Row],[2028/29 To - Spending review Topic 4]]+Dataset[[#This Row],[2028/29 To - Other reallocations]] -> 0 | CG47: =Dataset[[#This Row],[2029/30 To - Spending review Topic 1]]+Dataset[[#This Row],[2029/30 To - Spending review Topic 2]]+Dataset[[#This Row],[2029/30 To - Spending review Topic 3]]+Dataset[[#This Row],[2029/30 To - Spending review Topic 4]]+Dataset[[#This Row],[2029/30 To - Other reallocations]] -> 0 | CH47: =Dataset[[#This Row],[2027/28 Targeted savings]]+Dataset[[#This Row],[2027/28 From - Total]] -> 0 | CI47: =Dataset[[#This Row],[2028/29 Targeted savings]]+Dataset[[#This Row],[2028/29 From - Total]] -> 0 | CJ47: =Dataset[[#This Row],[2029/30 Targeted savings]]+Dataset[[#This Row],[2029/30 From - Total]] -> 0 | CK47: =Dataset[[#This Row],[2026/27 Targeted savings]] -> 0 | CL47: =SUM(Dataset[[#This Row],[2027/28 Targeted savings]],Dataset[[#This Row],[2027/28 From - Total]],Dataset[[#This Row],[2027/28 To - Total]]) -> 0 | CM47: =SUM(Dataset[[#This Row],[2028/29 Targeted savings]],Dataset[[#This Row],[2028/29 From - Total]],Dataset[[#This Row],[2028/29 To - Total]]) -> 0 | CN47: =SUM(Dataset[[#This Row],[2029/30 Targeted savings]],Dataset[[#This Row],[2029/30 From - Total]],Dataset[[#This Row],[2029/30 To - Total]]) -> 0 | CO47: =Dataset[[#This Row],[2026/27 Baseline]]+Dataset[[#This Row],[2026/27 Total change]] -> 0 | CP47: =Dataset[[#This Row],[2027/28 Baseline]]+Dataset[[#This Row],[2027/28 Total change]] -> 0 | CQ47: =Dataset[[#This Row],[2028/29 Baseline]]+Dataset[[#This Row],[2028/29 Total change]] -> 0 | CR47: =Dataset[[#This Row],[2029/30 Baseline]]+Dataset[[#This Row],[2029/30 Total change]] -> 0
A48: NAT|Non-transfer item | B48: 17|Inventory: Other supplies | C48: 2027_28 | D48: MTEC2027 | E48: 17 | F48: 1 | G48: 1 | H48: 16243 | I48: 30 | J48: 17 | K48: 01 | L48: 01 | M48: 016243 | N48: 000030 | O48: 17|01|01|000030 | P48: 01 | Q48: 01 | R48: 02 | S48: 30 | T48: 30 | U48: 01|01|02|30|30 | V48: National | W48: Higher Education | X48: Administration | Y48: Ministry | Z48: Non-transfer item | AA48: Current | AB48: Current payments | AC48: Goods and services | AD48: Inventory: Other supplies | AE48: Inventory: Other supplies | AF48: Learning and culture | AG48: Post-school education and training | AH48: NAT | AI48: 0 | AJ48: 0 | AK48: 0 | AL48: 0 | AM48: 0 | AN48: 0 | AO48: 0 | AP48: 0 | AQ48: 0 | AR48: 0 | AS48: 0 | CB48: =Dataset[[#This Row],[2027/28 From - Spending review Topic 1]]+Dataset[[#This Row],[2027/28 From - Spending review Topic 2]]+Dataset[[#This Row],[2027/28 From - Spending review Topic 3]]+Dataset[[#This Row],[2027/28 From - Spending review Topic 4]]+Dataset[[#This Row],[2027/28 From - Other reallocations]] -> 0 | CC48: =Dataset[[#This Row],[2028/29 From - Spending review Topic 1]]+Dataset[[#This Row],[2028/29 From - Spending review Topic 2]]+Dataset[[#This Row],[2028/29 From - Spending review Topic 3]]+Dataset[[#This Row],[2028/29 From - Spending review Topic 4]]+Dataset[[#This Row],[2028/29 From - Other reallocations]] -> 0 | CD48: =Dataset[[#This Row],[2029/30 From - Spending review Topic 1]]+Dataset[[#This Row],[2029/30 From - Spending review Topic 2]]+Dataset[[#This Row],[2029/30 From - Spending review Topic 3]]+Dataset[[#This Row],[2029/30 From - Spending review Topic 4]]+Dataset[[#This Row],[2029/30 From - Other reallocations]] -> 0 | CE48: =Dataset[[#This Row],[2027/28 To - Spending review Topic 1]]+Dataset[[#This Row],[2027/28 To - Spending review Topic 2]]+Dataset[[#This Row],[2027/28 To - Spending review Topic 3]]+Dataset[[#This Row],[2027/28 To - Spending review Topic 4]]+Dataset[[#This Row],[2027/28 To - Other reallocations]] -> 0 | CF48: =Dataset[[#This Row],[2028/29 To - Spending review Topic 1]]+Dataset[[#This Row],[2028/29 To - Spending review Topic 2]]+Dataset[[#This Row],[2028/29 To - Spending review Topic 3]]+Dataset[[#This Row],[2028/29 To - Spending review Topic 4]]+Dataset[[#This Row],[2028/29 To - Other reallocations]] -> 0 | CG48: =Dataset[[#This Row],[2029/30 To - Spending review Topic 1]]+Dataset[[#This Row],[2029/30 To - Spending review Topic 2]]+Dataset[[#This Row],[2029/30 To - Spending review Topic 3]]+Dataset[[#This Row],[2029/30 To - Spending review Topic 4]]+Dataset[[#This Row],[2029/30 To - Other reallocations]] -> 0 | CH48: =Dataset[[#This Row],[2027/28 Targeted savings]]+Dataset[[#This Row],[2027/28 From - Total]] -> 0 | CI48: =Dataset[[#This Row],[2028/29 Targeted savings]]+Dataset[[#This Row],[2028/29 From - Total]] -> 0 | CJ48: =Dataset[[#This Row],[2029/30 Targeted savings]]+Dataset[[#This Row],[2029/30 From - Total]] -> 0 | CK48: =Dataset[[#This Row],[2026/27 Targeted savings]] -> 0 | CL48: =SUM(Dataset[[#This Row],[2027/28 Targeted savings]],Dataset[[#This Row],[2027/28 From - Total]],Dataset[[#This Row],[2027/28 To - Total]]) -> 0 | CM48: =SUM(Dataset[[#This Row],[2028/29 Targeted savings]],Dataset[[#This Row],[2028/29 From - Total]],Dataset[[#This Row],[2028/29 To - Total]]) -> 0 | CN48: =SUM(Dataset[[#This Row],[2029/30 Targeted savings]],Dataset[[#This Row],[2029/30 From - Total]],Dataset[[#This Row],[2029/30 To - Total]]) -> 0 | CO48: =Dataset[[#This Row],[2026/27 Baseline]]+Dataset[[#This Row],[2026/27 Total change]] -> 0 | CP48: =Dataset[[#This Row],[2027/28 Baseline]]+Dataset[[#This Row],[2027/28 Total change]] -> 0 | CQ48: =Dataset[[#This Row],[2028/29 Baseline]]+Dataset[[#This Row],[2028/29 Total change]] -> 0 | CR48: =Dataset[[#This Row],[2029/30 Baseline]]+Dataset[[#This Row],[2029/30 Total change]] -> 0
A49: NAT|Non-transfer | B49: 17|Consumable supplies | C49: 2027_28 | D49: MTEC2027 | E49: 17 | F49: 1 | G49: 1 | H49: 16244 | I49: 31 | J49: 17 | K49: 01 | L49: 01 | M49: 016244 | N49: 000031 | O49: 17|01|01|000031 | P49: 01 | Q49: 01 | R49: 02 | S49: 31 | T49: 31 | U49: 01|01|02|31|31 | V49: National | W49: Higher Education | X49: Administration | Y49: Ministry | Z49: Non-transfer | AA49: Current | AB49: Current payments | AC49: Goods and services | AD49: Consumable supplies | AE49: Consumable supplies | AF49: Learning and culture | AG49: Post-school education and training | AH49: NAT | AI49: 0 | AJ49: 0 | AK49: 0 | AL49: 350 | AM49: 224 | AN49: 424 | AO49: 420 | AP49: 278 | AQ49: 288 | AR49: 295 | AS49: 304 | CB49: =Dataset[[#This Row],[2027/28 From - Spending review Topic 1]]+Dataset[[#This Row],[2027/28 From - Spending review Topic 2]]+Dataset[[#This Row],[2027/28 From - Spending review Topic 3]]+Dataset[[#This Row],[2027/28 From - Spending review Topic 4]]+Dataset[[#This Row],[2027/28 From - Other reallocations]] -> 0 | CC49: =Dataset[[#This Row],[2028/29 From - Spending review Topic 1]]+Dataset[[#This Row],[2028/29 From - Spending review Topic 2]]+Dataset[[#This Row],[2028/29 From - Spending review Topic 3]]+Dataset[[#This Row],[2028/29 From - Spending review Topic 4]]+Dataset[[#This Row],[2028/29 From - Other reallocations]] -> 0 | CD49: =Dataset[[#This Row],[2029/30 From - Spending review Topic 1]]+Dataset[[#This Row],[2029/30 From - Spending review Topic 2]]+Dataset[[#This Row],[2029/30 From - Spending review Topic 3]]+Dataset[[#This Row],[2029/30 From - Spending review Topic 4]]+Dataset[[#This Row],[2029/30 From - Other reallocations]] -> 0 | CE49: =Dataset[[#This Row],[2027/28 To - Spending review Topic 1]]+Dataset[[#This Row],[2027/28 To - Spending review Topic 2]]+Dataset[[#This Row],[2027/28 To - Spending review Topic 3]]+Dataset[[#This Row],[2027/28 To - Spending review Topic 4]]+Dataset[[#This Row],[2027/28 To - Other reallocations]] -> 0 | CF49: =Dataset[[#This Row],[2028/29 To - Spending review Topic 1]]+Dataset[[#This Row],[2028/29 To - Spending review Topic 2]]+Dataset[[#This Row],[2028/29 To - Spending review Topic 3]]+Dataset[[#This Row],[2028/29 To - Spending review Topic 4]]+Dataset[[#This Row],[2028/29 To - Other reallocations]] -> 0 | CG49: =Dataset[[#This Row],[2029/30 To - Spending review Topic 1]]+Dataset[[#This Row],[2029/30 To - Spending review Topic 2]]+Dataset[[#This Row],[2029/30 To - Spending review Topic 3]]+Dataset[[#This Row],[2029/30 To - Spending review Topic 4]]+Dataset[[#This Row],[2029/30 To - Other reallocations]] -> 0 | CH49: =Dataset[[#This Row],[2027/28 Targeted savings]]+Dataset[[#This Row],[2027/28 From - Total]] -> 0 | CI49: =Dataset[[#This Row],[2028/29 Targeted savings]]+Dataset[[#This Row],[2028/29 From - Total]] -> 0 | CJ49: =Dataset[[#This Row],[2029/30 Targeted savings]]+Dataset[[#This Row],[2029/30 From - Total]] -> 0 | CK49: =Dataset[[#This Row],[2026/27 Targeted savings]] -> 0 | CL49: =SUM(Dataset[[#This Row],[2027/28 Targeted savings]],Dataset[[#This Row],[2027/28 From - Total]],Dataset[[#This Row],[2027/28 To - Total]]) -> 0 | CM49: =SUM(Dataset[[#This Row],[2028/29 Targeted savings]],Dataset[[#This Row],[2028/29 From - Total]],Dataset[[#This Row],[2028/29 To - Total]]) -> 0 | CN49: =SUM(Dataset[[#This Row],[2029/30 Targeted savings]],Dataset[[#This Row],[2029/30 From - Total]],Dataset[[#This Row],[2029/30 To - Total]]) -> 0 | CO49: =Dataset[[#This Row],[2026/27 Baseline]]+Dataset[[#This Row],[2026/27 Total change]] -> 278 | CP49: =Dataset[[#This Row],[2027/28 Baseline]]+Dataset[[#This Row],[2027/28 Total change]] -> 288 | CQ49: =Dataset[[#This Row],[2028/29 Baseline]]+Dataset[[#This Row],[2028/29 Total change]] -> 295 | CR49: =Dataset[[#This Row],[2029/30 Baseline]]+Dataset[[#This Row],[2029/30 Total change]] -> 304
A50: NAT|Non-transfer | B50: 17|Consumables: Stationery, printing and office supplies | C50: 2027_28 | D50: MTEC2027 | E50: 17 | F50: 1 | G50: 1 | H50: 16245 | I50: 32 | J50: 17 | K50: 01 | L50: 01 | M50: 016245 | N50: 000032 | O50: 17|01|01|000032 | P50: 01 | Q50: 01 | R50: 02 | S50: 32 | T50: 32 | U50: 01|01|02|32|32 | V50: National | W50: Higher Education | X50: Administration | Y50: Ministry | Z50: Non-transfer | AA50: Current | AB50: Current payments | AC50: Goods and services | AD50: Consumables: Stationery, printing and office supplies | AE50: Consumables: Stationery, printing and office supplies | AF50: Learning and culture | AG50: Post-school education and training | AH50: NAT | AI50: 0 | AJ50: 0 | AK50: 0 | AL50: 410 | AM50: 303 | AN50: 303 | AO50: 72 | AP50: 477 | AQ50: 494 | AR50: 506 | AS50: 521 | CB50: =Dataset[[#This Row],[2027/28 From - Spending review Topic 1]]+Dataset[[#This Row],[2027/28 From - Spending review Topic 2]]+Dataset[[#This Row],[2027/28 From - Spending review Topic 3]]+Dataset[[#This Row],[2027/28 From - Spending review Topic 4]]+Dataset[[#This Row],[2027/28 From - Other reallocations]] -> 0 | CC50: =Dataset[[#This Row],[2028/29 From - Spending review Topic 1]]+Dataset[[#This Row],[2028/29 From - Spending review Topic 2]]+Dataset[[#This Row],[2028/29 From - Spending review Topic 3]]+Dataset[[#This Row],[2028/29 From - Spending review Topic 4]]+Dataset[[#This Row],[2028/29 From - Other reallocations]] -> 0 | CD50: =Dataset[[#This Row],[2029/30 From - Spending review Topic 1]]+Dataset[[#This Row],[2029/30 From - Spending review Topic 2]]+Dataset[[#This Row],[2029/30 From - Spending review Topic 3]]+Dataset[[#This Row],[2029/30 From - Spending review Topic 4]]+Dataset[[#This Row],[2029/30 From - Other reallocations]] -> 0 | CE50: =Dataset[[#This Row],[2027/28 To - Spending review Topic 1]]+Dataset[[#This Row],[2027/28 To - Spending review Topic 2]]+Dataset[[#This Row],[2027/28 To - Spending review Topic 3]]+Dataset[[#This Row],[2027/28 To - Spending review Topic 4]]+Dataset[[#This Row],[2027/28 To - Other reallocations]] -> 0 | CF50: =Dataset[[#This Row],[2028/29 To - Spending review Topic 1]]+Dataset[[#This Row],[2028/29 To - Spending review Topic 2]]+Dataset[[#This Row],[2028/29 To - Spending review Topic 3]]+Dataset[[#This Row],[2028/29 To - Spending review Topic 4]]+Dataset[[#This Row],[2028/29 To - Other reallocations]] -> 0 | CG50: =Dataset[[#This Row],[2029/30 To - Spending review Topic 1]]+Dataset[[#This Row],[2029/30 To - Spending review Topic 2]]+Dataset[[#This Row],[2029/30 To - Spending review Topic 3]]+Dataset[[#This Row],[2029/30 To - Spending review Topic 4]]+Dataset[[#This Row],[2029/30 To - Other reallocations]] -> 0 | CH50: =Dataset[[#This Row],[2027/28 Targeted savings]]+Dataset[[#This Row],[2027/28 From - Total]] -> 0 | CI50: =Dataset[[#This Row],[2028/29 Targeted savings]]+Dataset[[#This Row],[2028/29 From - Total]] -> 0 | CJ50: =Dataset[[#This Row],[2029/30 Targeted savings]]+Dataset[[#This Row],[2029/30 From - Total]] -> 0 | CK50: =Dataset[[#This Row],[2026/27 Targeted savings]] -> 0 | CL50: =SUM(Dataset[[#This Row],[2027/28 Targeted savings]],Dataset[[#This Row],[2027/28 From - Total]],Dataset[[#This Row],[2027/28 To - Total]]) -> 0 | CM50: =SUM(Dataset[[#This Row],[2028/29 Targeted savings]],Dataset[[#This Row],[2028/29 From - Total]],Dataset[[#This Row],[2028/29 To - Total]]) -> 0 | CN50: =SUM(Dataset[[#This Row],[2029/30 Targeted savings]],Dataset[[#This Row],[2029/30 From - Total]],Dataset[[#This Row],[2029/30 To - Total]]) -> 0 | CO50: =Dataset[[#This Row],[2026/27 Baseline]]+Dataset[[#This Row],[2026/27 Total change]] -> 477 | CP50: =Dataset[[#This Row],[2027/28 Baseline]]+Dataset[[#This Row],[2027/28 Total change]] -> 494 | CQ50: =Dataset[[#This Row],[2028/29 Baseline]]+Dataset[[#This Row],[2028/29 Total change]] -> 506 | CR50: =Dataset[[#This Row],[2029/30 Baseline]]+Dataset[[#This Row],[2029/30 Total change]] -> 521
A51: NAT|Non-transfer | B51: 17|Operating leases | C51: 2027_28 | D51: MTEC2027 | E51: 17 | F51: 1 | G51: 1 | H51: 16246 | I51: 33 | J51: 17 | K51: 01 | L51: 01 | M51: 016246 | N51: 000033 | O51: 17|01|01|000033 | P51: 01 | Q51: 01 | R51: 02 | S51: 33 | T51: 33 | U51: 01|01|02|33|33 | V51: National | W51: Higher Education | X51: Administration | Y51: Ministry | Z51: Non-transfer | AA51: Current | AB51: Current payments | AC51: Goods and services | AD51: Operating leases | AE51: Operating leases | AF51: Learning and culture | AG51: Post-school education and training | AH51: NAT | AI51: 0 | AJ51: 0 | AK51: 0 | AL51: 193 | AM51: 2377 | AN51: 4377 | AO51: 4916 | AP51: 3159 | AQ51: 3292 | AR51: 3438 | AS51: 3542 | CB51: =Dataset[[#This Row],[2027/28 From - Spending review Topic 1]]+Dataset[[#This Row],[2027/28 From - Spending review Topic 2]]+Dataset[[#This Row],[2027/28 From - Spending review Topic 3]]+Dataset[[#This Row],[2027/28 From - Spending review Topic 4]]+Dataset[[#This Row],[2027/28 From - Other reallocations]] -> 0 | CC51: =Dataset[[#This Row],[2028/29 From - Spending review Topic 1]]+Dataset[[#This Row],[2028/29 From - Spending review Topic 2]]+Dataset[[#This Row],[2028/29 From - Spending review Topic 3]]+Dataset[[#This Row],[2028/29 From - Spending review Topic 4]]+Dataset[[#This Row],[2028/29 From - Other reallocations]] -> 0 | CD51: =Dataset[[#This Row],[2029/30 From - Spending review Topic 1]]+Dataset[[#This Row],[2029/30 From - Spending review Topic 2]]+Dataset[[#This Row],[2029/30 From - Spending review Topic 3]]+Dataset[[#This Row],[2029/30 From - Spending review Topic 4]]+Dataset[[#This Row],[2029/30 From - Other reallocations]] -> 0 | CE51: =Dataset[[#This Row],[2027/28 To - Spending review Topic 1]]+Dataset[[#This Row],[2027/28 To - Spending review Topic 2]]+Dataset[[#This Row],[2027/28 To - Spending review Topic 3]]+Dataset[[#This Row],[2027/28 To - Spending review Topic 4]]+Dataset[[#This Row],[2027/28 To - Other reallocations]] -> 0 | CF51: =Dataset[[#This Row],[2028/29 To - Spending review Topic 1]]+Dataset[[#This Row],[2028/29 To - Spending review Topic 2]]+Dataset[[#This Row],[2028/29 To - Spending review Topic 3]]+Dataset[[#This Row],[2028/29 To - Spending review Topic 4]]+Dataset[[#This Row],[2028/29 To - Other reallocations]] -> 0 | CG51: =Dataset[[#This Row],[2029/30 To - Spending review Topic 1]]+Dataset[[#This Row],[2029/30 To - Spending review Topic 2]]+Dataset[[#This Row],[2029/30 To - Spending review Topic 3]]+Dataset[[#This Row],[2029/30 To - Spending review Topic 4]]+Dataset[[#This Row],[2029/30 To - Other reallocations]] -> 0 | CH51: =Dataset[[#This Row],[2027/28 Targeted savings]]+Dataset[[#This Row],[2027/28 From - Total]] -> 0 | CI51: =Dataset[[#This Row],[2028/29 Targeted savings]]+Dataset[[#This Row],[2028/29 From - Total]] -> 0 | CJ51: =Dataset[[#This Row],[2029/30 Targeted savings]]+Dataset[[#This Row],[2029/30 From - Total]] -> 0 | CK51: =Dataset[[#This Row],[2026/27 Targeted savings]] -> 0 | CL51: =SUM(Dataset[[#This Row],[2027/28 Targeted savings]],Dataset[[#This Row],[2027/28 From - Total]],Dataset[[#This Row],[2027/28 To - Total]]) -> 0 | CM51: =SUM(Dataset[[#This Row],[2028/29 Targeted savings]],Dataset[[#This Row],[2028/29 From - Total]],Dataset[[#This Row],[2028/29 To - Total]]) -> 0 | CN51: =SUM(Dataset[[#This Row],[2029/30 Targeted savings]],Dataset[[#This Row],[2029/30 From - Total]],Dataset[[#This Row],[2029/30 To - Total]]) -> 0 | CO51: =Dataset[[#This Row],[2026/27 Baseline]]+Dataset[[#This Row],[2026/27 Total change]] -> 3159 | CP51: =Dataset[[#This Row],[2027/28 Baseline]]+Dataset[[#This Row],[2027/28 Total change]] -> 3292 | CQ51: =Dataset[[#This Row],[2028/29 Baseline]]+Dataset[[#This Row],[2028/29 Total change]] -> 3438 | CR51: =Dataset[[#This Row],[2029/30 Baseline]]+Dataset[[#This Row],[2029/30 Total change]] -> 3542
A52: NAT|Non-transfer item | B52: 17|Rental and hiring | C52: 2027_28 | D52: MTEC2027 | E52: 17 | F52: 1 | G52: 1 | H52: 16247 | I52: 34 | J52: 17 | K52: 01 | L52: 01 | M52: 016247 | N52: 000034 | O52: 17|01|01|000034 | P52: 01 | Q52: 01 | R52: 02 | S52: 34 | T52: 34 | U52: 01|01|02|34|34 | V52: National | W52: Higher Education | X52: Administration | Y52: Ministry | Z52: Non-transfer item | AA52: Current | AB52: Current payments | AC52: Goods and services | AD52: Rental and hiring | AE52: Rental and hiring | AF52: Learning and culture | AG52: Post-school education and training | AH52: NAT | AI52: 0 | AJ52: 0 | AK52: 0 | AL52: 0 | AM52: 0 | AN52: 0 | AO52: 0 | AP52: 0 | AQ52: 0 | AR52: 0 | AS52: 0 | CB52: =Dataset[[#This Row],[2027/28 From - Spending review Topic 1]]+Dataset[[#This Row],[2027/28 From - Spending review Topic 2]]+Dataset[[#This Row],[2027/28 From - Spending review Topic 3]]+Dataset[[#This Row],[2027/28 From - Spending review Topic 4]]+Dataset[[#This Row],[2027/28 From - Other reallocations]] -> 0 | CC52: =Dataset[[#This Row],[2028/29 From - Spending review Topic 1]]+Dataset[[#This Row],[2028/29 From - Spending review Topic 2]]+Dataset[[#This Row],[2028/29 From - Spending review Topic 3]]+Dataset[[#This Row],[2028/29 From - Spending review Topic 4]]+Dataset[[#This Row],[2028/29 From - Other reallocations]] -> 0 | CD52: =Dataset[[#This Row],[2029/30 From - Spending review Topic 1]]+Dataset[[#This Row],[2029/30 From - Spending review Topic 2]]+Dataset[[#This Row],[2029/30 From - Spending review Topic 3]]+Dataset[[#This Row],[2029/30 From - Spending review Topic 4]]+Dataset[[#This Row],[2029/30 From - Other reallocations]] -> 0 | CE52: =Dataset[[#This Row],[2027/28 To - Spending review Topic 1]]+Dataset[[#This Row],[2027/28 To - Spending review Topic 2]]+Dataset[[#This Row],[2027/28 To - Spending review Topic 3]]+Dataset[[#This Row],[2027/28 To - Spending review Topic 4]]+Dataset[[#This Row],[2027/28 To - Other reallocations]] -> 0 | CF52: =Dataset[[#This Row],[2028/29 To - Spending review Topic 1]]+Dataset[[#This Row],[2028/29 To - Spending review Topic 2]]+Dataset[[#This Row],[2028/29 To - Spending review Topic 3]]+Dataset[[#This Row],[2028/29 To - Spending review Topic 4]]+Dataset[[#This Row],[2028/29 To - Other reallocations]] -> 0 | CG52: =Dataset[[#This Row],[2029/30 To - Spending review Topic 1]]+Dataset[[#This Row],[2029/30 To - Spending review Topic 2]]+Dataset[[#This Row],[2029/30 To - Spending review Topic 3]]+Dataset[[#This Row],[2029/30 To - Spending review Topic 4]]+Dataset[[#This Row],[2029/30 To - Other reallocations]] -> 0 | CH52: =Dataset[[#This Row],[2027/28 Targeted savings]]+Dataset[[#This Row],[2027/28 From - Total]] -> 0 | CI52: =Dataset[[#This Row],[2028/29 Targeted savings]]+Dataset[[#This Row],[2028/29 From - Total]] -> 0 | CJ52: =Dataset[[#This Row],[2029/30 Targeted savings]]+Dataset[[#This Row],[2029/30 From - Total]] -> 0 | CK52: =Dataset[[#This Row],[2026/27 Targeted savings]] -> 0 | CL52: =SUM(Dataset[[#This Row],[2027/28 Targeted savings]],Dataset[[#This Row],[2027/28 From - Total]],Dataset[[#This Row],[2027/28 To - Total]]) -> 0 | CM52: =SUM(Dataset[[#This Row],[2028/29 Targeted savings]],Dataset[[#This Row],[2028/29 From - Total]],Dataset[[#This Row],[2028/29 To - Total]]) -> 0 | CN52: =SUM(Dataset[[#This Row],[2029/30 Targeted savings]],Dataset[[#This Row],[2029/30 From - Total]],Dataset[[#This Row],[2029/30 To - Total]]) -> 0 | CO52: =Dataset[[#This Row],[2026/27 Baseline]]+Dataset[[#This Row],[2026/27 Total change]] -> 0 | CP52: =Dataset[[#This Row],[2027/28 Baseline]]+Dataset[[#This Row],[2027/28 Total change]] -> 0 | CQ52: =Dataset[[#This Row],[2028/29 Baseline]]+Dataset[[#This Row],[2028/29 Total change]] -> 0 | CR52: =Dataset[[#This Row],[2029/30 Baseline]]+Dataset[[#This Row],[2029/30 Total change]] -> 0
A53: NAT|Non-transfer item | B53: 17|Property payments | C53: 2027_28 | D53: MTEC2027 | E53: 17 | F53: 1 | G53: 1 | H53: 16248 | I53: 35 | J53: 17 | K53: 01 | L53: 01 | M53: 016248 | N53: 000035 | O53: 17|01|01|000035 | P53: 01 | Q53: 01 | R53: 02 | S53: 35 | T53: 35 | U53: 01|01|02|35|35 | V53: National | W53: Higher Education | X53: Administration | Y53: Ministry | Z53: Non-transfer item | AA53: Current | AB53: Current payments | AC53: Goods and services | AD53: Property payments | AE53: Property payments | AF53: Learning and culture | AG53: Post-school education and training | AH53: NAT | AI53: 0 | AJ53: 0 | AK53: 0 | AL53: 0 | AM53: 0 | AN53: 0 | AO53: 0 | AP53: 0 | AQ53: 0 | AR53: 0 | AS53: 0 | CB53: =Dataset[[#This Row],[2027/28 From - Spending review Topic 1]]+Dataset[[#This Row],[2027/28 From - Spending review Topic 2]]+Dataset[[#This Row],[2027/28 From - Spending review Topic 3]]+Dataset[[#This Row],[2027/28 From - Spending review Topic 4]]+Dataset[[#This Row],[2027/28 From - Other reallocations]] -> 0 | CC53: =Dataset[[#This Row],[2028/29 From - Spending review Topic 1]]+Dataset[[#This Row],[2028/29 From - Spending review Topic 2]]+Dataset[[#This Row],[2028/29 From - Spending review Topic 3]]+Dataset[[#This Row],[2028/29 From - Spending review Topic 4]]+Dataset[[#This Row],[2028/29 From - Other reallocations]] -> 0 | CD53: =Dataset[[#This Row],[2029/30 From - Spending review Topic 1]]+Dataset[[#This Row],[2029/30 From - Spending review Topic 2]]+Dataset[[#This Row],[2029/30 From - Spending review Topic 3]]+Dataset[[#This Row],[2029/30 From - Spending review Topic 4]]+Dataset[[#This Row],[2029/30 From - Other reallocations]] -> 0 | CE53: =Dataset[[#This Row],[2027/28 To - Spending review Topic 1]]+Dataset[[#This Row],[2027/28 To - Spending review Topic 2]]+Dataset[[#This Row],[2027/28 To - Spending review Topic 3]]+Dataset[[#This Row],[2027/28 To - Spending review Topic 4]]+Dataset[[#This Row],[2027/28 To - Other reallocations]] -> 0 | CF53: =Dataset[[#This Row],[2028/29 To - Spending review Topic 1]]+Dataset[[#This Row],[2028/29 To - Spending review Topic 2]]+Dataset[[#This Row],[2028/29 To - Spending review Topic 3]]+Dataset[[#This Row],[2028/29 To - Spending review Topic 4]]+Dataset[[#This Row],[2028/29 To - Other reallocations]] -> 0 | CG53: =Dataset[[#This Row],[2029/30 To - Spending review Topic 1]]+Dataset[[#This Row],[2029/30 To - Spending review Topic 2]]+Dataset[[#This Row],[2029/30 To - Spending review Topic 3]]+Dataset[[#This Row],[2029/30 To - Spending review Topic 4]]+Dataset[[#This Row],[2029/30 To - Other reallocations]] -> 0 | CH53: =Dataset[[#This Row],[2027/28 Targeted savings]]+Dataset[[#This Row],[2027/28 From - Total]] -> 0 | CI53: =Dataset[[#This Row],[2028/29 Targeted savings]]+Dataset[[#This Row],[2028/29 From - Total]] -> 0 | CJ53: =Dataset[[#This Row],[2029/30 Targeted savings]]+Dataset[[#This Row],[2029/30 From - Total]] -> 0 | CK53: =Dataset[[#This Row],[2026/27 Targeted savings]] -> 0 | CL53: =SUM(Dataset[[#This Row],[2027/28 Targeted savings]],Dataset[[#This Row],[2027/28 From - Total]],Dataset[[#This Row],[2027/28 To - Total]]) -> 0 | CM53: =SUM(Dataset[[#This Row],[2028/29 Targeted savings]],Dataset[[#This Row],[2028/29 From - Total]],Dataset[[#This Row],[2028/29 To - Total]]) -> 0 | CN53: =SUM(Dataset[[#This Row],[2029/30 Targeted savings]],Dataset[[#This Row],[2029/30 From - Total]],Dataset[[#This Row],[2029/30 To - Total]]) -> 0 | CO53: =Dataset[[#This Row],[2026/27 Baseline]]+Dataset[[#This Row],[2026/27 Total change]] -> 0 | CP53: =Dataset[[#This Row],[2027/28 Baseline]]+Dataset[[#This Row],[2027/28 Total change]] -> 0 | CQ53: =Dataset[[#This Row],[2028/29 Baseline]]+Dataset[[#This Row],[2028/29 Total change]] -> 0 | CR53: =Dataset[[#This Row],[2029/30 Baseline]]+Dataset[[#This Row],[2029/30 Total change]] -> 0
A54: NAT|Non-transfer item | B54: 17|Transport provided: Departmental activity | C54: 2027_28 | D54: MTEC2027 | E54: 17 | F54: 1 | G54: 1 | H54: 16249 | I54: 36 | J54: 17 | K54: 01 | L54: 01 | M54: 016249 | N54: 000036 | O54: 17|01|01|000036 | P54: 01 | Q54: 01 | R54: 02 | S54: 36 | T54: 36 | U54: 01|01|02|36|36 | V54: National | W54: Higher Education | X54: Administration | Y54: Ministry | Z54: Non-transfer item | AA54: Current | AB54: Current payments | AC54: Goods and services | AD54: Transport provided: Departmental activity | AE54: Transport provided: Departmental activity | AF54: Learning and culture | AG54: Post-school education and training | AH54: NAT | AI54: 0 | AJ54: 0 | AK54: 0 | AL54: 0 | AM54: 0 | AN54: 0 | AO54: 0 | AP54: 0 | AQ54: 0 | AR54: 0 | AS54: 0 | CB54: =Dataset[[#This Row],[2027/28 From - Spending review Topic 1]]+Dataset[[#This Row],[2027/28 From - Spending review Topic 2]]+Dataset[[#This Row],[2027/28 From - Spending review Topic 3]]+Dataset[[#This Row],[2027/28 From - Spending review Topic 4]]+Dataset[[#This Row],[2027/28 From - Other reallocations]] -> 0 | CC54: =Dataset[[#This Row],[2028/29 From - Spending review Topic 1]]+Dataset[[#This Row],[2028/29 From - Spending review Topic 2]]+Dataset[[#This Row],[2028/29 From - Spending review Topic 3]]+Dataset[[#This Row],[2028/29 From - Spending review Topic 4]]+Dataset[[#This Row],[2028/29 From - Other reallocations]] -> 0 | CD54: =Dataset[[#This Row],[2029/30 From - Spending review Topic 1]]+Dataset[[#This Row],[2029/30 From - Spending review Topic 2]]+Dataset[[#This Row],[2029/30 From - Spending review Topic 3]]+Dataset[[#This Row],[2029/30 From - Spending review Topic 4]]+Dataset[[#This Row],[2029/30 From - Other reallocations]] -> 0 | CE54: =Dataset[[#This Row],[2027/28 To - Spending review Topic 1]]+Dataset[[#This Row],[2027/28 To - Spending review Topic 2]]+Dataset[[#This Row],[2027/28 To - Spending review Topic 3]]+Dataset[[#This Row],[2027/28 To - Spending review Topic 4]]+Dataset[[#This Row],[2027/28 To - Other reallocations]] -> 0 | CF54: =Dataset[[#This Row],[2028/29 To - Spending review Topic 1]]+Dataset[[#This Row],[2028/29 To - Spending review Topic 2]]+Dataset[[#This Row],[2028/29 To - Spending review Topic 3]]+Dataset[[#This Row],[2028/29 To - Spending review Topic 4]]+Dataset[[#This Row],[2028/29 To - Other reallocations]] -> 0 | CG54: =Dataset[[#This Row],[2029/30 To - Spending review Topic 1]]+Dataset[[#This Row],[2029/30 To - Spending review Topic 2]]+Dataset[[#This Row],[2029/30 To - Spending review Topic 3]]+Dataset[[#This Row],[2029/30 To - Spending review Topic 4]]+Dataset[[#This Row],[2029/30 To - Other reallocations]] -> 0 | CH54: =Dataset[[#This Row],[2027/28 Targeted savings]]+Dataset[[#This Row],[2027/28 From - Total]] -> 0 | CI54: =Dataset[[#This Row],[2028/29 Targeted savings]]+Dataset[[#This Row],[2028/29 From - Total]] -> 0 | CJ54: =Dataset[[#This Row],[2029/30 Targeted savings]]+Dataset[[#This Row],[2029/30 From - Total]] -> 0 | CK54: =Dataset[[#This Row],[2026/27 Targeted savings]] -> 0 | CL54: =SUM(Dataset[[#This Row],[2027/28 Targeted savings]],Dataset[[#This Row],[2027/28 From - Total]],Dataset[[#This Row],[2027/28 To - Total]]) -> 0 | CM54: =SUM(Dataset[[#This Row],[2028/29 Targeted savings]],Dataset[[#This Row],[2028/29 From - Total]],Dataset[[#This Row],[2028/29 To - Total]]) -> 0 | CN54: =SUM(Dataset[[#This Row],[2029/30 Targeted savings]],Dataset[[#This Row],[2029/30 From - Total]],Dataset[[#This Row],[2029/30 To - Total]]) -> 0 | CO54: =Dataset[[#This Row],[2026/27 Baseline]]+Dataset[[#This Row],[2026/27 Total change]] -> 0 | CP54: =Dataset[[#This Row],[2027/28 Baseline]]+Dataset[[#This Row],[2027/28 Total change]] -> 0 | CQ54: =Dataset[[#This Row],[2028/29 Baseline]]+Dataset[[#This Row],[2028/29 Total change]] -> 0 | CR54: =Dataset[[#This Row],[2029/30 Baseline]]+Dataset[[#This Row],[2029/30 Total change]] -> 0
A55: NAT|Non-transfer | B55: 17|Travel and subsistence | C55: 2027_28 | D55: MTEC2027 | E55: 17 | F55: 1 | G55: 1 | H55: 16250 | I55: 37 | J55: 17 | K55: 01 | L55: 01 | M55: 016250 | N55: 000037 | O55: 17|01|01|000037 | P55: 01 | Q55: 01 | R55: 02 | S55: 37 | T55: 37 | U55: 01|01|02|37|37 | V55: National | W55: Higher Education | X55: Administration | Y55: Ministry | Z55: Non-transfer | AA55: Current | AB55: Current payments | AC55: Goods and services | AD55: Travel and subsistence | AE55: Travel and subsistence | AF55: Learning and culture | AG55: Post-school education and training | AH55: NAT | AI55: 0 | AJ55: 0 | AK55: 0 | AL55: 12751 | AM55: 16673 | AN55: 25773 | AO55: 29069 | AP55: 11812 | AQ55: 11977 | AR55: 12259 | AS55: 12628 | CB55: =Dataset[[#This Row],[2027/28 From - Spending review Topic 1]]+Dataset[[#This Row],[2027/28 From - Spending review Topic 2]]+Dataset[[#This Row],[2027/28 From - Spending review Topic 3]]+Dataset[[#This Row],[2027/28 From - Spending review Topic 4]]+Dataset[[#This Row],[2027/28 From - Other reallocations]] -> 0 | CC55: =Dataset[[#This Row],[2028/29 From - Spending review Topic 1]]+Dataset[[#This Row],[2028/29 From - Spending review Topic 2]]+Dataset[[#This Row],[2028/29 From - Spending review Topic 3]]+Dataset[[#This Row],[2028/29 From - Spending review Topic 4]]+Dataset[[#This Row],[2028/29 From - Other reallocations]] -> 0 | CD55: =Dataset[[#This Row],[2029/30 From - Spending review Topic 1]]+Dataset[[#This Row],[2029/30 From - Spending review Topic 2]]+Dataset[[#This Row],[2029/30 From - Spending review Topic 3]]+Dataset[[#This Row],[2029/30 From - Spending review Topic 4]]+Dataset[[#This Row],[2029/30 From - Other reallocations]] -> 0 | CE55: =Dataset[[#This Row],[2027/28 To - Spending review Topic 1]]+Dataset[[#This Row],[2027/28 To - Spending review Topic 2]]+Dataset[[#This Row],[2027/28 To - Spending review Topic 3]]+Dataset[[#This Row],[2027/28 To - Spending review Topic 4]]+Dataset[[#This Row],[2027/28 To - Other reallocations]] -> 0 | CF55: =Dataset[[#This Row],[2028/29 To - Spending review Topic 1]]+Dataset[[#This Row],[2028/29 To - Spending review Topic 2]]+Dataset[[#This Row],[2028/29 To - Spending review Topic 3]]+Dataset[[#This Row],[2028/29 To - Spending review Topic 4]]+Dataset[[#This Row],[2028/29 To - Other reallocations]] -> 0 | CG55: =Dataset[[#This Row],[2029/30 To - Spending review Topic 1]]+Dataset[[#This Row],[2029/30 To - Spending review Topic 2]]+Dataset[[#This Row],[2029/30 To - Spending review Topic 3]]+Dataset[[#This Row],[2029/30 To - Spending review Topic 4]]+Dataset[[#This Row],[2029/30 To - Other reallocations]] -> 0 | CH55: =Dataset[[#This Row],[2027/28 Targeted savings]]+Dataset[[#This Row],[2027/28 From - Total]] -> 0 | CI55: =Dataset[[#This Row],[2028/29 Targeted savings]]+Dataset[[#This Row],[2028/29 From - Total]] -> 0 | CJ55: =Dataset[[#This Row],[2029/30 Targeted savings]]+Dataset[[#This Row],[2029/30 From - Total]] -> 0 | CK55: =Dataset[[#This Row],[2026/27 Targeted savings]] -> 0 | CL55: =SUM(Dataset[[#This Row],[2027/28 Targeted savings]],Dataset[[#This Row],[2027/28 From - Total]],Dataset[[#This Row],[2027/28 To - Total]]) -> 0 | CM55: =SUM(Dataset[[#This Row],[2028/29 Targeted savings]],Dataset[[#This Row],[2028/29 From - Total]],Dataset[[#This Row],[2028/29 To - Total]]) -> 0 | CN55: =SUM(Dataset[[#This Row],[2029/30 Targeted savings]],Dataset[[#This Row],[2029/30 From - Total]],Dataset[[#This Row],[2029/30 To - Total]]) -> 0 | CO55: =Dataset[[#This Row],[2026/27 Baseline]]+Dataset[[#This Row],[2026/27 Total change]] -> 11812 | CP55: =Dataset[[#This Row],[2027/28 Baseline]]+Dataset[[#This Row],[2027/28 Total change]] -> 11977 | CQ55: =Dataset[[#This Row],[2028/29 Baseline]]+Dataset[[#This Row],[2028/29 Total change]] -> 12259 | CR55: =Dataset[[#This Row],[2029/30 Baseline]]+Dataset[[#This Row],[2029/30 Total change]] -> 12628
A56: NAT|Non-transfer item | B56: 17|Training and development | C56: 2027_28 | D56: MTEC2027 | E56: 17 | F56: 1 | G56: 1 | H56: 16251 | I56: 38 | J56: 17 | K56: 01 | L56: 01 | M56: 016251 | N56: 000038 | O56: 17|01|01|000038 | P56: 01 | Q56: 01 | R56: 02 | S56: 38 | T56: 38 | U56: 01|01|02|38|38 | V56: National | W56: Higher Education | X56: Administration | Y56: Ministry | Z56: Non-transfer item | AA56: Current | AB56: Current payments | AC56: Goods and services | AD56: Training and development | AE56: Training and development | AF56: Learning and culture | AG56: Post-school education and training | AH56: NAT | AI56: 0 | AJ56: 0 | AK56: 0 | AL56: 0 | AM56: 0 | AN56: 0 | AO56: 0 | AP56: 0 | AQ56: 0 | AR56: 0 | AS56: 0 | CB56: =Dataset[[#This Row],[2027/28 From - Spending review Topic 1]]+Dataset[[#This Row],[2027/28 From - Spending review Topic 2]]+Dataset[[#This Row],[2027/28 From - Spending review Topic 3]]+Dataset[[#This Row],[2027/28 From - Spending review Topic 4]]+Dataset[[#This Row],[2027/28 From - Other reallocations]] -> 0 | CC56: =Dataset[[#This Row],[2028/29 From - Spending review Topic 1]]+Dataset[[#This Row],[2028/29 From - Spending review Topic 2]]+Dataset[[#This Row],[2028/29 From - Spending review Topic 3]]+Dataset[[#This Row],[2028/29 From - Spending review Topic 4]]+Dataset[[#This Row],[2028/29 From - Other reallocations]] -> 0 | CD56: =Dataset[[#This Row],[2029/30 From - Spending review Topic 1]]+Dataset[[#This Row],[2029/30 From - Spending review Topic 2]]+Dataset[[#This Row],[2029/30 From - Spending review Topic 3]]+Dataset[[#This Row],[2029/30 From - Spending review Topic 4]]+Dataset[[#This Row],[2029/30 From - Other reallocations]] -> 0 | CE56: =Dataset[[#This Row],[2027/28 To - Spending review Topic 1]]+Dataset[[#This Row],[2027/28 To - Spending review Topic 2]]+Dataset[[#This Row],[2027/28 To - Spending review Topic 3]]+Dataset[[#This Row],[2027/28 To - Spending review Topic 4]]+Dataset[[#This Row],[2027/28 To - Other reallocations]] -> 0 | CF56: =Dataset[[#This Row],[2028/29 To - Spending review Topic 1]]+Dataset[[#This Row],[2028/29 To - Spending review Topic 2]]+Dataset[[#This Row],[2028/29 To - Spending review Topic 3]]+Dataset[[#This Row],[2028/29 To - Spending review Topic 4]]+Dataset[[#This Row],[2028/29 To - Other reallocations]] -> 0 | CG56: =Dataset[[#This Row],[2029/30 To - Spending review Topic 1]]+Dataset[[#This Row],[2029/30 To - Spending review Topic 2]]+Dataset[[#This Row],[2029/30 To - Spending review Topic 3]]+Dataset[[#This Row],[2029/30 To - Spending review Topic 4]]+Dataset[[#This Row],[2029/30 To - Other reallocations]] -> 0 | CH56: =Dataset[[#This Row],[2027/28 Targeted savings]]+Dataset[[#This Row],[2027/28 From - Total]] -> 0 | CI56: =Dataset[[#This Row],[2028/29 Targeted savings]]+Dataset[[#This Row],[2028/29 From - Total]] -> 0 | CJ56: =Dataset[[#This Row],[2029/30 Targeted savings]]+Dataset[[#This Row],[2029/30 From - Total]] -> 0 | CK56: =Dataset[[#This Row],[2026/27 Targeted savings]] -> 0 | CL56: =SUM(Dataset[[#This Row],[2027/28 Targeted savings]],Dataset[[#This Row],[2027/28 From - Total]],Dataset[[#This Row],[2027/28 To - Total]]) -> 0 | CM56: =SUM(Dataset[[#This Row],[2028/29 Targeted savings]],Dataset[[#This Row],[2028/29 From - Total]],Dataset[[#This Row],[2028/29 To - Total]]) -> 0 | CN56: =SUM(Dataset[[#This Row],[2029/30 Targeted savings]],Dataset[[#This Row],[2029/30 From - Total]],Dataset[[#This Row],[2029/30 To - Total]]) -> 0 | CO56: =Dataset[[#This Row],[2026/27 Baseline]]+Dataset[[#This Row],[2026/27 Total change]] -> 0 | CP56: =Dataset[[#This Row],[2027/28 Baseline]]+Dataset[[#This Row],[2027/28 Total change]] -> 0 | CQ56: =Dataset[[#This Row],[2028/29 Baseline]]+Dataset[[#This Row],[2028/29 Total change]] -> 0 | CR56: =Dataset[[#This Row],[2029/30 Baseline]]+Dataset[[#This Row],[2029/30 Total change]] -> 0
A57: NAT|Non-transfer | B57: 17|Operating payments | C57: 2027_28 | D57: MTEC2027 | E57: 17 | F57: 1 | G57: 1 | H57: 16252 | I57: 39 | J57: 17 | K57: 01 | L57: 01 | M57: 016252 | N57: 000039 | O57: 17|01|01|000039 | P57: 01 | Q57: 01 | R57: 02 | S57: 39 | T57: 39 | U57: 01|01|02|39|39 | V57: National | W57: Higher Education | X57: Administration | Y57: Ministry | Z57: Non-transfer | AA57: Current | AB57: Current payments | AC57: Goods and services | AD57: Operating payments | AE57: Operating payments | AF57: Learning and culture | AG57: Post-school education and training | AH57: NAT | AI57: 0 | AJ57: 0 | AK57: 0 | AL57: 126 | AM57: 183 | AN57: 183 | AO57: 89 | AP57: 399 | AQ57: 415 | AR57: 430 | AS57: 443 | CB57: =Dataset[[#This Row],[2027/28 From - Spending review Topic 1]]+Dataset[[#This Row],[2027/28 From - Spending review Topic 2]]+Dataset[[#This Row],[2027/28 From - Spending review Topic 3]]+Dataset[[#This Row],[2027/28 From - Spending review Topic 4]]+Dataset[[#This Row],[2027/28 From - Other reallocations]] -> 0 | CC57: =Dataset[[#This Row],[2028/29 From - Spending review Topic 1]]+Dataset[[#This Row],[2028/29 From - Spending review Topic 2]]+Dataset[[#This Row],[2028/29 From - Spending review Topic 3]]+Dataset[[#This Row],[2028/29 From - Spending review Topic 4]]+Dataset[[#This Row],[2028/29 From - Other reallocations]] -> 0 | CD57: =Dataset[[#This Row],[2029/30 From - Spending review Topic 1]]+Dataset[[#This Row],[2029/30 From - Spending review Topic 2]]+Dataset[[#This Row],[2029/30 From - Spending review Topic 3]]+Dataset[[#This Row],[2029/30 From - Spending review Topic 4]]+Dataset[[#This Row],[2029/30 From - Other reallocations]] -> 0 | CE57: =Dataset[[#This Row],[2027/28 To - Spending review Topic 1]]+Dataset[[#This Row],[2027/28 To - Spending review Topic 2]]+Dataset[[#This Row],[2027/28 To - Spending review Topic 3]]+Dataset[[#This Row],[2027/28 To - Spending review Topic 4]]+Dataset[[#This Row],[2027/28 To - Other reallocations]] -> 0 | CF57: =Dataset[[#This Row],[2028/29 To - Spending review Topic 1]]+Dataset[[#This Row],[2028/29 To - Spending review Topic 2]]+Dataset[[#This Row],[2028/29 To - Spending review Topic 3]]+Dataset[[#This Row],[2028/29 To - Spending review Topic 4]]+Dataset[[#This Row],[2028/29 To - Other reallocations]] -> 0 | CG57: =Dataset[[#This Row],[2029/30 To - Spending review Topic 1]]+Dataset[[#This Row],[2029/30 To - Spending review Topic 2]]+Dataset[[#This Row],[2029/30 To - Spending review Topic 3]]+Dataset[[#This Row],[2029/30 To - Spending review Topic 4]]+Dataset[[#This Row],[2029/30 To - Other reallocations]] -> 0 | CH57: =Dataset[[#This Row],[2027/28 Targeted savings]]+Dataset[[#This Row],[2027/28 From - Total]] -> 0 | CI57: =Dataset[[#This Row],[2028/29 Targeted savings]]+Dataset[[#This Row],[2028/29 From - Total]] -> 0 | CJ57: =Dataset[[#This Row],[2029/30 Targeted savings]]+Dataset[[#This Row],[2029/30 From - Total]] -> 0 | CK57: =Dataset[[#This Row],[2026/27 Targeted savings]] -> 0 | CL57: =SUM(Dataset[[#This Row],[2027/28 Targeted savings]],Dataset[[#This Row],[2027/28 From - Total]],Dataset[[#This Row],[2027/28 To - Total]]) -> 0 | CM57: =SUM(Dataset[[#This Row],[2028/29 Targeted savings]],Dataset[[#This Row],[2028/29 From - Total]],Dataset[[#This Row],[2028/29 To - Total]]) -> 0 | CN57: =SUM(Dataset[[#This Row],[2029/30 Targeted savings]],Dataset[[#This Row],[2029/30 From - Total]],Dataset[[#This Row],[2029/30 To - Total]]) -> 0 | CO57: =Dataset[[#This Row],[2026/27 Baseline]]+Dataset[[#This Row],[2026/27 Total change]] -> 399 | CP57: =Dataset[[#This Row],[2027/28 Baseline]]+Dataset[[#This Row],[2027/28 Total change]] -> 415 | CQ57: =Dataset[[#This Row],[2028/29 Baseline]]+Dataset[[#This Row],[2028/29 Total change]] -> 430 | CR57: =Dataset[[#This Row],[2029/30 Baseline]]+Dataset[[#This Row],[2029/30 Total change]] -> 443
A58: NAT|Non-transfer | B58: 17|Venues and facilities | C58: 2027_28 | D58: MTEC2027 | E58: 17 | F58: 1 | G58: 1 | H58: 16253 | I58: 40 | J58: 17 | K58: 01 | L58: 01 | M58: 016253 | N58: 000040 | O58: 17|01|01|000040 | P58: 01 | Q58: 01 | R58: 02 | S58: 40 | T58: 40 | U58: 01|01|02|40|40 | V58: National | W58: Higher Education | X58: Administration | Y58: Ministry | Z58: Non-transfer | AA58: Current | AB58: Current payments | AC58: Goods and services | AD58: Venues and facilities | AE58: Venues and facilities | AF58: Learning and culture | AG58: Post-school education and training | AH58: NAT | AI58: 0 | AJ58: 0 | AK58: 0 | AL58: 350 | AM58: 235 | AN58: 235 | AO58: 250 | AP58: 98 | AQ58: 106 | AR58: 105 | AS58: 108 | CB58: =Dataset[[#This Row],[2027/28 From - Spending review Topic 1]]+Dataset[[#This Row],[2027/28 From - Spending review Topic 2]]+Dataset[[#This Row],[2027/28 From - Spending review Topic 3]]+Dataset[[#This Row],[2027/28 From - Spending review Topic 4]]+Dataset[[#This Row],[2027/28 From - Other reallocations]] -> 0 | CC58: =Dataset[[#This Row],[2028/29 From - Spending review Topic 1]]+Dataset[[#This Row],[2028/29 From - Spending review Topic 2]]+Dataset[[#This Row],[2028/29 From - Spending review Topic 3]]+Dataset[[#This Row],[2028/29 From - Spending review Topic 4]]+Dataset[[#This Row],[2028/29 From - Other reallocations]] -> 0 | CD58: =Dataset[[#This Row],[2029/30 From - Spending review Topic 1]]+Dataset[[#This Row],[2029/30 From - Spending review Topic 2]]+Dataset[[#This Row],[2029/30 From - Spending review Topic 3]]+Dataset[[#This Row],[2029/30 From - Spending review Topic 4]]+Dataset[[#This Row],[2029/30 From - Other reallocations]] -> 0 | CE58: =Dataset[[#This Row],[2027/28 To - Spending review Topic 1]]+Dataset[[#This Row],[2027/28 To - Spending review Topic 2]]+Dataset[[#This Row],[2027/28 To - Spending review Topic 3]]+Dataset[[#This Row],[2027/28 To - Spending review Topic 4]]+Dataset[[#This Row],[2027/28 To - Other reallocations]] -> 0 | CF58: =Dataset[[#This Row],[2028/29 To - Spending review Topic 1]]+Dataset[[#This Row],[2028/29 To - Spending review Topic 2]]+Dataset[[#This Row],[2028/29 To - Spending review Topic 3]]+Dataset[[#This Row],[2028/29 To - Spending review Topic 4]]+Dataset[[#This Row],[2028/29 To - Other reallocations]] -> 0 | CG58: =Dataset[[#This Row],[2029/30 To - Spending review Topic 1]]+Dataset[[#This Row],[2029/30 To - Spending review Topic 2]]+Dataset[[#This Row],[2029/30 To - Spending review Topic 3]]+Dataset[[#This Row],[2029/30 To - Spending review Topic 4]]+Dataset[[#This Row],[2029/30 To - Other reallocations]] -> 0 | CH58: =Dataset[[#This Row],[2027/28 Targeted savings]]+Dataset[[#This Row],[2027/28 From - Total]] -> 0 | CI58: =Dataset[[#This Row],[2028/29 Targeted savings]]+Dataset[[#This Row],[2028/29 From - Total]] -> 0 | CJ58: =Dataset[[#This Row],[2029/30 Targeted savings]]+Dataset[[#This Row],[2029/30 From - Total]] -> 0 | CK58: =Dataset[[#This Row],[2026/27 Targeted savings]] -> 0 | CL58: =SUM(Dataset[[#This Row],[2027/28 Targeted savings]],Dataset[[#This Row],[2027/28 From - Total]],Dataset[[#This Row],[2027/28 To - Total]]) -> 0 | CM58: =SUM(Dataset[[#This Row],[2028/29 Targeted savings]],Dataset[[#This Row],[2028/29 From - Total]],Dataset[[#This Row],[2028/29 To - Total]]) -> 0 | CN58: =SUM(Dataset[[#This Row],[2029/30 Targeted savings]],Dataset[[#This Row],[2029/30 From - Total]],Dataset[[#This Row],[2029/30 To - Total]]) -> 0 | CO58: =Dataset[[#This Row],[2026/27 Baseline]]+Dataset[[#This Row],[2026/27 Total change]] -> 98 | CP58: =Dataset[[#This Row],[2027/28 Baseline]]+Dataset[[#This Row],[2027/28 Total change]] -> 106 | CQ58: =Dataset[[#This Row],[2028/29 Baseline]]+Dataset[[#This Row],[2028/29 Total change]] -> 105 | CR58: =Dataset[[#This Row],[2029/30 Baseline]]+Dataset[[#This Row],[2029/30 Total change]] -> 108
A59: NAT|Non-transfer item | B59: 17|Interest (Incl. interest on unitary payments (PPP)) | C59: 2027_28 | D59: MTEC2027 | E59: 17 | F59: 1 | G59: 1 | H59: 16254 | I59: 41 | J59: 17 | K59: 01 | L59: 01 | M59: 016254 | N59: 000041 | O59: 17|01|01|000041 | P59: 01 | Q59: 01 | R59: 03 | S59: 41 | T59: 41 | U59: 01|01|03|41|41 | V59: National | W59: Higher Education | X59: Administration | Y59: Ministry | Z59: Non-transfer item | AA59: Current | AB59: Current payments | AC59: Interest and rent on land | AD59: Interest (Incl. interest on unitary payments (PPP)) | AE59: Interest (Incl. interest on unitary payments (PPP)) | AF59: Learning and culture | AG59: Post-school education and training | AH59: NAT | AI59: 0 | AJ59: 0 | AK59: 0 | AL59: 0 | AM59: 0 | AN59: 0 | AO59: 0 | AP59: 0 | AQ59: 0 | AR59: 0 | AS59: 0 | CB59: =Dataset[[#This Row],[2027/28 From - Spending review Topic 1]]+Dataset[[#This Row],[2027/28 From - Spending review Topic 2]]+Dataset[[#This Row],[2027/28 From - Spending review Topic 3]]+Dataset[[#This Row],[2027/28 From - Spending review Topic 4]]+Dataset[[#This Row],[2027/28 From - Other reallocations]] -> 0 | CC59: =Dataset[[#This Row],[2028/29 From - Spending review Topic 1]]+Dataset[[#This Row],[2028/29 From - Spending review Topic 2]]+Dataset[[#This Row],[2028/29 From - Spending review Topic 3]]+Dataset[[#This Row],[2028/29 From - Spending review Topic 4]]+Dataset[[#This Row],[2028/29 From - Other reallocations]] -> 0 | CD59: =Dataset[[#This Row],[2029/30 From - Spending review Topic 1]]+Dataset[[#This Row],[2029/30 From - Spending review Topic 2]]+Dataset[[#This Row],[2029/30 From - Spending review Topic 3]]+Dataset[[#This Row],[2029/30 From - Spending review Topic 4]]+Dataset[[#This Row],[2029/30 From - Other reallocations]] -> 0 | CE59: =Dataset[[#This Row],[2027/28 To - Spending review Topic 1]]+Dataset[[#This Row],[2027/28 To - Spending review Topic 2]]+Dataset[[#This Row],[2027/28 To - Spending review Topic 3]]+Dataset[[#This Row],[2027/28 To - Spending review Topic 4]]+Dataset[[#This Row],[2027/28 To - Other reallocations]] -> 0 | CF59: =Dataset[[#This Row],[2028/29 To - Spending review Topic 1]]+Dataset[[#This Row],[2028/29 To - Spending review Topic 2]]+Dataset[[#This Row],[2028/29 To - Spending review Topic 3]]+Dataset[[#This Row],[2028/29 To - Spending review Topic 4]]+Dataset[[#This Row],[2028/29 To - Other reallocations]] -> 0 | CG59: =Dataset[[#This Row],[2029/30 To - Spending review Topic 1]]+Dataset[[#This Row],[2029/30 To - Spending review Topic 2]]+Dataset[[#This Row],[2029/30 To - Spending review Topic 3]]+Dataset[[#This Row],[2029/30 To - Spending review Topic 4]]+Dataset[[#This Row],[2029/30 To - Other reallocations]] -> 0 | CH59: =Dataset[[#This Row],[2027/28 Targeted savings]]+Dataset[[#This Row],[2027/28 From - Total]] -> 0 | CI59: =Dataset[[#This Row],[2028/29 Targeted savings]]+Dataset[[#This Row],[2028/29 From - Total]] -> 0 | CJ59: =Dataset[[#This Row],[2029/30 Targeted savings]]+Dataset[[#This Row],[2029/30 From - Total]] -> 0 | CK59: =Dataset[[#This Row],[2026/27 Targeted savings]] -> 0 | CL59: =SUM(Dataset[[#This Row],[2027/28 Targeted savings]],Dataset[[#This Row],[2027/28 From - Total]],Dataset[[#This Row],[2027/28 To - Total]]) -> 0 | CM59: =SUM(Dataset[[#This Row],[2028/29 Targeted savings]],Dataset[[#This Row],[2028/29 From - Total]],Dataset[[#This Row],[2028/29 To - Total]]) -> 0 | CN59: =SUM(Dataset[[#This Row],[2029/30 Targeted savings]],Dataset[[#This Row],[2029/30 From - Total]],Dataset[[#This Row],[2029/30 To - Total]]) -> 0 | CO59: =Dataset[[#This Row],[2026/27 Baseline]]+Dataset[[#This Row],[2026/27 Total change]] -> 0 | CP59: =Dataset[[#This Row],[2027/28 Baseline]]+Dataset[[#This Row],[2027/28 Total change]] -> 0 | CQ59: =Dataset[[#This Row],[2028/29 Baseline]]+Dataset[[#This Row],[2028/29 Total change]] -> 0 | CR59: =Dataset[[#This Row],[2029/30 Baseline]]+Dataset[[#This Row],[2029/30 Total change]] -> 0
A60: NAT|Non-transfer item | B60: 17|Rent on land | C60: 2027_28 | D60: MTEC2027 | E60: 17 | F60: 1 | G60: 1 | H60: 16255 | I60: 42 | J60: 17 | K60: 01 | L60: 01 | M60: 016255 | N60: 000042 | O60: 17|01|01|000042 | P60: 01 | Q60: 01 | R60: 03 | S60: 42 | T60: 42 | U60: 01|01|03|42|42 | V60: National | W60: Higher Education | X60: Administration | Y60: Ministry | Z60: Non-transfer item | AA60: Current | AB60: Current payments | AC60: Interest and rent on land | AD60: Rent on land | AE60: Rent on land | AF60: Learning and culture | AG60: Post-school education and training | AH60: NAT | AI60: 0 | AJ60: 0 | AK60: 0 | AL60: 0 | AM60: 0 | AN60: 0 | AO60: 0 | AP60: 0 | AQ60: 0 | AR60: 0 | AS60: 0 | CB60: =Dataset[[#This Row],[2027/28 From - Spending review Topic 1]]+Dataset[[#This Row],[2027/28 From - Spending review Topic 2]]+Dataset[[#This Row],[2027/28 From - Spending review Topic 3]]+Dataset[[#This Row],[2027/28 From - Spending review Topic 4]]+Dataset[[#This Row],[2027/28 From - Other reallocations]] -> 0 | CC60: =Dataset[[#This Row],[2028/29 From - Spending review Topic 1]]+Dataset[[#This Row],[2028/29 From - Spending review Topic 2]]+Dataset[[#This Row],[2028/29 From - Spending review Topic 3]]+Dataset[[#This Row],[2028/29 From - Spending review Topic 4]]+Dataset[[#This Row],[2028/29 From - Other reallocations]] -> 0 | CD60: =Dataset[[#This Row],[2029/30 From - Spending review Topic 1]]+Dataset[[#This Row],[2029/30 From - Spending review Topic 2]]+Dataset[[#This Row],[2029/30 From - Spending review Topic 3]]+Dataset[[#This Row],[2029/30 From - Spending review Topic 4]]+Dataset[[#This Row],[2029/30 From - Other reallocations]] -> 0 | CE60: =Dataset[[#This Row],[2027/28 To - Spending review Topic 1]]+Dataset[[#This Row],[2027/28 To - Spending review Topic 2]]+Dataset[[#This Row],[2027/28 To - Spending review Topic 3]]+Dataset[[#This Row],[2027/28 To - Spending review Topic 4]]+Dataset[[#This Row],[2027/28 To - Other reallocations]] -> 0 | CF60: =Dataset[[#This Row],[2028/29 To - Spending review Topic 1]]+Dataset[[#This Row],[2028/29 To - Spending review Topic 2]]+Dataset[[#This Row],[2028/29 To - Spending review Topic 3]]+Dataset[[#This Row],[2028/29 To - Spending review Topic 4]]+Dataset[[#This Row],[2028/29 To - Other reallocations]] -> 0 | CG60: =Dataset[[#This Row],[2029/30 To - Spending review Topic 1]]+Dataset[[#This Row],[2029/30 To - Spending review Topic 2]]+Dataset[[#This Row],[2029/30 To - Spending review Topic 3]]+Dataset[[#This Row],[2029/30 To - Spending review Topic 4]]+Dataset[[#This Row],[2029/30 To - Other reallocations]] -> 0 | CH60: =Dataset[[#This Row],[2027/28 Targeted savings]]+Dataset[[#This Row],[2027/28 From - Total]] -> 0 | CI60: =Dataset[[#This Row],[2028/29 Targeted savings]]+Dataset[[#This Row],[2028/29 From - Total]] -> 0 | CJ60: =Dataset[[#This Row],[2029/30 Targeted savings]]+Dataset[[#This Row],[2029/30 From - Total]] -> 0 | CK60: =Dataset[[#This Row],[2026/27 Targeted savings]] -> 0 | CL60: =SUM(Dataset[[#This Row],[2027/28 Targeted savings]],Dataset[[#This Row],[2027/28 From - Total]],Dataset[[#This Row],[2027/28 To - Total]]) -> 0 | CM60: =SUM(Dataset[[#This Row],[2028/29 Targeted savings]],Dataset[[#This Row],[2028/29 From - Total]],Dataset[[#This Row],[2028/29 To - Total]]) -> 0 | CN60: =SUM(Dataset[[#This Row],[2029/30 Targeted savings]],Dataset[[#This Row],[2029/30 From - Total]],Dataset[[#This Row],[2029/30 To - Total]]) -> 0 | CO60: =Dataset[[#This Row],[2026/27 Baseline]]+Dataset[[#This Row],[2026/27 Total change]] -> 0 | CP60: =Dataset[[#This Row],[2027/28 Baseline]]+Dataset[[#This Row],[2027/28 Total change]] -> 0 | CQ60: =Dataset[[#This Row],[2028/29 Baseline]]+Dataset[[#This Row],[2028/29 Total change]] -> 0 | CR60: =Dataset[[#This Row],[2029/30 Baseline]]+Dataset[[#This Row],[2029/30 Total change]] -> 0
A61: NAT|Employee social benefits | B61: 17|Social benefits | C61: 2027_28 | D61: MTEC2027 | E61: 17 | F61: 1 | G61: 1 | H61: 16256 | I61: 43 | J61: 17 | K61: 01 | L61: 01 | M61: 016256 | N61: 000043 | O61: 17|01|01|000043 | P61: 01 | Q61: 02 | R61: 10 | S61: 52 | T61: 56 | U61: 01|02|10|52|56 | V61: National | W61: Higher Education | X61: Administration | Y61: Ministry | Z61: Employee social benefits | AA61: Current | AB61: Transfers and subsidies | AC61: Households | AD61: Social benefits | AE61: Social benefits | AF61: Learning and culture | AG61: Post-school education and training | AH61: NAT | AI61: 0 | AJ61: 0 | AK61: 0 | AL61: 0 | AM61: 821 | AN61: 821 | AO61: 0 | AP61: 0 | AQ61: 0 | AR61: 0 | AS61: 0 | CB61: =Dataset[[#This Row],[2027/28 From - Spending review Topic 1]]+Dataset[[#This Row],[2027/28 From - Spending review Topic 2]]+Dataset[[#This Row],[2027/28 From - Spending review Topic 3]]+Dataset[[#This Row],[2027/28 From - Spending review Topic 4]]+Dataset[[#This Row],[2027/28 From - Other reallocations]] -> 0 | CC61: =Dataset[[#This Row],[2028/29 From - Spending review Topic 1]]+Dataset[[#This Row],[2028/29 From - Spending review Topic 2]]+Dataset[[#This Row],[2028/29 From - Spending review Topic 3]]+Dataset[[#This Row],[2028/29 From - Spending review Topic 4]]+Dataset[[#This Row],[2028/29 From - Other reallocations]] -> 0 | CD61: =Dataset[[#This Row],[2029/30 From - Spending review Topic 1]]+Dataset[[#This Row],[2029/30 From - Spending review Topic 2]]+Dataset[[#This Row],[2029/30 From - Spending review Topic 3]]+Dataset[[#This Row],[2029/30 From - Spending review Topic 4]]+Dataset[[#This Row],[2029/30 From - Other reallocations]] -> 0 | CE61: =Dataset[[#This Row],[2027/28 To - Spending review Topic 1]]+Dataset[[#This Row],[2027/28 To - Spending review Topic 2]]+Dataset[[#This Row],[2027/28 To - Spending review Topic 3]]+Dataset[[#This Row],[2027/28 To - Spending review Topic 4]]+Dataset[[#This Row],[2027/28 To - Other reallocations]] -> 0 | CF61: =Dataset[[#This Row],[2028/29 To - Spending review Topic 1]]+Dataset[[#This Row],[2028/29 To - Spending review Topic 2]]+Dataset[[#This Row],[2028/29 To - Spending review Topic 3]]+Dataset[[#This Row],[2028/29 To - Spending review Topic 4]]+Dataset[[#This Row],[2028/29 To - Other reallocations]] -> 0 | CG61: =Dataset[[#This Row],[2029/30 To - Spending review Topic 1]]+Dataset[[#This Row],[2029/30 To - Spending review Topic 2]]+Dataset[[#This Row],[2029/30 To - Spending review Topic 3]]+Dataset[[#This Row],[2029/30 To - Spending review Topic 4]]+Dataset[[#This Row],[2029/30 To - Other reallocations]] -> 0 | CH61: =Dataset[[#This Row],[2027/28 Targeted savings]]+Dataset[[#This Row],[2027/28 From - Total]] -> 0 | CI61: =Dataset[[#This Row],[2028/29 Targeted savings]]+Dataset[[#This Row],[2028/29 From - Total]] -> 0 | CJ61: =Dataset[[#This Row],[2029/30 Targeted savings]]+Dataset[[#This Row],[2029/30 From - Total]] -> 0 | CK61: =Dataset[[#This Row],[2026/27 Targeted savings]] -> 0 | CL61: =SUM(Dataset[[#This Row],[2027/28 Targeted savings]],Dataset[[#This Row],[2027/28 From - Total]],Dataset[[#This Row],[2027/28 To - Total]]) -> 0 | CM61: =SUM(Dataset[[#This Row],[2028/29 Targeted savings]],Dataset[[#This Row],[2028/29 From - Total]],Dataset[[#This Row],[2028/29 To - Total]]) -> 0 | CN61: =SUM(Dataset[[#This Row],[2029/30 Targeted savings]],Dataset[[#This Row],[2029/30 From - Total]],Dataset[[#This Row],[2029/30 To - Total]]) -> 0 | CO61: =Dataset[[#This Row],[2026/27 Baseline]]+Dataset[[#This Row],[2026/27 Total change]] -> 0 | CP61: =Dataset[[#This Row],[2027/28 Baseline]]+Dataset[[#This Row],[2027/28 Total change]] -> 0 | CQ61: =Dataset[[#This Row],[2028/29 Baseline]]+Dataset[[#This Row],[2028/29 Total change]] -> 0 | CR61: =Dataset[[#This Row],[2029/30 Baseline]]+Dataset[[#This Row],[2029/30 Total change]] -> 0
A62: NAT|Non-transfer item | B62: 17|Buildings | C62: 2027_28 | D62: MTEC2027 | E62: 17 | F62: 1 | G62: 1 | H62: 16257 | I62: 44 | J62: 17 | K62: 01 | L62: 01 | M62: 016257 | N62: 000044 | O62: 17|01|01|000044 | P62: 02 | Q62: 03 | R62: 11 | S62: 54 | T62: 58 | U62: 02|03|11|54|58 | V62: National | W62: Higher Education | X62: Administration | Y62: Ministry | Z62: Non-transfer item | AA62: Capital | AB62: Payments for capital assets | AC62: Buildings and other fixed structures | AD62: Buildings | AE62: Buildings | AF62: Learning and culture | AG62: Post-school education and training | AH62: NAT | AI62: 0 | AJ62: 0 | AK62: 0 | AL62: 0 | AM62: 0 | AN62: 0 | AO62: 0 | AP62: 0 | AQ62: 0 | AR62: 0 | AS62: 0 | CB62: =Dataset[[#This Row],[2027/28 From - Spending review Topic 1]]+Dataset[[#This Row],[2027/28 From - Spending review Topic 2]]+Dataset[[#This Row],[2027/28 From - Spending review Topic 3]]+Dataset[[#This Row],[2027/28 From - Spending review Topic 4]]+Dataset[[#This Row],[2027/28 From - Other reallocations]] -> 0 | CC62: =Dataset[[#This Row],[2028/29 From - Spending review Topic 1]]+Dataset[[#This Row],[2028/29 From - Spending review Topic 2]]+Dataset[[#This Row],[2028/29 From - Spending review Topic 3]]+Dataset[[#This Row],[2028/29 From - Spending review Topic 4]]+Dataset[[#This Row],[2028/29 From - Other reallocations]] -> 0 | CD62: =Dataset[[#This Row],[2029/30 From - Spending review Topic 1]]+Dataset[[#This Row],[2029/30 From - Spending review Topic 2]]+Dataset[[#This Row],[2029/30 From - Spending review Topic 3]]+Dataset[[#This Row],[2029/30 From - Spending review Topic 4]]+Dataset[[#This Row],[2029/30 From - Other reallocations]] -> 0 | CE62: =Dataset[[#This Row],[2027/28 To - Spending review Topic 1]]+Dataset[[#This Row],[2027/28 To - Spending review Topic 2]]+Dataset[[#This Row],[2027/28 To - Spending review Topic 3]]+Dataset[[#This Row],[2027/28 To - Spending review Topic 4]]+Dataset[[#This Row],[2027/28 To - Other reallocations]] -> 0 | CF62: =Dataset[[#This Row],[2028/29 To - Spending review Topic 1]]+Dataset[[#This Row],[2028/29 To - Spending review Topic 2]]+Dataset[[#This Row],[2028/29 To - Spending review Topic 3]]+Dataset[[#This Row],[2028/29 To - Spending review Topic 4]]+Dataset[[#This Row],[2028/29 To - Other reallocations]] -> 0 | CG62: =Dataset[[#This Row],[2029/30 To - Spending review Topic 1]]+Dataset[[#This Row],[2029/30 To - Spending review Topic 2]]+Dataset[[#This Row],[2029/30 To - Spending review Topic 3]]+Dataset[[#This Row],[2029/30 To - Spending review Topic 4]]+Dataset[[#This Row],[2029/30 To - Other reallocations]] -> 0 | CH62: =Dataset[[#This Row],[2027/28 Targeted savings]]+Dataset[[#This Row],[2027/28 From - Total]] -> 0 | CI62: =Dataset[[#This Row],[2028/29 Targeted savings]]+Dataset[[#This Row],[2028/29 From - Total]] -> 0 | CJ62: =Dataset[[#This Row],[2029/30 Targeted savings]]+Dataset[[#This Row],[2029/30 From - Total]] -> 0 | CK62: =Dataset[[#This Row],[2026/27 Targeted savings]] -> 0 | CL62: =SUM(Dataset[[#This Row],[2027/28 Targeted savings]],Dataset[[#This Row],[2027/28 From - Total]],Dataset[[#This Row],[2027/28 To - Total]]) -> 0 | CM62: =SUM(Dataset[[#This Row],[2028/29 Targeted savings]],Dataset[[#This Row],[2028/29 From - Total]],Dataset[[#This Row],[2028/29 To - Total]]) -> 0 | CN62: =SUM(Dataset[[#This Row],[2029/30 Targeted savings]],Dataset[[#This Row],[2029/30 From - Total]],Dataset[[#This Row],[2029/30 To - Total]]) -> 0 | CO62: =Dataset[[#This Row],[2026/27 Baseline]]+Dataset[[#This Row],[2026/27 Total change]] -> 0 | CP62: =Dataset[[#This Row],[2027/28 Baseline]]+Dataset[[#This Row],[2027/28 Total change]] -> 0 | CQ62: =Dataset[[#This Row],[2028/29 Baseline]]+Dataset[[#This Row],[2028/29 Total change]] -> 0 | CR62: =Dataset[[#This Row],[2029/30 Baseline]]+Dataset[[#This Row],[2029/30 Total change]] -> 0
A63: NAT|Non-transfer item | B63: 17|Other fixed structures | C63: 2027_28 | D63: MTEC2027 | E63: 17 | F63: 1 | G63: 1 | H63: 16258 | I63: 45 | J63: 17 | K63: 01 | L63: 01 | M63: 016258 | N63: 000045 | O63: 17|01|01|000045 | P63: 02 | Q63: 03 | R63: 11 | S63: 55 | T63: 59 | U63: 02|03|11|55|59 | V63: National | W63: Higher Education | X63: Administration | Y63: Ministry | Z63: Non-transfer item | AA63: Capital | AB63: Payments for capital assets | AC63: Buildings and other fixed structures | AD63: Other fixed structures | AE63: Other fixed structures | AF63: Learning and culture | AG63: Post-school education and training | AH63: NAT | AI63: 0 | AJ63: 0 | AK63: 0 | AL63: 0 | AM63: 0 | AN63: 0 | AO63: 0 | AP63: 0 | AQ63: 0 | AR63: 0 | AS63: 0 | CB63: =Dataset[[#This Row],[2027/28 From - Spending review Topic 1]]+Dataset[[#This Row],[2027/28 From - Spending review Topic 2]]+Dataset[[#This Row],[2027/28 From - Spending review Topic 3]]+Dataset[[#This Row],[2027/28 From - Spending review Topic 4]]+Dataset[[#This Row],[2027/28 From - Other reallocations]] -> 0 | CC63: =Dataset[[#This Row],[2028/29 From - Spending review Topic 1]]+Dataset[[#This Row],[2028/29 From - Spending review Topic 2]]+Dataset[[#This Row],[2028/29 From - Spending review Topic 3]]+Dataset[[#This Row],[2028/29 From - Spending review Topic 4]]+Dataset[[#This Row],[2028/29 From - Other reallocations]] -> 0 | CD63: =Dataset[[#This Row],[2029/30 From - Spending review Topic 1]]+Dataset[[#This Row],[2029/30 From - Spending review Topic 2]]+Dataset[[#This Row],[2029/30 From - Spending review Topic 3]]+Dataset[[#This Row],[2029/30 From - Spending review Topic 4]]+Dataset[[#This Row],[2029/30 From - Other reallocations]] -> 0 | CE63: =Dataset[[#This Row],[2027/28 To - Spending review Topic 1]]+Dataset[[#This Row],[2027/28 To - Spending review Topic 2]]+Dataset[[#This Row],[2027/28 To - Spending review Topic 3]]+Dataset[[#This Row],[2027/28 To - Spending review Topic 4]]+Dataset[[#This Row],[2027/28 To - Other reallocations]] -> 0 | CF63: =Dataset[[#This Row],[2028/29 To - Spending review Topic 1]]+Dataset[[#This Row],[2028/29 To - Spending review Topic 2]]+Dataset[[#This Row],[2028/29 To - Spending review Topic 3]]+Dataset[[#This Row],[2028/29 To - Spending review Topic 4]]+Dataset[[#This Row],[2028/29 To - Other reallocations]] -> 0 | CG63: =Dataset[[#This Row],[2029/30 To - Spending review Topic 1]]+Dataset[[#This Row],[2029/30 To - Spending review Topic 2]]+Dataset[[#This Row],[2029/30 To - Spending review Topic 3]]+Dataset[[#This Row],[2029/30 To - Spending review Topic 4]]+Dataset[[#This Row],[2029/30 To - Other reallocations]] -> 0 | CH63: =Dataset[[#This Row],[2027/28 Targeted savings]]+Dataset[[#This Row],[2027/28 From - Total]] -> 0 | CI63: =Dataset[[#This Row],[2028/29 Targeted savings]]+Dataset[[#This Row],[2028/29 From - Total]] -> 0 | CJ63: =Dataset[[#This Row],[2029/30 Targeted savings]]+Dataset[[#This Row],[2029/30 From - Total]] -> 0 | CK63: =Dataset[[#This Row],[2026/27 Targeted savings]] -> 0 | CL63: =SUM(Dataset[[#This Row],[2027/28 Targeted savings]],Dataset[[#This Row],[2027/28 From - Total]],Dataset[[#This Row],[2027/28 To - Total]]) -> 0 | CM63: =SUM(Dataset[[#This Row],[2028/29 Targeted savings]],Dataset[[#This Row],[2028/29 From - Total]],Dataset[[#This Row],[2028/29 To - Total]]) -> 0 | CN63: =SUM(Dataset[[#This Row],[2029/30 Targeted savings]],Dataset[[#This Row],[2029/30 From - Total]],Dataset[[#This Row],[2029/30 To - Total]]) -> 0 | CO63: =Dataset[[#This Row],[2026/27 Baseline]]+Dataset[[#This Row],[2026/27 Total change]] -> 0 | CP63: =Dataset[[#This Row],[2027/28 Baseline]]+Dataset[[#This Row],[2027/28 Total change]] -> 0 | CQ63: =Dataset[[#This Row],[2028/29 Baseline]]+Dataset[[#This Row],[2028/29 Total change]] -> 0 | CR63: =Dataset[[#This Row],[2029/30 Baseline]]+Dataset[[#This Row],[2029/30 Total change]] -> 0
A64: NAT|Non-transfer | B64: 17|Transport equipment | C64: 2027_28 | D64: MTEC2027 | E64: 17 | F64: 1 | G64: 1 | H64: 16259 | I64: 46 | J64: 17 | K64: 01 | L64: 01 | M64: 016259 | N64: 000046 | O64: 17|01|01|000046 | P64: 02 | Q64: 03 | R64: 12 | S64: 56 | T64: 60 | U64: 02|03|12|56|60 | V64: National | W64: Higher Education | X64: Administration | Y64: Ministry | Z64: Non-transfer | AA64: Capital | AB64: Payments for capital assets | AC64: Machinery and equipment | AD64: Transport equipment | AE64: Transport equipment | AF64: Learning and culture | AG64: Post-school education and training | AH64: NAT | AI64: 0 | AJ64: 0 | AK64: 0 | AL64: 7100 | AM64: 5600 | AN64: 5600 | AO64: 0 | AP64: 0 | AQ64: 0 | AR64: 0 | AS64: 0 | CB64: =Dataset[[#This Row],[2027/28 From - Spending review Topic 1]]+Dataset[[#This Row],[2027/28 From - Spending review Topic 2]]+Dataset[[#This Row],[2027/28 From - Spending review Topic 3]]+Dataset[[#This Row],[2027/28 From - Spending review Topic 4]]+Dataset[[#This Row],[2027/28 From - Other reallocations]] -> 0 | CC64: =Dataset[[#This Row],[2028/29 From - Spending review Topic 1]]+Dataset[[#This Row],[2028/29 From - Spending review Topic 2]]+Dataset[[#This Row],[2028/29 From - Spending review Topic 3]]+Dataset[[#This Row],[2028/29 From - Spending review Topic 4]]+Dataset[[#This Row],[2028/29 From - Other reallocations]] -> 0 | CD64: =Dataset[[#This Row],[2029/30 From - Spending review Topic 1]]+Dataset[[#This Row],[2029/30 From - Spending review Topic 2]]+Dataset[[#This Row],[2029/30 From - Spending review Topic 3]]+Dataset[[#This Row],[2029/30 From - Spending review Topic 4]]+Dataset[[#This Row],[2029/30 From - Other reallocations]] -> 0 | CE64: =Dataset[[#This Row],[2027/28 To - Spending review Topic 1]]+Dataset[[#This Row],[2027/28 To - Spending review Topic 2]]+Dataset[[#This Row],[2027/28 To - Spending review Topic 3]]+Dataset[[#This Row],[2027/28 To - Spending review Topic 4]]+Dataset[[#This Row],[2027/28 To - Other reallocations]] -> 0 | CF64: =Dataset[[#This Row],[2028/29 To - Spending review Topic 1]]+Dataset[[#This Row],[2028/29 To - Spending review Topic 2]]+Dataset[[#This Row],[2028/29 To - Spending review Topic 3]]+Dataset[[#This Row],[2028/29 To - Spending review Topic 4]]+Dataset[[#This Row],[2028/29 To - Other reallocations]] -> 0 | CG64: =Dataset[[#This Row],[2029/30 To - Spending review Topic 1]]+Dataset[[#This Row],[2029/30 To - Spending review Topic 2]]+Dataset[[#This Row],[2029/30 To - Spending review Topic 3]]+Dataset[[#This Row],[2029/30 To - Spending review Topic 4]]+Dataset[[#This Row],[2029/30 To - Other reallocations]] -> 0 | CH64: =Dataset[[#This Row],[2027/28 Targeted savings]]+Dataset[[#This Row],[2027/28 From - Total]] -> 0 | CI64: =Dataset[[#This Row],[2028/29 Targeted savings]]+Dataset[[#This Row],[2028/29 From - Total]] -> 0 | CJ64: =Dataset[[#This Row],[2029/30 Targeted savings]]+Dataset[[#This Row],[2029/30 From - Total]] -> 0 | CK64: =Dataset[[#This Row],[2026/27 Targeted savings]] -> 0 | CL64: =SUM(Dataset[[#This Row],[2027/28 Targeted savings]],Dataset[[#This Row],[2027/28 From - Total]],Dataset[[#This Row],[2027/28 To - Total]]) -> 0 | CM64: =SUM(Dataset[[#This Row],[2028/29 Targeted savings]],Dataset[[#This Row],[2028/29 From - Total]],Dataset[[#This Row],[2028/29 To - Total]]) -> 0 | CN64: =SUM(Dataset[[#This Row],[2029/30 Targeted savings]],Dataset[[#This Row],[2029/30 From - Total]],Dataset[[#This Row],[2029/30 To - Total]]) -> 0 | CO64: =Dataset[[#This Row],[2026/27 Baseline]]+Dataset[[#This Row],[2026/27 Total change]] -> 0 | CP64: =Dataset[[#This Row],[2027/28 Baseline]]+Dataset[[#This Row],[2027/28 Total change]] -> 0 | CQ64: =Dataset[[#This Row],[2028/29 Baseline]]+Dataset[[#This Row],[2028/29 Total change]] -> 0 | CR64: =Dataset[[#This Row],[2029/30 Baseline]]+Dataset[[#This Row],[2029/30 Total change]] -> 0
A65: NAT|Non-transfer | B65: 17|Other machinery and equipment | C65: 2027_28 | D65: MTEC2027 | E65: 17 | F65: 1 | G65: 1 | H65: 16260 | I65: 47 | J65: 17 | K65: 01 | L65: 01 | M65: 016260 | N65: 000047 | O65: 17|01|01|000047 | P65: 02 | Q65: 03 | R65: 12 | S65: 57 | T65: 61 | U65: 02|03|12|57|61 | V65: National | W65: Higher Education | X65: Administration | Y65: Ministry | Z65: Non-transfer | AA65: Capital | AB65: Payments for capital assets | AC65: Machinery and equipment | AD65: Other machinery and equipment | AE65: Other machinery and equipment | AF65: Learning and culture | AG65: Post-school education and training | AH65: NAT | AI65: 0 | AJ65: 0 | AK65: 0 | AL65: 820 | AM65: 1182 | AN65: 1182 | AO65: 1893 | AP65: 1147 | AQ65: 997 | AR65: 1032 | AS65: 1063 | CB65: =Dataset[[#This Row],[2027/28 From - Spending review Topic 1]]+Dataset[[#This Row],[2027/28 From - Spending review Topic 2]]+Dataset[[#This Row],[2027/28 From - Spending review Topic 3]]+Dataset[[#This Row],[2027/28 From - Spending review Topic 4]]+Dataset[[#This Row],[2027/28 From - Other reallocations]] -> 0 | CC65: =Dataset[[#This Row],[2028/29 From - Spending review Topic 1]]+Dataset[[#This Row],[2028/29 From - Spending review Topic 2]]+Dataset[[#This Row],[2028/29 From - Spending review Topic 3]]+Dataset[[#This Row],[2028/29 From - Spending review Topic 4]]+Dataset[[#This Row],[2028/29 From - Other reallocations]] -> 0 | CD65: =Dataset[[#This Row],[2029/30 From - Spending review Topic 1]]+Dataset[[#This Row],[2029/30 From - Spending review Topic 2]]+Dataset[[#This Row],[2029/30 From - Spending review Topic 3]]+Dataset[[#This Row],[2029/30 From - Spending review Topic 4]]+Dataset[[#This Row],[2029/30 From - Other reallocations]] -> 0 | CE65: =Dataset[[#This Row],[2027/28 To - Spending review Topic 1]]+Dataset[[#This Row],[2027/28 To - Spending review Topic 2]]+Dataset[[#This Row],[2027/28 To - Spending review Topic 3]]+Dataset[[#This Row],[2027/28 To - Spending review Topic 4]]+Dataset[[#This Row],[2027/28 To - Other reallocations]] -> 0 | CF65: =Dataset[[#This Row],[2028/29 To - Spending review Topic 1]]+Dataset[[#This Row],[2028/29 To - Spending review Topic 2]]+Dataset[[#This Row],[2028/29 To - Spending review Topic 3]]+Dataset[[#This Row],[2028/29 To - Spending review Topic 4]]+Dataset[[#This Row],[2028/29 To - Other reallocations]] -> 0 | CG65: =Dataset[[#This Row],[2029/30 To - Spending review Topic 1]]+Dataset[[#This Row],[2029/30 To - Spending review Topic 2]]+Dataset[[#This Row],[2029/30 To - Spending review Topic 3]]+Dataset[[#This Row],[2029/30 To - Spending review Topic 4]]+Dataset[[#This Row],[2029/30 To - Other reallocations]] -> 0 | CH65: =Dataset[[#This Row],[2027/28 Targeted savings]]+Dataset[[#This Row],[2027/28 From - Total]] -> 0 | CI65: =Dataset[[#This Row],[2028/29 Targeted savings]]+Dataset[[#This Row],[2028/29 From - Total]] -> 0 | CJ65: =Dataset[[#This Row],[2029/30 Targeted savings]]+Dataset[[#This Row],[2029/30 From - Total]] -> 0 | CK65: =Dataset[[#This Row],[2026/27 Targeted savings]] -> 0 | CL65: =SUM(Dataset[[#This Row],[2027/28 Targeted savings]],Dataset[[#This Row],[2027/28 From - Total]],Dataset[[#This Row],[2027/28 To - Total]]) -> 0 | CM65: =SUM(Dataset[[#This Row],[2028/29 Targeted savings]],Dataset[[#This Row],[2028/29 From - Total]],Dataset[[#This Row],[2028/29 To - Total]]) -> 0 | CN65: =SUM(Dataset[[#This Row],[2029/30 Targeted savings]],Dataset[[#This Row],[2029/30 From - Total]],Dataset[[#This Row],[2029/30 To - Total]]) -> 0 | CO65: =Dataset[[#This Row],[2026/27 Baseline]]+Dataset[[#This Row],[2026/27 Total change]] -> 1147 | CP65: =Dataset[[#This Row],[2027/28 Baseline]]+Dataset[[#This Row],[2027/28 Total change]] -> 997 | CQ65: =Dataset[[#This Row],[2028/29 Baseline]]+Dataset[[#This Row],[2028/29 Total change]] -> 1032 | CR65: =Dataset[[#This Row],[2029/30 Baseline]]+Dataset[[#This Row],[2029/30 Total change]] -> 1063
A66: NAT|Non-transfer item | B66: 17|Heritage assets | C66: 2027_28 | D66: MTEC2027 | E66: 17 | F66: 1 | G66: 1 | H66: 16261 | I66: 48 | J66: 17 | K66: 01 | L66: 01 | M66: 016261 | N66: 000048 | O66: 17|01|01|000048 | P66: 02 | Q66: 03 | R66: 13 | S66: 58 | T66: 62 | U66: 02|03|13|58|62 | V66: National | W66: Higher Education | X66: Administration | Y66: Ministry | Z66: Non-transfer item | AA66: Capital | AB66: Payments for capital assets | AC66: Heritage assets | AD66: Heritage assets | AE66: Heritage assets | AF66: Learning and culture | AG66: Post-school education and training | AH66: NAT | AI66: 0 | AJ66: 0 | AK66: 0 | AL66: 0 | AM66: 0 | AN66: 0 | AO66: 0 | AP66: 0 | AQ66: 0 | AR66: 0 | AS66: 0 | CB66: =Dataset[[#This Row],[2027/28 From - Spending review Topic 1]]+Dataset[[#This Row],[2027/28 From - Spending review Topic 2]]+Dataset[[#This Row],[2027/28 From - Spending review Topic 3]]+Dataset[[#This Row],[2027/28 From - Spending review Topic 4]]+Dataset[[#This Row],[2027/28 From - Other reallocations]] -> 0 | CC66: =Dataset[[#This Row],[2028/29 From - Spending review Topic 1]]+Dataset[[#This Row],[2028/29 From - Spending review Topic 2]]+Dataset[[#This Row],[2028/29 From - Spending review Topic 3]]+Dataset[[#This Row],[2028/29 From - Spending review Topic 4]]+Dataset[[#This Row],[2028/29 From - Other reallocations]] -> 0 | CD66: =Dataset[[#This Row],[2029/30 From - Spending review Topic 1]]+Dataset[[#This Row],[2029/30 From - Spending review Topic 2]]+Dataset[[#This Row],[2029/30 From - Spending review Topic 3]]+Dataset[[#This Row],[2029/30 From - Spending review Topic 4]]+Dataset[[#This Row],[2029/30 From - Other reallocations]] -> 0 | CE66: =Dataset[[#This Row],[2027/28 To - Spending review Topic 1]]+Dataset[[#This Row],[2027/28 To - Spending review Topic 2]]+Dataset[[#This Row],[2027/28 To - Spending review Topic 3]]+Dataset[[#This Row],[2027/28 To - Spending review Topic 4]]+Dataset[[#This Row],[2027/28 To - Other reallocations]] -> 0 | CF66: =Dataset[[#This Row],[2028/29 To - Spending review Topic 1]]+Dataset[[#This Row],[2028/29 To - Spending review Topic 2]]+Dataset[[#This Row],[2028/29 To - Spending review Topic 3]]+Dataset[[#This Row],[2028/29 To - Spending review Topic 4]]+Dataset[[#This Row],[2028/29 To - Other reallocations]] -> 0 | CG66: =Dataset[[#This Row],[2029/30 To - Spending review Topic 1]]+Dataset[[#This Row],[2029/30 To - Spending review Topic 2]]+Dataset[[#This Row],[2029/30 To - Spending review Topic 3]]+Dataset[[#This Row],[2029/30 To - Spending review Topic 4]]+Dataset[[#This Row],[2029/30 To - Other reallocations]] -> 0 | CH66: =Dataset[[#This Row],[2027/28 Targeted savings]]+Dataset[[#This Row],[2027/28 From - Total]] -> 0 | CI66: =Dataset[[#This Row],[2028/29 Targeted savings]]+Dataset[[#This Row],[2028/29 From - Total]] -> 0 | CJ66: =Dataset[[#This Row],[2029/30 Targeted savings]]+Dataset[[#This Row],[2029/30 From - Total]] -> 0 | CK66: =Dataset[[#This Row],[2026/27 Targeted savings]] -> 0 | CL66: =SUM(Dataset[[#This Row],[2027/28 Targeted savings]],Dataset[[#This Row],[2027/28 From - Total]],Dataset[[#This Row],[2027/28 To - Total]]) -> 0 | CM66: =SUM(Dataset[[#This Row],[2028/29 Targeted savings]],Dataset[[#This Row],[2028/29 From - Total]],Dataset[[#This Row],[2028/29 To - Total]]) -> 0 | CN66: =SUM(Dataset[[#This Row],[2029/30 Targeted savings]],Dataset[[#This Row],[2029/30 From - Total]],Dataset[[#This Row],[2029/30 To - Total]]) -> 0 | CO66: =Dataset[[#This Row],[2026/27 Baseline]]+Dataset[[#This Row],[2026/27 Total change]] -> 0 | CP66: =Dataset[[#This Row],[2027/28 Baseline]]+Dataset[[#This Row],[2027/28 Total change]] -> 0 | CQ66: =Dataset[[#This Row],[2028/29 Baseline]]+Dataset[[#This Row],[2028/29 Total change]] -> 0 | CR66: =Dataset[[#This Row],[2029/30 Baseline]]+Dataset[[#This Row],[2029/30 Total change]] -> 0
A67: NAT|Non-transfer item | B67: 17|Specialised military assets | C67: 2027_28 | D67: MTEC2027 | E67: 17 | F67: 1 | G67: 1 | H67: 16262 | I67: 49 | J67: 17 | K67: 01 | L67: 01 | M67: 016262 | N67: 000049 | O67: 17|01|01|000049 | P67: 02 | Q67: 03 | R67: 14 | S67: 59 | T67: 63 | U67: 02|03|14|59|63 | V67: National | W67: Higher Education | X67: Administration | Y67: Ministry | Z67: Non-transfer item | AA67: Capital | AB67: Payments for capital assets | AC67: Specialised military assets | AD67: Specialised military assets | AE67: Specialised military assets | AF67: Learning and culture | AG67: Post-school education and training | AH67: NAT | AI67: 0 | AJ67: 0 | AK67: 0 | AL67: 0 | AM67: 0 | AN67: 0 | AO67: 0 | AP67: 0 | AQ67: 0 | AR67: 0 | AS67: 0 | CB67: =Dataset[[#This Row],[2027/28 From - Spending review Topic 1]]+Dataset[[#This Row],[2027/28 From - Spending review Topic 2]]+Dataset[[#This Row],[2027/28 From - Spending review Topic 3]]+Dataset[[#This Row],[2027/28 From - Spending review Topic 4]]+Dataset[[#This Row],[2027/28 From - Other reallocations]] -> 0 | CC67: =Dataset[[#This Row],[2028/29 From - Spending review Topic 1]]+Dataset[[#This Row],[2028/29 From - Spending review Topic 2]]+Dataset[[#This Row],[2028/29 From - Spending review Topic 3]]+Dataset[[#This Row],[2028/29 From - Spending review Topic 4]]+Dataset[[#This Row],[2028/29 From - Other reallocations]] -> 0 | CD67: =Dataset[[#This Row],[2029/30 From - Spending review Topic 1]]+Dataset[[#This Row],[2029/30 From - Spending review Topic 2]]+Dataset[[#This Row],[2029/30 From - Spending review Topic 3]]+Dataset[[#This Row],[2029/30 From - Spending review Topic 4]]+Dataset[[#This Row],[2029/30 From - Other reallocations]] -> 0 | CE67: =Dataset[[#This Row],[2027/28 To - Spending review Topic 1]]+Dataset[[#This Row],[2027/28 To - Spending review Topic 2]]+Dataset[[#This Row],[2027/28 To - Spending review Topic 3]]+Dataset[[#This Row],[2027/28 To - Spending review Topic 4]]+Dataset[[#This Row],[2027/28 To - Other reallocations]] -> 0 | CF67: =Dataset[[#This Row],[2028/29 To - Spending review Topic 1]]+Dataset[[#This Row],[2028/29 To - Spending review Topic 2]]+Dataset[[#This Row],[2028/29 To - Spending review Topic 3]]+Dataset[[#This Row],[2028/29 To - Spending review Topic 4]]+Dataset[[#This Row],[2028/29 To - Other reallocations]] -> 0 | CG67: =Dataset[[#This Row],[2029/30 To - Spending review Topic 1]]+Dataset[[#This Row],[2029/30 To - Spending review Topic 2]]+Dataset[[#This Row],[2029/30 To - Spending review Topic 3]]+Dataset[[#This Row],[2029/30 To - Spending review Topic 4]]+Dataset[[#This Row],[2029/30 To - Other reallocations]] -> 0 | CH67: =Dataset[[#This Row],[2027/28 Targeted savings]]+Dataset[[#This Row],[2027/28 From - Total]] -> 0 | CI67: =Dataset[[#This Row],[2028/29 Targeted savings]]+Dataset[[#This Row],[2028/29 From - Total]] -> 0 | CJ67: =Dataset[[#This Row],[2029/30 Targeted savings]]+Dataset[[#This Row],[2029/30 From - Total]] -> 0 | CK67: =Dataset[[#This Row],[2026/27 Targeted savings]] -> 0 | CL67: =SUM(Dataset[[#This Row],[2027/28 Targeted savings]],Dataset[[#This Row],[2027/28 From - Total]],Dataset[[#This Row],[2027/28 To - Total]]) -> 0 | CM67: =SUM(Dataset[[#This Row],[2028/29 Targeted savings]],Dataset[[#This Row],[2028/29 From - Total]],Dataset[[#This Row],[2028/29 To - Total]]) -> 0 | CN67: =SUM(Dataset[[#This Row],[2029/30 Targeted savings]],Dataset[[#This Row],[2029/30 From - Total]],Dataset[[#This Row],[2029/30 To - Total]]) -> 0 | CO67: =Dataset[[#This Row],[2026/27 Baseline]]+Dataset[[#This Row],[2026/27 Total change]] -> 0 | CP67: =Dataset[[#This Row],[2027/28 Baseline]]+Dataset[[#This Row],[2027/28 Total change]] -> 0 | CQ67: =Dataset[[#This Row],[2028/29 Baseline]]+Dataset[[#This Row],[2028/29 Total change]] -> 0 | CR67: =Dataset[[#This Row],[2029/30 Baseline]]+Dataset[[#This Row],[2029/30 Total change]] -> 0
A68: NAT|Non-transfer item | B68: 17|Biological assets | C68: 2027_28 | D68: MTEC2027 | E68: 17 | F68: 1 | G68: 1 | H68: 16263 | I68: 50 | J68: 17 | K68: 01 | L68: 01 | M68: 016263 | N68: 000050 | O68: 17|01|01|000050 | P68: 02 | Q68: 03 | R68: 15 | S68: 60 | T68: 64 | U68: 02|03|15|60|64 | V68: National | W68: Higher Education | X68: Administration | Y68: Ministry | Z68: Non-transfer item | AA68: Capital | AB68: Payments for capital assets | AC68: Biological assets | AD68: Biological assets | AE68: Biological assets | AF68: Learning and culture | AG68: Post-school education and training | AH68: NAT | AI68: 0 | AJ68: 0 | AK68: 0 | AL68: 0 | AM68: 0 | AN68: 0 | AO68: 0 | AP68: 0 | AQ68: 0 | AR68: 0 | AS68: 0 | CB68: =Dataset[[#This Row],[2027/28 From - Spending review Topic 1]]+Dataset[[#This Row],[2027/28 From - Spending review Topic 2]]+Dataset[[#This Row],[2027/28 From - Spending review Topic 3]]+Dataset[[#This Row],[2027/28 From - Spending review Topic 4]]+Dataset[[#This Row],[2027/28 From - Other reallocations]] -> 0 | CC68: =Dataset[[#This Row],[2028/29 From - Spending review Topic 1]]+Dataset[[#This Row],[2028/29 From - Spending review Topic 2]]+Dataset[[#This Row],[2028/29 From - Spending review Topic 3]]+Dataset[[#This Row],[2028/29 From - Spending review Topic 4]]+Dataset[[#This Row],[2028/29 From - Other reallocations]] -> 0 | CD68: =Dataset[[#This Row],[2029/30 From - Spending review Topic 1]]+Dataset[[#This Row],[2029/30 From - Spending review Topic 2]]+Dataset[[#This Row],[2029/30 From - Spending review Topic 3]]+Dataset[[#This Row],[2029/30 From - Spending review Topic 4]]+Dataset[[#This Row],[2029/30 From - Other reallocations]] -> 0 | CE68: =Dataset[[#This Row],[2027/28 To - Spending review Topic 1]]+Dataset[[#This Row],[2027/28 To - Spending review Topic 2]]+Dataset[[#This Row],[2027/28 To - Spending review Topic 3]]+Dataset[[#This Row],[2027/28 To - Spending review Topic 4]]+Dataset[[#This Row],[2027/28 To - Other reallocations]] -> 0 | CF68: =Dataset[[#This Row],[2028/29 To - Spending review Topic 1]]+Dataset[[#This Row],[2028/29 To - Spending review Topic 2]]+Dataset[[#This Row],[2028/29 To - Spending review Topic 3]]+Dataset[[#This Row],[2028/29 To - Spending review Topic 4]]+Dataset[[#This Row],[2028/29 To - Other reallocations]] -> 0 | CG68: =Dataset[[#This Row],[2029/30 To - Spending review Topic 1]]+Dataset[[#This Row],[2029/30 To - Spending review Topic 2]]+Dataset[[#This Row],[2029/30 To - Spending review Topic 3]]+Dataset[[#This Row],[2029/30 To - Spending review Topic 4]]+Dataset[[#This Row],[2029/30 To - Other reallocations]] -> 0 | CH68: =Dataset[[#This Row],[2027/28 Targeted savings]]+Dataset[[#This Row],[2027/28 From - Total]] -> 0 | CI68: =Dataset[[#This Row],[2028/29 Targeted savings]]+Dataset[[#This Row],[2028/29 From - Total]] -> 0 | CJ68: =Dataset[[#This Row],[2029/30 Targeted savings]]+Dataset[[#This Row],[2029/30 From - Total]] -> 0 | CK68: =Dataset[[#This Row],[2026/27 Targeted savings]] -> 0 | CL68: =SUM(Dataset[[#This Row],[2027/28 Targeted savings]],Dataset[[#This Row],[2027/28 From - Total]],Dataset[[#This Row],[2027/28 To - Total]]) -> 0 | CM68: =SUM(Dataset[[#This Row],[2028/29 Targeted savings]],Dataset[[#This Row],[2028/29 From - Total]],Dataset[[#This Row],[2028/29 To - Total]]) -> 0 | CN68: =SUM(Dataset[[#This Row],[2029/30 Targeted savings]],Dataset[[#This Row],[2029/30 From - Total]],Dataset[[#This Row],[2029/30 To - Total]]) -> 0 | CO68: =Dataset[[#This Row],[2026/27 Baseline]]+Dataset[[#This Row],[2026/27 Total change]] -> 0 | CP68: =Dataset[[#This Row],[2027/28 Baseline]]+Dataset[[#This Row],[2027/28 Total change]] -> 0 | CQ68: =Dataset[[#This Row],[2028/29 Baseline]]+Dataset[[#This Row],[2028/29 Total change]] -> 0 | CR68: =Dataset[[#This Row],[2029/30 Baseline]]+Dataset[[#This Row],[2029/30 Total change]] -> 0
A69: NAT|Non-transfer item | B69: 17|Land and sub-soil assets | C69: 2027_28 | D69: MTEC2027 | E69: 17 | F69: 1 | G69: 1 | H69: 16264 | I69: 51 | J69: 17 | K69: 01 | L69: 01 | M69: 016264 | N69: 000051 | O69: 17|01|01|000051 | P69: 02 | Q69: 03 | R69: 16 | S69: 61 | T69: 65 | U69: 02|03|16|61|65 | V69: National | W69: Higher Education | X69: Administration | Y69: Ministry | Z69: Non-transfer item | AA69: Capital | AB69: Payments for capital assets | AC69: Land and sub-soil assets | AD69: Land and sub-soil assets | AE69: Land and sub-soil assets | AF69: Learning and culture | AG69: Post-school education and training | AH69: NAT | AI69: 0 | AJ69: 0 | AK69: 0 | AL69: 0 | AM69: 0 | AN69: 0 | AO69: 0 | AP69: 0 | AQ69: 0 | AR69: 0 | AS69: 0 | CB69: =Dataset[[#This Row],[2027/28 From - Spending review Topic 1]]+Dataset[[#This Row],[2027/28 From - Spending review Topic 2]]+Dataset[[#This Row],[2027/28 From - Spending review Topic 3]]+Dataset[[#This Row],[2027/28 From - Spending review Topic 4]]+Dataset[[#This Row],[2027/28 From - Other reallocations]] -> 0 | CC69: =Dataset[[#This Row],[2028/29 From - Spending review Topic 1]]+Dataset[[#This Row],[2028/29 From - Spending review Topic 2]]+Dataset[[#This Row],[2028/29 From - Spending review Topic 3]]+Dataset[[#This Row],[2028/29 From - Spending review Topic 4]]+Dataset[[#This Row],[2028/29 From - Other reallocations]] -> 0 | CD69: =Dataset[[#This Row],[2029/30 From - Spending review Topic 1]]+Dataset[[#This Row],[2029/30 From - Spending review Topic 2]]+Dataset[[#This Row],[2029/30 From - Spending review Topic 3]]+Dataset[[#This Row],[2029/30 From - Spending review Topic 4]]+Dataset[[#This Row],[2029/30 From - Other reallocations]] -> 0 | CE69: =Dataset[[#This Row],[2027/28 To - Spending review Topic 1]]+Dataset[[#This Row],[2027/28 To - Spending review Topic 2]]+Dataset[[#This Row],[2027/28 To - Spending review Topic 3]]+Dataset[[#This Row],[2027/28 To - Spending review Topic 4]]+Dataset[[#This Row],[2027/28 To - Other reallocations]] -> 0 | CF69: =Dataset[[#This Row],[2028/29 To - Spending review Topic 1]]+Dataset[[#This Row],[2028/29 To - Spending review Topic 2]]+Dataset[[#This Row],[2028/29 To - Spending review Topic 3]]+Dataset[[#This Row],[2028/29 To - Spending review Topic 4]]+Dataset[[#This Row],[2028/29 To - Other reallocations]] -> 0 | CG69: =Dataset[[#This Row],[2029/30 To - Spending review Topic 1]]+Dataset[[#This Row],[2029/30 To - Spending review Topic 2]]+Dataset[[#This Row],[2029/30 To - Spending review Topic 3]]+Dataset[[#This Row],[2029/30 To - Spending review Topic 4]]+Dataset[[#This Row],[2029/30 To - Other reallocations]] -> 0 | CH69: =Dataset[[#This Row],[2027/28 Targeted savings]]+Dataset[[#This Row],[2027/28 From - Total]] -> 0 | CI69: =Dataset[[#This Row],[2028/29 Targeted savings]]+Dataset[[#This Row],[2028/29 From - Total]] -> 0 | CJ69: =Dataset[[#This Row],[2029/30 Targeted savings]]+Dataset[[#This Row],[2029/30 From - Total]] -> 0 | CK69: =Dataset[[#This Row],[2026/27 Targeted savings]] -> 0 | CL69: =SUM(Dataset[[#This Row],[2027/28 Targeted savings]],Dataset[[#This Row],[2027/28 From - Total]],Dataset[[#This Row],[2027/28 To - Total]]) -> 0 | CM69: =SUM(Dataset[[#This Row],[2028/29 Targeted savings]],Dataset[[#This Row],[2028/29 From - Total]],Dataset[[#This Row],[2028/29 To - Total]]) -> 0 | CN69: =SUM(Dataset[[#This Row],[2029/30 Targeted savings]],Dataset[[#This Row],[2029/30 From - Total]],Dataset[[#This Row],[2029/30 To - Total]]) -> 0 | CO69: =Dataset[[#This Row],[2026/27 Baseline]]+Dataset[[#This Row],[2026/27 Total change]] -> 0 | CP69: =Dataset[[#This Row],[2027/28 Baseline]]+Dataset[[#This Row],[2027/28 Total change]] -> 0 | CQ69: =Dataset[[#This Row],[2028/29 Baseline]]+Dataset[[#This Row],[2028/29 Total change]] -> 0 | CR69: =Dataset[[#This Row],[2029/30 Baseline]]+Dataset[[#This Row],[2029/30 Total change]] -> 0
A70: NAT|Non-transfer item | B70: 17|Software and other intangible assets | C70: 2027_28 | D70: MTEC2027 | E70: 17 | F70: 1 | G70: 1 | H70: 16265 | I70: 52 | J70: 17 | K70: 01 | L70: 01 | M70: 016265 | N70: 000052 | O70: 17|01|01|000052 | P70: 02 | Q70: 03 | R70: 17 | S70: 62 | T70: 66 | U70: 02|03|17|62|66 | V70: National | W70: Higher Education | X70: Administration | Y70: Ministry | Z70: Non-transfer item | AA70: Capital | AB70: Payments for capital assets | AC70: Software and other intangible assets | AD70: Software and other intangible assets | AE70: Software and other intangible assets | AF70: Learning and culture | AG70: Post-school education and training | AH70: NAT | AI70: 0 | AJ70: 0 | AK70: 0 | AL70: 0 | AM70: 0 | AN70: 0 | AO70: 0 | AP70: 0 | AQ70: 0 | AR70: 0 | AS70: 0 | CB70: =Dataset[[#This Row],[2027/28 From - Spending review Topic 1]]+Dataset[[#This Row],[2027/28 From - Spending review Topic 2]]+Dataset[[#This Row],[2027/28 From - Spending review Topic 3]]+Dataset[[#This Row],[2027/28 From - Spending review Topic 4]]+Dataset[[#This Row],[2027/28 From - Other reallocations]] -> 0 | CC70: =Dataset[[#This Row],[2028/29 From - Spending review Topic 1]]+Dataset[[#This Row],[2028/29 From - Spending review Topic 2]]+Dataset[[#This Row],[2028/29 From - Spending review Topic 3]]+Dataset[[#This Row],[2028/29 From - Spending review Topic 4]]+Dataset[[#This Row],[2028/29 From - Other reallocations]] -> 0 | CD70: =Dataset[[#This Row],[2029/30 From - Spending review Topic 1]]+Dataset[[#This Row],[2029/30 From - Spending review Topic 2]]+Dataset[[#This Row],[2029/30 From - Spending review Topic 3]]+Dataset[[#This Row],[2029/30 From - Spending review Topic 4]]+Dataset[[#This Row],[2029/30 From - Other reallocations]] -> 0 | CE70: =Dataset[[#This Row],[2027/28 To - Spending review Topic 1]]+Dataset[[#This Row],[2027/28 To - Spending review Topic 2]]+Dataset[[#This Row],[2027/28 To - Spending review Topic 3]]+Dataset[[#This Row],[2027/28 To - Spending review Topic 4]]+Dataset[[#This Row],[2027/28 To - Other reallocations]] -> 0 | CF70: =Dataset[[#This Row],[2028/29 To - Spending review Topic 1]]+Dataset[[#This Row],[2028/29 To - Spending review Topic 2]]+Dataset[[#This Row],[2028/29 To - Spending review Topic 3]]+Dataset[[#This Row],[2028/29 To - Spending review Topic 4]]+Dataset[[#This Row],[2028/29 To - Other reallocations]] -> 0 | CG70: =Dataset[[#This Row],[2029/30 To - Spending review Topic 1]]+Dataset[[#This Row],[2029/30 To - Spending review Topic 2]]+Dataset[[#This Row],[2029/30 To - Spending review Topic 3]]+Dataset[[#This Row],[2029/30 To - Spending review Topic 4]]+Dataset[[#This Row],[2029/30 To - Other reallocations]] -> 0 | CH70: =Dataset[[#This Row],[2027/28 Targeted savings]]+Dataset[[#This Row],[2027/28 From - Total]] -> 0 | CI70: =Dataset[[#This Row],[2028/29 Targeted savings]]+Dataset[[#This Row],[2028/29 From - Total]] -> 0 | CJ70: =Dataset[[#This Row],[2029/30 Targeted savings]]+Dataset[[#This Row],[2029/30 From - Total]] -> 0 | CK70: =Dataset[[#This Row],[2026/27 Targeted savings]] -> 0 | CL70: =SUM(Dataset[[#This Row],[2027/28 Targeted savings]],Dataset[[#This Row],[2027/28 From - Total]],Dataset[[#This Row],[2027/28 To - Total]]) -> 0 | CM70: =SUM(Dataset[[#This Row],[2028/29 Targeted savings]],Dataset[[#This Row],[2028/29 From - Total]],Dataset[[#This Row],[2028/29 To - Total]]) -> 0 | CN70: =SUM(Dataset[[#This Row],[2029/30 Targeted savings]],Dataset[[#This Row],[2029/30 From - Total]],Dataset[[#This Row],[2029/30 To - Total]]) -> 0 | CO70: =Dataset[[#This Row],[2026/27 Baseline]]+Dataset[[#This Row],[2026/27 Total change]] -> 0 | CP70: =Dataset[[#This Row],[2027/28 Baseline]]+Dataset[[#This Row],[2027/28 Total change]] -> 0 | CQ70: =Dataset[[#This Row],[2028/29 Baseline]]+Dataset[[#This Row],[2028/29 Total change]] -> 0 | CR70: =Dataset[[#This Row],[2029/30 Baseline]]+Dataset[[#This Row],[2029/30 Total change]] -> 0
A71: NAT|Non-transfer | B71: 17|Salaries and wages | C71: 2027_28 | D71: MTEC2027 | E71: 17 | F71: 1 | G71: 2 | H71: 16266 | I71: 53 | J71: 17 | K71: 01 | L71: 02 | M71: 016266 | N71: 000053 | O71: 17|01|02|000053 | P71: 01 | Q71: 01 | R71: 01 | S71: 01 | T71: 01 | U71: 01|01|01|01|01 | V71: National | W71: Higher Education | X71: Administration | Y71: Department Management | Z71: Non-transfer | AA71: Current | AB71: Current payments | AC71: Compensation of employees | AD71: Salaries and wages | AE71: Salaries and wages | AF71: Learning and culture | AG71: Post-school education and training | AH71: NAT | AI71: 19077 | AJ71: 19607 | AK71: 39777 | AL71: 26805 | AM71: 28405 | AN71: 23405 | AO71: 22223 | AP71: 32469 | AQ71: 34207 | AR71: 35441 | AS71: 36508 | CB71: =Dataset[[#This Row],[2027/28 From - Spending review Topic 1]]+Dataset[[#This Row],[2027/28 From - Spending review Topic 2]]+Dataset[[#This Row],[2027/28 From - Spending review Topic 3]]+Dataset[[#This Row],[2027/28 From - Spending review Topic 4]]+Dataset[[#This Row],[2027/28 From - Other reallocations]] -> 0 | CC71: =Dataset[[#This Row],[2028/29 From - Spending review Topic 1]]+Dataset[[#This Row],[2028/29 From - Spending review Topic 2]]+Dataset[[#This Row],[2028/29 From - Spending review Topic 3]]+Dataset[[#This Row],[2028/29 From - Spending review Topic 4]]+Dataset[[#This Row],[2028/29 From - Other reallocations]] -> 0 | CD71: =Dataset[[#This Row],[2029/30 From - Spending review Topic 1]]+Dataset[[#This Row],[2029/30 From - Spending review Topic 2]]+Dataset[[#This Row],[2029/30 From - Spending review Topic 3]]+Dataset[[#This Row],[2029/30 From - Spending review Topic 4]]+Dataset[[#This Row],[2029/30 From - Other reallocations]] -> 0 | CE71: =Dataset[[#This Row],[2027/28 To - Spending review Topic 1]]+Dataset[[#This Row],[2027/28 To - Spending review Topic 2]]+Dataset[[#This Row],[2027/28 To - Spending review Topic 3]]+Dataset[[#This Row],[2027/28 To - Spending review Topic 4]]+Dataset[[#This Row],[2027/28 To - Other reallocations]] -> 0 | CF71: =Dataset[[#This Row],[2028/29 To - Spending review Topic 1]]+Dataset[[#This Row],[2028/29 To - Spending review Topic 2]]+Dataset[[#This Row],[2028/29 To - Spending review Topic 3]]+Dataset[[#This Row],[2028/29 To - Spending review Topic 4]]+Dataset[[#This Row],[2028/29 To - Other reallocations]] -> 0 | CG71: =Dataset[[#This Row],[2029/30 To - Spending review Topic 1]]+Dataset[[#This Row],[2029/30 To - Spending review Topic 2]]+Dataset[[#This Row],[2029/30 To - Spending review Topic 3]]+Dataset[[#This Row],[2029/30 To - Spending review Topic 4]]+Dataset[[#This Row],[2029/30 To - Other reallocations]] -> 0 | CH71: =Dataset[[#This Row],[2027/28 Targeted savings]]+Dataset[[#This Row],[2027/28 From - Total]] -> 0 | CI71: =Dataset[[#This Row],[2028/29 Targeted savings]]+Dataset[[#This Row],[2028/29 From - Total]] -> 0 | CJ71: =Dataset[[#This Row],[2029/30 Targeted savings]]+Dataset[[#This Row],[2029/30 From - Total]] -> 0 | CK71: =Dataset[[#This Row],[2026/27 Targeted savings]] -> 0 | CL71: =SUM(Dataset[[#This Row],[2027/28 Targeted savings]],Dataset[[#This Row],[2027/28 From - Total]],Dataset[[#This Row],[2027/28 To - Total]]) -> 0 | CM71: =SUM(Dataset[[#This Row],[2028/29 Targeted savings]],Dataset[[#This Row],[2028/29 From - Total]],Dataset[[#This Row],[2028/29 To - Total]]) -> 0 | CN71: =SUM(Dataset[[#This Row],[2029/30 Targeted savings]],Dataset[[#This Row],[2029/30 From - Total]],Dataset[[#This Row],[2029/30 To - Total]]) -> 0 | CO71: =Dataset[[#This Row],[2026/27 Baseline]]+Dataset[[#This Row],[2026/27 Total change]] -> 32469 | CP71: =Dataset[[#This Row],[2027/28 Baseline]]+Dataset[[#This Row],[2027/28 Total change]] -> 34207 | CQ71: =Dataset[[#This Row],[2028/29 Baseline]]+Dataset[[#This Row],[2028/29 Total change]] -> 35441 | CR71: =Dataset[[#This Row],[2029/30 Baseline]]+Dataset[[#This Row],[2029/30 Total change]] -> 36508
A72: NAT|Non-transfer | B72: 17|Social contributions | C72: 2027_28 | D72: MTEC2027 | E72: 17 | F72: 1 | G72: 2 | H72: 16267 | I72: 54 | J72: 17 | K72: 01 | L72: 02 | M72: 016267 | N72: 000054 | O72: 17|01|02|000054 | P72: 01 | Q72: 01 | R72: 01 | S72: 02 | T72: 02 | U72: 01|01|01|02|02 | V72: National | W72: Higher Education | X72: Administration | Y72: Department Management | Z72: Non-transfer | AA72: Current | AB72: Current payments | AC72: Compensation of employees | AD72: Social contributions | AE72: Social contributions | AF72: Learning and culture | AG72: Post-school education and training | AH72: NAT | AI72: 1836 | AJ72: 1879 | AK72: 3110 | AL72: 3656 | AM72: 3806 | AN72: 2806 | AO72: 2373 | AP72: 3651 | AQ72: 3861 | AR72: 4067 | AS72: 4189 | CB72: =Dataset[[#This Row],[2027/28 From - Spending review Topic 1]]+Dataset[[#This Row],[2027/28 From - Spending review Topic 2]]+Dataset[[#This Row],[2027/28 From - Spending review Topic 3]]+Dataset[[#This Row],[2027/28 From - Spending review Topic 4]]+Dataset[[#This Row],[2027/28 From - Other reallocations]] -> 0 | CC72: =Dataset[[#This Row],[2028/29 From - Spending review Topic 1]]+Dataset[[#This Row],[2028/29 From - Spending review Topic 2]]+Dataset[[#This Row],[2028/29 From - Spending review Topic 3]]+Dataset[[#This Row],[2028/29 From - Spending review Topic 4]]+Dataset[[#This Row],[2028/29 From - Other reallocations]] -> 0 | CD72: =Dataset[[#This Row],[2029/30 From - Spending review Topic 1]]+Dataset[[#This Row],[2029/30 From - Spending review Topic 2]]+Dataset[[#This Row],[2029/30 From - Spending review Topic 3]]+Dataset[[#This Row],[2029/30 From - Spending review Topic 4]]+Dataset[[#This Row],[2029/30 From - Other reallocations]] -> 0 | CE72: =Dataset[[#This Row],[2027/28 To - Spending review Topic 1]]+Dataset[[#This Row],[2027/28 To - Spending review Topic 2]]+Dataset[[#This Row],[2027/28 To - Spending review Topic 3]]+Dataset[[#This Row],[2027/28 To - Spending review Topic 4]]+Dataset[[#This Row],[2027/28 To - Other reallocations]] -> 0 | CF72: =Dataset[[#This Row],[2028/29 To - Spending review Topic 1]]+Dataset[[#This Row],[2028/29 To - Spending review Topic 2]]+Dataset[[#This Row],[2028/29 To - Spending review Topic 3]]+Dataset[[#This Row],[2028/29 To - Spending review Topic 4]]+Dataset[[#This Row],[2028/29 To - Other reallocations]] -> 0 | CG72: =Dataset[[#This Row],[2029/30 To - Spending review Topic 1]]+Dataset[[#This Row],[2029/30 To - Spending review Topic 2]]+Dataset[[#This Row],[2029/30 To - Spending review Topic 3]]+Dataset[[#This Row],[2029/30 To - Spending review Topic 4]]+Dataset[[#This Row],[2029/30 To - Other reallocations]] -> 0 | CH72: =Dataset[[#This Row],[2027/28 Targeted savings]]+Dataset[[#This Row],[2027/28 From - Total]] -> 0 | CI72: =Dataset[[#This Row],[2028/29 Targeted savings]]+Dataset[[#This Row],[2028/29 From - Total]] -> 0 | CJ72: =Dataset[[#This Row],[2029/30 Targeted savings]]+Dataset[[#This Row],[2029/30 From - Total]] -> 0 | CK72: =Dataset[[#This Row],[2026/27 Targeted savings]] -> 0 | CL72: =SUM(Dataset[[#This Row],[2027/28 Targeted savings]],Dataset[[#This Row],[2027/28 From - Total]],Dataset[[#This Row],[2027/28 To - Total]]) -> 0 | CM72: =SUM(Dataset[[#This Row],[2028/29 Targeted savings]],Dataset[[#This Row],[2028/29 From - Total]],Dataset[[#This Row],[2028/29 To - Total]]) -> 0 | CN72: =SUM(Dataset[[#This Row],[2029/30 Targeted savings]],Dataset[[#This Row],[2029/30 From - Total]],Dataset[[#This Row],[2029/30 To - Total]]) -> 0 | CO72: =Dataset[[#This Row],[2026/27 Baseline]]+Dataset[[#This Row],[2026/27 Total change]] -> 3651 | CP72: =Dataset[[#This Row],[2027/28 Baseline]]+Dataset[[#This Row],[2027/28 Total change]] -> 3861 | CQ72: =Dataset[[#This Row],[2028/29 Baseline]]+Dataset[[#This Row],[2028/29 Total change]] -> 4067 | CR72: =Dataset[[#This Row],[2029/30 Baseline]]+Dataset[[#This Row],[2029/30 Total change]] -> 4189
A73: NAT|Non-transfer | B73: 17|Administrative fees | C73: 2027_28 | D73: MTEC2027 | E73: 17 | F73: 1 | G73: 2 | H73: 16268 | I73: 55 | J73: 17 | K73: 01 | L73: 02 | M73: 016268 | N73: 000055 | O73: 17|01|02|000055 | P73: 01 | Q73: 01 | R73: 02 | S73: 03 | T73: 03 | U73: 01|01|02|03|03 | V73: National | W73: Higher Education | X73: Administration | Y73: Department Management | Z73: Non-transfer | AA73: Current | AB73: Current payments | AC73: Goods and services | AD73: Administrative fees | AE73: Administrative fees | AF73: Learning and culture | AG73: Post-school education and training | AH73: NAT | AI73: 0 | AJ73: 0 | AK73: 11 | AL73: 1 | AM73: 3 | AN73: 3 | AO73: 1 | AP73: 11 | AQ73: 13 | AR73: 14 | AS73: 14 | CB73: =Dataset[[#This Row],[2027/28 From - Spending review Topic 1]]+Dataset[[#This Row],[2027/28 From - Spending review Topic 2]]+Dataset[[#This Row],[2027/28 From - Spending review Topic 3]]+Dataset[[#This Row],[2027/28 From - Spending review Topic 4]]+Dataset[[#This Row],[2027/28 From - Other reallocations]] -> 0 | CC73: =Dataset[[#This Row],[2028/29 From - Spending review Topic 1]]+Dataset[[#This Row],[2028/29 From - Spending review Topic 2]]+Dataset[[#This Row],[2028/29 From - Spending review Topic 3]]+Dataset[[#This Row],[2028/29 From - Spending review Topic 4]]+Dataset[[#This Row],[2028/29 From - Other reallocations]] -> 0 | CD73: =Dataset[[#This Row],[2029/30 From - Spending review Topic 1]]+Dataset[[#This Row],[2029/30 From - Spending review Topic 2]]+Dataset[[#This Row],[2029/30 From - Spending review Topic 3]]+Dataset[[#This Row],[2029/30 From - Spending review Topic 4]]+Dataset[[#This Row],[2029/30 From - Other reallocations]] -> 0 | CE73: =Dataset[[#This Row],[2027/28 To - Spending review Topic 1]]+Dataset[[#This Row],[2027/28 To - Spending review Topic 2]]+Dataset[[#This Row],[2027/28 To - Spending review Topic 3]]+Dataset[[#This Row],[2027/28 To - Spending review Topic 4]]+Dataset[[#This Row],[2027/28 To - Other reallocations]] -> 0 | CF73: =Dataset[[#This Row],[2028/29 To - Spending review Topic 1]]+Dataset[[#This Row],[2028/29 To - Spending review Topic 2]]+Dataset[[#This Row],[2028/29 To - Spending review Topic 3]]+Dataset[[#This Row],[2028/29 To - Spending review Topic 4]]+Dataset[[#This Row],[2028/29 To - Other reallocations]] -> 0 | CG73: =Dataset[[#This Row],[2029/30 To - Spending review Topic 1]]+Dataset[[#This Row],[2029/30 To - Spending review Topic 2]]+Dataset[[#This Row],[2029/30 To - Spending review Topic 3]]+Dataset[[#This Row],[2029/30 To - Spending review Topic 4]]+Dataset[[#This Row],[2029/30 To - Other reallocations]] -> 0 | CH73: =Dataset[[#This Row],[2027/28 Targeted savings]]+Dataset[[#This Row],[2027/28 From - Total]] -> 0 | CI73: =Dataset[[#This Row],[2028/29 Targeted savings]]+Dataset[[#This Row],[2028/29 From - Total]] -> 0 | CJ73: =Dataset[[#This Row],[2029/30 Targeted savings]]+Dataset[[#This Row],[2029/30 From - Total]] -> 0 | CK73: =Dataset[[#This Row],[2026/27 Targeted savings]] -> 0 | CL73: =SUM(Dataset[[#This Row],[2027/28 Targeted savings]],Dataset[[#This Row],[2027/28 From - Total]],Dataset[[#This Row],[2027/28 To - Total]]) -> 0 | CM73: =SUM(Dataset[[#This Row],[2028/29 Targeted savings]],Dataset[[#This Row],[2028/29 From - Total]],Dataset[[#This Row],[2028/29 To - Total]]) -> 0 | CN73: =SUM(Dataset[[#This Row],[2029/30 Targeted savings]],Dataset[[#This Row],[2029/30 From - Total]],Dataset[[#This Row],[2029/30 To - Total]]) -> 0 | CO73: =Dataset[[#This Row],[2026/27 Baseline]]+Dataset[[#This Row],[2026/27 Total change]] -> 11 | CP73: =Dataset[[#This Row],[2027/28 Baseline]]+Dataset[[#This Row],[2027/28 Total change]] -> 13 | CQ73: =Dataset[[#This Row],[2028/29 Baseline]]+Dataset[[#This Row],[2028/29 Total change]] -> 14 | CR73: =Dataset[[#This Row],[2029/30 Baseline]]+Dataset[[#This Row],[2029/30 Total change]] -> 14
A74: NAT|Non-transfer item | B74: 17|Advertising | C74: 2027_28 | D74: MTEC2027 | E74: 17 | F74: 1 | G74: 2 | H74: 16269 | I74: 56 | J74: 17 | K74: 01 | L74: 02 | M74: 016269 | N74: 000056 | O74: 17|01|02|000056 | P74: 01 | Q74: 01 | R74: 02 | S74: 04 | T74: 04 | U74: 01|01|02|04|04 | V74: National | W74: Higher Education | X74: Administration | Y74: Department Management | Z74: Non-transfer item | AA74: Current | AB74: Current payments | AC74: Goods and services | AD74: Advertising | AE74: Advertising | AF74: Learning and culture | AG74: Post-school education and training | AH74: NAT | AI74: 0 | AJ74: 0 | AK74: 0 | AL74: 0 | AM74: 0 | AN74: 0 | AO74: 0 | AP74: 0 | AQ74: 0 | AR74: 0 | AS74: 0 | CB74: =Dataset[[#This Row],[2027/28 From - Spending review Topic 1]]+Dataset[[#This Row],[2027/28 From - Spending review Topic 2]]+Dataset[[#This Row],[2027/28 From - Spending review Topic 3]]+Dataset[[#This Row],[2027/28 From - Spending review Topic 4]]+Dataset[[#This Row],[2027/28 From - Other reallocations]] -> 0 | CC74: =Dataset[[#This Row],[2028/29 From - Spending review Topic 1]]+Dataset[[#This Row],[2028/29 From - Spending review Topic 2]]+Dataset[[#This Row],[2028/29 From - Spending review Topic 3]]+Dataset[[#This Row],[2028/29 From - Spending review Topic 4]]+Dataset[[#This Row],[2028/29 From - Other reallocations]] -> 0 | CD74: =Dataset[[#This Row],[2029/30 From - Spending review Topic 1]]+Dataset[[#This Row],[2029/30 From - Spending review Topic 2]]+Dataset[[#This Row],[2029/30 From - Spending review Topic 3]]+Dataset[[#This Row],[2029/30 From - Spending review Topic 4]]+Dataset[[#This Row],[2029/30 From - Other reallocations]] -> 0 | CE74: =Dataset[[#This Row],[2027/28 To - Spending review Topic 1]]+Dataset[[#This Row],[2027/28 To - Spending review Topic 2]]+Dataset[[#This Row],[2027/28 To - Spending review Topic 3]]+Dataset[[#This Row],[2027/28 To - Spending review Topic 4]]+Dataset[[#This Row],[2027/28 To - Other reallocations]] -> 0 | CF74: =Dataset[[#This Row],[2028/29 To - Spending review Topic 1]]+Dataset[[#This Row],[2028/29 To - Spending review Topic 2]]+Dataset[[#This Row],[2028/29 To - Spending review Topic 3]]+Dataset[[#This Row],[2028/29 To - Spending review Topic 4]]+Dataset[[#This Row],[2028/29 To - Other reallocations]] -> 0 | CG74: =Dataset[[#This Row],[2029/30 To - Spending review Topic 1]]+Dataset[[#This Row],[2029/30 To - Spending review Topic 2]]+Dataset[[#This Row],[2029/30 To - Spending review Topic 3]]+Dataset[[#This Row],[2029/30 To - Spending review Topic 4]]+Dataset[[#This Row],[2029/30 To - Other reallocations]] -> 0 | CH74: =Dataset[[#This Row],[2027/28 Targeted savings]]+Dataset[[#This Row],[2027/28 From - Total]] -> 0 | CI74: =Dataset[[#This Row],[2028/29 Targeted savings]]+Dataset[[#This Row],[2028/29 From - Total]] -> 0 | CJ74: =Dataset[[#This Row],[2029/30 Targeted savings]]+Dataset[[#This Row],[2029/30 From - Total]] -> 0 | CK74: =Dataset[[#This Row],[2026/27 Targeted savings]] -> 0 | CL74: =SUM(Dataset[[#This Row],[2027/28 Targeted savings]],Dataset[[#This Row],[2027/28 From - Total]],Dataset[[#This Row],[2027/28 To - Total]]) -> 0 | CM74: =SUM(Dataset[[#This Row],[2028/29 Targeted savings]],Dataset[[#This Row],[2028/29 From - Total]],Dataset[[#This Row],[2028/29 To - Total]]) -> 0 | CN74: =SUM(Dataset[[#This Row],[2029/30 Targeted savings]],Dataset[[#This Row],[2029/30 From - Total]],Dataset[[#This Row],[2029/30 To - Total]]) -> 0 | CO74: =Dataset[[#This Row],[2026/27 Baseline]]+Dataset[[#This Row],[2026/27 Total change]] -> 0 | CP74: =Dataset[[#This Row],[2027/28 Baseline]]+Dataset[[#This Row],[2027/28 Total change]] -> 0 | CQ74: =Dataset[[#This Row],[2028/29 Baseline]]+Dataset[[#This Row],[2028/29 Total change]] -> 0 | CR74: =Dataset[[#This Row],[2029/30 Baseline]]+Dataset[[#This Row],[2029/30 Total change]] -> 0
A75: NAT|Non-transfer | B75: 17|Minor assets | C75: 2027_28 | D75: MTEC2027 | E75: 17 | F75: 1 | G75: 2 | H75: 16270 | I75: 57 | J75: 17 | K75: 01 | L75: 02 | M75: 016270 | N75: 000057 | O75: 17|01|02|000057 | P75: 01 | Q75: 01 | R75: 02 | S75: 05 | T75: 05 | U75: 01|01|02|05|05 | V75: National | W75: Higher Education | X75: Administration | Y75: Department Management | Z75: Non-transfer | AA75: Current | AB75: Current payments | AC75: Goods and services | AD75: Minor assets | AE75: Minor assets | AF75: Learning and culture | AG75: Post-school education and training | AH75: NAT | AI75: 5 | AJ75: 8 | AK75: 55 | AL75: 129 | AM75: 60 | AN75: 60 | AO75: 28 | AP75: 106 | AQ75: 117 | AR75: 125 | AS75: 129 | CB75: =Dataset[[#This Row],[2027/28 From - Spending review Topic 1]]+Dataset[[#This Row],[2027/28 From - Spending review Topic 2]]+Dataset[[#This Row],[2027/28 From - Spending review Topic 3]]+Dataset[[#This Row],[2027/28 From - Spending review Topic 4]]+Dataset[[#This Row],[2027/28 From - Other reallocations]] -> 0 | CC75: =Dataset[[#This Row],[2028/29 From - Spending review Topic 1]]+Dataset[[#This Row],[2028/29 From - Spending review Topic 2]]+Dataset[[#This Row],[2028/29 From - Spending review Topic 3]]+Dataset[[#This Row],[2028/29 From - Spending review Topic 4]]+Dataset[[#This Row],[2028/29 From - Other reallocations]] -> 0 | CD75: =Dataset[[#This Row],[2029/30 From - Spending review Topic 1]]+Dataset[[#This Row],[2029/30 From - Spending review Topic 2]]+Dataset[[#This Row],[2029/30 From - Spending review Topic 3]]+Dataset[[#This Row],[2029/30 From - Spending review Topic 4]]+Dataset[[#This Row],[2029/30 From - Other reallocations]] -> 0 | CE75: =Dataset[[#This Row],[2027/28 To - Spending review Topic 1]]+Dataset[[#This Row],[2027/28 To - Spending review Topic 2]]+Dataset[[#This Row],[2027/28 To - Spending review Topic 3]]+Dataset[[#This Row],[2027/28 To - Spending review Topic 4]]+Dataset[[#This Row],[2027/28 To - Other reallocations]] -> 0 | CF75: =Dataset[[#This Row],[2028/29 To - Spending review Topic 1]]+Dataset[[#This Row],[2028/29 To - Spending review Topic 2]]+Dataset[[#This Row],[2028/29 To - Spending review Topic 3]]+Dataset[[#This Row],[2028/29 To - Spending review Topic 4]]+Dataset[[#This Row],[2028/29 To - Other reallocations]] -> 0 | CG75: =Dataset[[#This Row],[2029/30 To - Spending review Topic 1]]+Dataset[[#This Row],[2029/30 To - Spending review Topic 2]]+Dataset[[#This Row],[2029/30 To - Spending review Topic 3]]+Dataset[[#This Row],[2029/30 To - Spending review Topic 4]]+Dataset[[#This Row],[2029/30 To - Other reallocations]] -> 0 | CH75: =Dataset[[#This Row],[2027/28 Targeted savings]]+Dataset[[#This Row],[2027/28 From - Total]] -> 0 | CI75: =Dataset[[#This Row],[2028/29 Targeted savings]]+Dataset[[#This Row],[2028/29 From - Total]] -> 0 | CJ75: =Dataset[[#This Row],[2029/30 Targeted savings]]+Dataset[[#This Row],[2029/30 From - Total]] -> 0 | CK75: =Dataset[[#This Row],[2026/27 Targeted savings]] -> 0 | CL75: =SUM(Dataset[[#This Row],[2027/28 Targeted savings]],Dataset[[#This Row],[2027/28 From - Total]],Dataset[[#This Row],[2027/28 To - Total]]) -> 0 | CM75: =SUM(Dataset[[#This Row],[2028/29 Targeted savings]],Dataset[[#This Row],[2028/29 From - Total]],Dataset[[#This Row],[2028/29 To - Total]]) -> 0 | CN75: =SUM(Dataset[[#This Row],[2029/30 Targeted savings]],Dataset[[#This Row],[2029/30 From - Total]],Dataset[[#This Row],[2029/30 To - Total]]) -> 0 | CO75: =Dataset[[#This Row],[2026/27 Baseline]]+Dataset[[#This Row],[2026/27 Total change]] -> 106 | CP75: =Dataset[[#This Row],[2027/28 Baseline]]+Dataset[[#This Row],[2027/28 Total change]] -> 117 | CQ75: =Dataset[[#This Row],[2028/29 Baseline]]+Dataset[[#This Row],[2028/29 Total change]] -> 125 | CR75: =Dataset[[#This Row],[2029/30 Baseline]]+Dataset[[#This Row],[2029/30 Total change]] -> 129
A76: NAT|Non-transfer | B76: 17|Audit costs: External | C76: 2027_28 | D76: MTEC2027 | E76: 17 | F76: 1 | G76: 2 | H76: 16271 | I76: 58 | J76: 17 | K76: 01 | L76: 02 | M76: 016271 | N76: 000058 | O76: 17|01|02|000058 | P76: 01 | Q76: 01 | R76: 02 | S76: 06 | T76: 06 | U76: 01|01|02|06|06 | V76: National | W76: Higher Education | X76: Administration | Y76: Department Management | Z76: Non-transfer | AA76: Current | AB76: Current payments | AC76: Goods and services | AD76: Audit costs: External | AE76: Audit costs: External | AF76: Learning and culture | AG76: Post-school education and training | AH76: NAT | AI76: 712 | AJ76: 177 | AK76: 0 | AL76: 0 | AM76: 0 | AN76: 0 | AO76: 0 | AP76: 0 | AQ76: 0 | AR76: 0 | AS76: 0 | CB76: =Dataset[[#This Row],[2027/28 From - Spending review Topic 1]]+Dataset[[#This Row],[2027/28 From - Spending review Topic 2]]+Dataset[[#This Row],[2027/28 From - Spending review Topic 3]]+Dataset[[#This Row],[2027/28 From - Spending review Topic 4]]+Dataset[[#This Row],[2027/28 From - Other reallocations]] -> 0 | CC76: =Dataset[[#This Row],[2028/29 From - Spending review Topic 1]]+Dataset[[#This Row],[2028/29 From - Spending review Topic 2]]+Dataset[[#This Row],[2028/29 From - Spending review Topic 3]]+Dataset[[#This Row],[2028/29 From - Spending review Topic 4]]+Dataset[[#This Row],[2028/29 From - Other reallocations]] -> 0 | CD76: =Dataset[[#This Row],[2029/30 From - Spending review Topic 1]]+Dataset[[#This Row],[2029/30 From - Spending review Topic 2]]+Dataset[[#This Row],[2029/30 From - Spending review Topic 3]]+Dataset[[#This Row],[2029/30 From - Spending review Topic 4]]+Dataset[[#This Row],[2029/30 From - Other reallocations]] -> 0 | CE76: =Dataset[[#This Row],[2027/28 To - Spending review Topic 1]]+Dataset[[#This Row],[2027/28 To - Spending review Topic 2]]+Dataset[[#This Row],[2027/28 To - Spending review Topic 3]]+Dataset[[#This Row],[2027/28 To - Spending review Topic 4]]+Dataset[[#This Row],[2027/28 To - Other reallocations]] -> 0 | CF76: =Dataset[[#This Row],[2028/29 To - Spending review Topic 1]]+Dataset[[#This Row],[2028/29 To - Spending review Topic 2]]+Dataset[[#This Row],[2028/29 To - Spending review Topic 3]]+Dataset[[#This Row],[2028/29 To - Spending review Topic 4]]+Dataset[[#This Row],[2028/29 To - Other reallocations]] -> 0 | CG76: =Dataset[[#This Row],[2029/30 To - Spending review Topic 1]]+Dataset[[#This Row],[2029/30 To - Spending review Topic 2]]+Dataset[[#This Row],[2029/30 To - Spending review Topic 3]]+Dataset[[#This Row],[2029/30 To - Spending review Topic 4]]+Dataset[[#This Row],[2029/30 To - Other reallocations]] -> 0 | CH76: =Dataset[[#This Row],[2027/28 Targeted savings]]+Dataset[[#This Row],[2027/28 From - Total]] -> 0 | CI76: =Dataset[[#This Row],[2028/29 Targeted savings]]+Dataset[[#This Row],[2028/29 From - Total]] -> 0 | CJ76: =Dataset[[#This Row],[2029/30 Targeted savings]]+Dataset[[#This Row],[2029/30 From - Total]] -> 0 | CK76: =Dataset[[#This Row],[2026/27 Targeted savings]] -> 0 | CL76: =SUM(Dataset[[#This Row],[2027/28 Targeted savings]],Dataset[[#This Row],[2027/28 From - Total]],Dataset[[#This Row],[2027/28 To - Total]]) -> 0 | CM76: =SUM(Dataset[[#This Row],[2028/29 Targeted savings]],Dataset[[#This Row],[2028/29 From - Total]],Dataset[[#This Row],[2028/29 To - Total]]) -> 0 | CN76: =SUM(Dataset[[#This Row],[2029/30 Targeted savings]],Dataset[[#This Row],[2029/30 From - Total]],Dataset[[#This Row],[2029/30 To - Total]]) -> 0 | CO76: =Dataset[[#This Row],[2026/27 Baseline]]+Dataset[[#This Row],[2026/27 Total change]] -> 0 | CP76: =Dataset[[#This Row],[2027/28 Baseline]]+Dataset[[#This Row],[2027/28 Total change]] -> 0 | CQ76: =Dataset[[#This Row],[2028/29 Baseline]]+Dataset[[#This Row],[2028/29 Total change]] -> 0 | CR76: =Dataset[[#This Row],[2029/30 Baseline]]+Dataset[[#This Row],[2029/30 Total change]] -> 0
A77: NAT|Non-transfer item | B77: 17|Bursaries: Employees | C77: 2027_28 | D77: MTEC2027 | E77: 17 | F77: 1 | G77: 2 | H77: 16272 | I77: 59 | J77: 17 | K77: 01 | L77: 02 | M77: 016272 | N77: 000059 | O77: 17|01|02|000059 | P77: 01 | Q77: 01 | R77: 02 | S77: 07 | T77: 07 | U77: 01|01|02|07|07 | V77: National | W77: Higher Education | X77: Administration | Y77: Department Management | Z77: Non-transfer item | AA77: Current | AB77: Current payments | AC77: Goods and services | AD77: Bursaries: Employees | AE77: Bursaries: Employees | AF77: Learning and culture | AG77: Post-school education and training | AH77: NAT | AI77: 0 | AJ77: 0 | AK77: 0 | AL77: 0 | AM77: 0 | AN77: 0 | AO77: 0 | AP77: 0 | AQ77: 0 | AR77: 0 | AS77: 0 | CB77: =Dataset[[#This Row],[2027/28 From - Spending review Topic 1]]+Dataset[[#This Row],[2027/28 From - Spending review Topic 2]]+Dataset[[#This Row],[2027/28 From - Spending review Topic 3]]+Dataset[[#This Row],[2027/28 From - Spending review Topic 4]]+Dataset[[#This Row],[2027/28 From - Other reallocations]] -> 0 | CC77: =Dataset[[#This Row],[2028/29 From - Spending review Topic 1]]+Dataset[[#This Row],[2028/29 From - Spending review Topic 2]]+Dataset[[#This Row],[2028/29 From - Spending review Topic 3]]+Dataset[[#This Row],[2028/29 From - Spending review Topic 4]]+Dataset[[#This Row],[2028/29 From - Other reallocations]] -> 0 | CD77: =Dataset[[#This Row],[2029/30 From - Spending review Topic 1]]+Dataset[[#This Row],[2029/30 From - Spending review Topic 2]]+Dataset[[#This Row],[2029/30 From - Spending review Topic 3]]+Dataset[[#This Row],[2029/30 From - Spending review Topic 4]]+Dataset[[#This Row],[2029/30 From - Other reallocations]] -> 0 | CE77: =Dataset[[#This Row],[2027/28 To - Spending review Topic 1]]+Dataset[[#This Row],[2027/28 To - Spending review Topic 2]]+Dataset[[#This Row],[2027/28 To - Spending review Topic 3]]+Dataset[[#This Row],[2027/28 To - Spending review Topic 4]]+Dataset[[#This Row],[2027/28 To - Other reallocations]] -> 0 | CF77: =Dataset[[#This Row],[2028/29 To - Spending review Topic 1]]+Dataset[[#This Row],[2028/29 To - Spending review Topic 2]]+Dataset[[#This Row],[2028/29 To - Spending review Topic 3]]+Dataset[[#This Row],[2028/29 To - Spending review Topic 4]]+Dataset[[#This Row],[2028/29 To - Other reallocations]] -> 0 | CG77: =Dataset[[#This Row],[2029/30 To - Spending review Topic 1]]+Dataset[[#This Row],[2029/30 To - Spending review Topic 2]]+Dataset[[#This Row],[2029/30 To - Spending review Topic 3]]+Dataset[[#This Row],[2029/30 To - Spending review Topic 4]]+Dataset[[#This Row],[2029/30 To - Other reallocations]] -> 0 | CH77: =Dataset[[#This Row],[2027/28 Targeted savings]]+Dataset[[#This Row],[2027/28 From - Total]] -> 0 | CI77: =Dataset[[#This Row],[2028/29 Targeted savings]]+Dataset[[#This Row],[2028/29 From - Total]] -> 0 | CJ77: =Dataset[[#This Row],[2029/30 Targeted savings]]+Dataset[[#This Row],[2029/30 From - Total]] -> 0 | CK77: =Dataset[[#This Row],[2026/27 Targeted savings]] -> 0 | CL77: =SUM(Dataset[[#This Row],[2027/28 Targeted savings]],Dataset[[#This Row],[2027/28 From - Total]],Dataset[[#This Row],[2027/28 To - Total]]) -> 0 | CM77: =SUM(Dataset[[#This Row],[2028/29 Targeted savings]],Dataset[[#This Row],[2028/29 From - Total]],Dataset[[#This Row],[2028/29 To - Total]]) -> 0 | CN77: =SUM(Dataset[[#This Row],[2029/30 Targeted savings]],Dataset[[#This Row],[2029/30 From - Total]],Dataset[[#This Row],[2029/30 To - Total]]) -> 0 | CO77: =Dataset[[#This Row],[2026/27 Baseline]]+Dataset[[#This Row],[2026/27 Total change]] -> 0 | CP77: =Dataset[[#This Row],[2027/28 Baseline]]+Dataset[[#This Row],[2027/28 Total change]] -> 0 | CQ77: =Dataset[[#This Row],[2028/29 Baseline]]+Dataset[[#This Row],[2028/29 Total change]] -> 0 | CR77: =Dataset[[#This Row],[2029/30 Baseline]]+Dataset[[#This Row],[2029/30 Total change]] -> 0
A78: NAT|Non-transfer | B78: 17|Catering: Departmental activities | C78: 2027_28 | D78: MTEC2027 | E78: 17 | F78: 1 | G78: 2 | H78: 16273 | I78: 60 | J78: 17 | K78: 01 | L78: 02 | M78: 016273 | N78: 000060 | O78: 17|01|02|000060 | P78: 01 | Q78: 01 | R78: 02 | S78: 08 | T78: 08 | U78: 01|01|02|08|08 | V78: National | W78: Higher Education | X78: Administration | Y78: Department Management | Z78: Non-transfer | AA78: Current | AB78: Current payments | AC78: Goods and services | AD78: Catering: Departmental activities | AE78: Catering: Departmental activities | AF78: Learning and culture | AG78: Post-school education and training | AH78: NAT | AI78: 1 | AJ78: 52 | AK78: 239 | AL78: 107 | AM78: 79 | AN78: 79 | AO78: 61 | AP78: 135 | AQ78: 185 | AR78: 190 | AS78: 196 | CB78: =Dataset[[#This Row],[2027/28 From - Spending review Topic 1]]+Dataset[[#This Row],[2027/28 From - Spending review Topic 2]]+Dataset[[#This Row],[2027/28 From - Spending review Topic 3]]+Dataset[[#This Row],[2027/28 From - Spending review Topic 4]]+Dataset[[#This Row],[2027/28 From - Other reallocations]] -> 0 | CC78: =Dataset[[#This Row],[2028/29 From - Spending review Topic 1]]+Dataset[[#This Row],[2028/29 From - Spending review Topic 2]]+Dataset[[#This Row],[2028/29 From - Spending review Topic 3]]+Dataset[[#This Row],[2028/29 From - Spending review Topic 4]]+Dataset[[#This Row],[2028/29 From - Other reallocations]] -> 0 | CD78: =Dataset[[#This Row],[2029/30 From - Spending review Topic 1]]+Dataset[[#This Row],[2029/30 From - Spending review Topic 2]]+Dataset[[#This Row],[2029/30 From - Spending review Topic 3]]+Dataset[[#This Row],[2029/30 From - Spending review Topic 4]]+Dataset[[#This Row],[2029/30 From - Other reallocations]] -> 0 | CE78: =Dataset[[#This Row],[2027/28 To - Spending review Topic 1]]+Dataset[[#This Row],[2027/28 To - Spending review Topic 2]]+Dataset[[#This Row],[2027/28 To - Spending review Topic 3]]+Dataset[[#This Row],[2027/28 To - Spending review Topic 4]]+Dataset[[#This Row],[2027/28 To - Other reallocations]] -> 0 | CF78: =Dataset[[#This Row],[2028/29 To - Spending review Topic 1]]+Dataset[[#This Row],[2028/29 To - Spending review Topic 2]]+Dataset[[#This Row],[2028/29 To - Spending review Topic 3]]+Dataset[[#This Row],[2028/29 To - Spending review Topic 4]]+Dataset[[#This Row],[2028/29 To - Other reallocations]] -> 0 | CG78: =Dataset[[#This Row],[2029/30 To - Spending review Topic 1]]+Dataset[[#This Row],[2029/30 To - Spending review Topic 2]]+Dataset[[#This Row],[2029/30 To - Spending review Topic 3]]+Dataset[[#This Row],[2029/30 To - Spending review Topic 4]]+Dataset[[#This Row],[2029/30 To - Other reallocations]] -> 0 | CH78: =Dataset[[#This Row],[2027/28 Targeted savings]]+Dataset[[#This Row],[2027/28 From - Total]] -> 0 | CI78: =Dataset[[#This Row],[2028/29 Targeted savings]]+Dataset[[#This Row],[2028/29 From - Total]] -> 0 | CJ78: =Dataset[[#This Row],[2029/30 Targeted savings]]+Dataset[[#This Row],[2029/30 From - Total]] -> 0 | CK78: =Dataset[[#This Row],[2026/27 Targeted savings]] -> 0 | CL78: =SUM(Dataset[[#This Row],[2027/28 Targeted savings]],Dataset[[#This Row],[2027/28 From - Total]],Dataset[[#This Row],[2027/28 To - Total]]) -> 0 | CM78: =SUM(Dataset[[#This Row],[2028/29 Targeted savings]],Dataset[[#This Row],[2028/29 From - Total]],Dataset[[#This Row],[2028/29 To - Total]]) -> 0 | CN78: =SUM(Dataset[[#This Row],[2029/30 Targeted savings]],Dataset[[#This Row],[2029/30 From - Total]],Dataset[[#This Row],[2029/30 To - Total]]) -> 0 | CO78: =Dataset[[#This Row],[2026/27 Baseline]]+Dataset[[#This Row],[2026/27 Total change]] -> 135 | CP78: =Dataset[[#This Row],[2027/28 Baseline]]+Dataset[[#This Row],[2027/28 Total change]] -> 185 | CQ78: =Dataset[[#This Row],[2028/29 Baseline]]+Dataset[[#This Row],[2028/29 Total change]] -> 190 | CR78: =Dataset[[#This Row],[2029/30 Baseline]]+Dataset[[#This Row],[2029/30 Total change]] -> 196
A79: NAT|Non-transfer | B79: 17|Communication (G&S) | C79: 2027_28 | D79: MTEC2027 | E79: 17 | F79: 1 | G79: 2 | H79: 16274 | I79: 61 | J79: 17 | K79: 01 | L79: 02 | M79: 016274 | N79: 000061 | O79: 17|01|02|000061 | P79: 01 | Q79: 01 | R79: 02 | S79: 09 | T79: 09 | U79: 01|01|02|09|09 | V79: National | W79: Higher Education | X79: Administration | Y79: Department Management | Z79: Non-transfer | AA79: Current | AB79: Current payments | AC79: Goods and services | AD79: Communication (G&S) | AE79: Communication (G&S) | AF79: Learning and culture | AG79: Post-school education and training | AH79: NAT | AI79: 427 | AJ79: 233 | AK79: 856 | AL79: 514 | AM79: 362 | AN79: 362 | AO79: 293 | AP79: 420 | AQ79: 447 | AR79: 460 | AS79: 474 | CB79: =Dataset[[#This Row],[2027/28 From - Spending review Topic 1]]+Dataset[[#This Row],[2027/28 From - Spending review Topic 2]]+Dataset[[#This Row],[2027/28 From - Spending review Topic 3]]+Dataset[[#This Row],[2027/28 From - Spending review Topic 4]]+Dataset[[#This Row],[2027/28 From - Other reallocations]] -> 0 | CC79: =Dataset[[#This Row],[2028/29 From - Spending review Topic 1]]+Dataset[[#This Row],[2028/29 From - Spending review Topic 2]]+Dataset[[#This Row],[2028/29 From - Spending review Topic 3]]+Dataset[[#This Row],[2028/29 From - Spending review Topic 4]]+Dataset[[#This Row],[2028/29 From - Other reallocations]] -> 0 | CD79: =Dataset[[#This Row],[2029/30 From - Spending review Topic 1]]+Dataset[[#This Row],[2029/30 From - Spending review Topic 2]]+Dataset[[#This Row],[2029/30 From - Spending review Topic 3]]+Dataset[[#This Row],[2029/30 From - Spending review Topic 4]]+Dataset[[#This Row],[2029/30 From - Other reallocations]] -> 0 | CE79: =Dataset[[#This Row],[2027/28 To - Spending review Topic 1]]+Dataset[[#This Row],[2027/28 To - Spending review Topic 2]]+Dataset[[#This Row],[2027/28 To - Spending review Topic 3]]+Dataset[[#This Row],[2027/28 To - Spending review Topic 4]]+Dataset[[#This Row],[2027/28 To - Other reallocations]] -> 0 | CF79: =Dataset[[#This Row],[2028/29 To - Spending review Topic 1]]+Dataset[[#This Row],[2028/29 To - Spending review Topic 2]]+Dataset[[#This Row],[2028/29 To - Spending review Topic 3]]+Dataset[[#This Row],[2028/29 To - Spending review Topic 4]]+Dataset[[#This Row],[2028/29 To - Other reallocations]] -> 0 | CG79: =Dataset[[#This Row],[2029/30 To - Spending review Topic 1]]+Dataset[[#This Row],[2029/30 To - Spending review Topic 2]]+Dataset[[#This Row],[2029/30 To - Spending review Topic 3]]+Dataset[[#This Row],[2029/30 To - Spending review Topic 4]]+Dataset[[#This Row],[2029/30 To - Other reallocations]] -> 0 | CH79: =Dataset[[#This Row],[2027/28 Targeted savings]]+Dataset[[#This Row],[2027/28 From - Total]] -> 0 | CI79: =Dataset[[#This Row],[2028/29 Targeted savings]]+Dataset[[#This Row],[2028/29 From - Total]] -> 0 | CJ79: =Dataset[[#This Row],[2029/30 Targeted savings]]+Dataset[[#This Row],[2029/30 From - Total]] -> 0 | CK79: =Dataset[[#This Row],[2026/27 Targeted savings]] -> 0 | CL79: =SUM(Dataset[[#This Row],[2027/28 Targeted savings]],Dataset[[#This Row],[2027/28 From - Total]],Dataset[[#This Row],[2027/28 To - Total]]) -> 0 | CM79: =SUM(Dataset[[#This Row],[2028/29 Targeted savings]],Dataset[[#This Row],[2028/29 From - Total]],Dataset[[#This Row],[2028/29 To - Total]]) -> 0 | CN79: =SUM(Dataset[[#This Row],[2029/30 Targeted savings]],Dataset[[#This Row],[2029/30 From - Total]],Dataset[[#This Row],[2029/30 To - Total]]) -> 0 | CO79: =Dataset[[#This Row],[2026/27 Baseline]]+Dataset[[#This Row],[2026/27 Total change]] -> 420 | CP79: =Dataset[[#This Row],[2027/28 Baseline]]+Dataset[[#This Row],[2027/28 Total change]] -> 447 | CQ79: =Dataset[[#This Row],[2028/29 Baseline]]+Dataset[[#This Row],[2028/29 Total change]] -> 460 | CR79: =Dataset[[#This Row],[2029/30 Baseline]]+Dataset[[#This Row],[2029/30 Total change]] -> 474
A80: NAT|Non-transfer | B80: 17|Computer services | C80: 2027_28 | D80: MTEC2027 | E80: 17 | F80: 1 | G80: 2 | H80: 16275 | I80: 62 | J80: 17 | K80: 01 | L80: 02 | M80: 016275 | N80: 000062 | O80: 17|01|02|000062 | P80: 01 | Q80: 01 | R80: 02 | S80: 10 | T80: 10 | U80: 01|01|02|10|10 | V80: National | W80: Higher Education | X80: Administration | Y80: Department Management | Z80: Non-transfer | AA80: Current | AB80: Current payments | AC80: Goods and services | AD80: Computer services | AE80: Computer services | AF80: Learning and culture | AG80: Post-school education and training | AH80: NAT | AI80: 0 | AJ80: 0 | AK80: 51 | AL80: 1848 | AM80: 0 | AN80: 0 | AO80: 0 | AP80: 0 | AQ80: 560 | AR80: 551 | AS80: 568 | CB80: =Dataset[[#This Row],[2027/28 From - Spending review Topic 1]]+Dataset[[#This Row],[2027/28 From - Spending review Topic 2]]+Dataset[[#This Row],[2027/28 From - Spending review Topic 3]]+Dataset[[#This Row],[2027/28 From - Spending review Topic 4]]+Dataset[[#This Row],[2027/28 From - Other reallocations]] -> 0 | CC80: =Dataset[[#This Row],[2028/29 From - Spending review Topic 1]]+Dataset[[#This Row],[2028/29 From - Spending review Topic 2]]+Dataset[[#This Row],[2028/29 From - Spending review Topic 3]]+Dataset[[#This Row],[2028/29 From - Spending review Topic 4]]+Dataset[[#This Row],[2028/29 From - Other reallocations]] -> 0 | CD80: =Dataset[[#This Row],[2029/30 From - Spending review Topic 1]]+Dataset[[#This Row],[2029/30 From - Spending review Topic 2]]+Dataset[[#This Row],[2029/30 From - Spending review Topic 3]]+Dataset[[#This Row],[2029/30 From - Spending review Topic 4]]+Dataset[[#This Row],[2029/30 From - Other reallocations]] -> 0 | CE80: =Dataset[[#This Row],[2027/28 To - Spending review Topic 1]]+Dataset[[#This Row],[2027/28 To - Spending review Topic 2]]+Dataset[[#This Row],[2027/28 To - Spending review Topic 3]]+Dataset[[#This Row],[2027/28 To - Spending review Topic 4]]+Dataset[[#This Row],[2027/28 To - Other reallocations]] -> 0 | CF80: =Dataset[[#This Row],[2028/29 To - Spending review Topic 1]]+Dataset[[#This Row],[2028/29 To - Spending review Topic 2]]+Dataset[[#This Row],[2028/29 To - Spending review Topic 3]]+Dataset[[#This Row],[2028/29 To - Spending review Topic 4]]+Dataset[[#This Row],[2028/29 To - Other reallocations]] -> 0 | CG80: =Dataset[[#This Row],[2029/30 To - Spending review Topic 1]]+Dataset[[#This Row],[2029/30 To - Spending review Topic 2]]+Dataset[[#This Row],[2029/30 To - Spending review Topic 3]]+Dataset[[#This Row],[2029/30 To - Spending review Topic 4]]+Dataset[[#This Row],[2029/30 To - Other reallocations]] -> 0 | CH80: =Dataset[[#This Row],[2027/28 Targeted savings]]+Dataset[[#This Row],[2027/28 From - Total]] -> 0 | CI80: =Dataset[[#This Row],[2028/29 Targeted savings]]+Dataset[[#This Row],[2028/29 From - Total]] -> 0 | CJ80: =Dataset[[#This Row],[2029/30 Targeted savings]]+Dataset[[#This Row],[2029/30 From - Total]] -> 0 | CK80: =Dataset[[#This Row],[2026/27 Targeted savings]] -> 0 | CL80: =SUM(Dataset[[#This Row],[2027/28 Targeted savings]],Dataset[[#This Row],[2027/28 From - Total]],Dataset[[#This Row],[2027/28 To - Total]]) -> 0 | CM80: =SUM(Dataset[[#This Row],[2028/29 Targeted savings]],Dataset[[#This Row],[2028/29 From - Total]],Dataset[[#This Row],[2028/29 To - Total]]) -> 0 | CN80: =SUM(Dataset[[#This Row],[2029/30 Targeted savings]],Dataset[[#This Row],[2029/30 From - Total]],Dataset[[#This Row],[2029/30 To - Total]]) -> 0 | CO80: =Dataset[[#This Row],[2026/27 Baseline]]+Dataset[[#This Row],[2026/27 Total change]] -> 0 | CP80: =Dataset[[#This Row],[2027/28 Baseline]]+Dataset[[#This Row],[2027/28 Total change]] -> 560 | CQ80: =Dataset[[#This Row],[2028/29 Baseline]]+Dataset[[#This Row],[2028/29 Total change]] -> 551 | CR80: =Dataset[[#This Row],[2029/30 Baseline]]+Dataset[[#This Row],[2029/30 Total change]] -> 568
A81: NAT|Non-transfer | B81: 17|Consultants: Business and advisory services | C81: 2027_28 | D81: MTEC2027 | E81: 17 | F81: 1 | G81: 2 | H81: 16276 | I81: 63 | J81: 17 | K81: 01 | L81: 02 | M81: 016276 | N81: 000063 | O81: 17|01|02|000063 | P81: 01 | Q81: 01 | R81: 02 | S81: 11 | T81: 11 | U81: 01|01|02|11|11 | V81: National | W81: Higher Education | X81: Administration | Y81: Department Management | Z81: Non-transfer | AA81: Current | AB81: Current payments | AC81: Goods and services | AD81: Consultants: Business and advisory services | AE81: Consultants: Business and advisory services | AF81: Learning and culture | AG81: Post-school education and training | AH81: NAT | AI81: 263 | AJ81: 92 | AK81: 272 | AL81: 200 | AM81: 3127 | AN81: 1127 | AO81: 519 | AP81: 1499 | AQ81: 1998 | AR81: 2095 | AS81: 2158 | CB81: =Dataset[[#This Row],[2027/28 From - Spending review Topic 1]]+Dataset[[#This Row],[2027/28 From - Spending review Topic 2]]+Dataset[[#This Row],[2027/28 From - Spending review Topic 3]]+Dataset[[#This Row],[2027/28 From - Spending review Topic 4]]+Dataset[[#This Row],[2027/28 From - Other reallocations]] -> 0 | CC81: =Dataset[[#This Row],[2028/29 From - Spending review Topic 1]]+Dataset[[#This Row],[2028/29 From - Spending review Topic 2]]+Dataset[[#This Row],[2028/29 From - Spending review Topic 3]]+Dataset[[#This Row],[2028/29 From - Spending review Topic 4]]+Dataset[[#This Row],[2028/29 From - Other reallocations]] -> 0 | CD81: =Dataset[[#This Row],[2029/30 From - Spending review Topic 1]]+Dataset[[#This Row],[2029/30 From - Spending review Topic 2]]+Dataset[[#This Row],[2029/30 From - Spending review Topic 3]]+Dataset[[#This Row],[2029/30 From - Spending review Topic 4]]+Dataset[[#This Row],[2029/30 From - Other reallocations]] -> 0 | CE81: =Dataset[[#This Row],[2027/28 To - Spending review Topic 1]]+Dataset[[#This Row],[2027/28 To - Spending review Topic 2]]+Dataset[[#This Row],[2027/28 To - Spending review Topic 3]]+Dataset[[#This Row],[2027/28 To - Spending review Topic 4]]+Dataset[[#This Row],[2027/28 To - Other reallocations]] -> 0 | CF81: =Dataset[[#This Row],[2028/29 To - Spending review Topic 1]]+Dataset[[#This Row],[2028/29 To - Spending review Topic 2]]+Dataset[[#This Row],[2028/29 To - Spending review Topic 3]]+Dataset[[#This Row],[2028/29 To - Spending review Topic 4]]+Dataset[[#This Row],[2028/29 To - Other reallocations]] -> 0 | CG81: =Dataset[[#This Row],[2029/30 To - Spending review Topic 1]]+Dataset[[#This Row],[2029/30 To - Spending review Topic 2]]+Dataset[[#This Row],[2029/30 To - Spending review Topic 3]]+Dataset[[#This Row],[2029/30 To - Spending review Topic 4]]+Dataset[[#This Row],[2029/30 To - Other reallocations]] -> 0 | CH81: =Dataset[[#This Row],[2027/28 Targeted savings]]+Dataset[[#This Row],[2027/28 From - Total]] -> 0 | CI81: =Dataset[[#This Row],[2028/29 Targeted savings]]+Dataset[[#This Row],[2028/29 From - Total]] -> 0 | CJ81: =Dataset[[#This Row],[2029/30 Targeted savings]]+Dataset[[#This Row],[2029/30 From - Total]] -> 0 | CK81: =Dataset[[#This Row],[2026/27 Targeted savings]] -> 0 | CL81: =SUM(Dataset[[#This Row],[2027/28 Targeted savings]],Dataset[[#This Row],[2027/28 From - Total]],Dataset[[#This Row],[2027/28 To - Total]]) -> 0 | CM81: =SUM(Dataset[[#This Row],[2028/29 Targeted savings]],Dataset[[#This Row],[2028/29 From - Total]],Dataset[[#This Row],[2028/29 To - Total]]) -> 0 | CN81: =SUM(Dataset[[#This Row],[2029/30 Targeted savings]],Dataset[[#This Row],[2029/30 From - Total]],Dataset[[#This Row],[2029/30 To - Total]]) -> 0 | CO81: =Dataset[[#This Row],[2026/27 Baseline]]+Dataset[[#This Row],[2026/27 Total change]] -> 1499 | CP81: =Dataset[[#This Row],[2027/28 Baseline]]+Dataset[[#This Row],[2027/28 Total change]] -> 1998 | CQ81: =Dataset[[#This Row],[2028/29 Baseline]]+Dataset[[#This Row],[2028/29 Total change]] -> 2095 | CR81: =Dataset[[#This Row],[2029/30 Baseline]]+Dataset[[#This Row],[2029/30 Total change]] -> 2158
